Body_Code,Body_Name,Service,Posting Date,GL Code,GL Code Desc,Doc Number,Cost Centre,Doc Net Amount,Supplier Name
http://statistics.data.gov.uk/id/local-authority/38,Oxfordshire County Council,COMM DRAWDOWN FUNDNG,07/03/2023,8004,Design Consultant,2201087928,NQ1006,"-461,549.91",Balfour Beatty
http://statistics.data.gov.uk/id/local-authority/38,Oxfordshire County Council,,06/03/2023,1272,Deposits in Suspense ROIS,3111374309,,"-201,399.45",OCC One Time Vendor
http://statistics.data.gov.uk/id/local-authority/38,Oxfordshire County Council,LD Continuing Care - Sup at Home - U65,10/03/2023,5688,,3111377959,SAHL20,"-138,908.31",SEEABILITY
http://statistics.data.gov.uk/id/local-authority/38,Oxfordshire County Council,Community Reablement,23/03/2023,5505,Payments to Health Authorities,2201094815,SKT464,"-89,628.50",Oxford University Hospitals NHS Tru
http://statistics.data.gov.uk/id/local-authority/38,Oxfordshire County Council,HIF2 Team,07/03/2023,2040,Agency Staff,2201088260,N93740,"-67,498.81",Faithful & Gould
http://statistics.data.gov.uk/id/local-authority/38,Oxfordshire County Council,COMM DRAWDOWN FUNDNG,15/03/2023,8102,Payments to main contractor,2201091719,NQ1006,"-65,827.29",Milestone Infrastructure Limited
http://statistics.data.gov.uk/id/local-authority/38,Oxfordshire County Council,NURSERY ED FUND,08/03/2023,5537,Payments to Other Establishments,3111376322,EL0022,"-48,809.52",Millbrook Primary School
http://statistics.data.gov.uk/id/local-authority/38,Oxfordshire County Council,CAP CHRGES-PRIM SCHS,31/03/2023,8102,Payments to main contractor,2201098327,EDPCAP,"-45,258.00",SCM Contractors (Southern) Limited
http://statistics.data.gov.uk/id/local-authority/38,Oxfordshire County Council,YPSH Int Prop Management,02/03/2023,5785,Client Lodgings and Accommodation,3111373516,SCT150,"-41,740.88",Response Organisation
http://statistics.data.gov.uk/id/local-authority/38,Oxfordshire County Council,GULLY EMPTYING,15/03/2023,5526,Payments to Private Contractors,2201091738,NTH440,"-35,585.75",Milestone Infrastructure Limited
http://statistics.data.gov.uk/id/local-authority/38,Oxfordshire County Council,Care Homes - U65 Higher Function Autism,10/03/2023,5686,,3111381658,SACF10,"-28,539.88",VOYAGE CARE LIMITED
http://statistics.data.gov.uk/id/local-authority/38,Oxfordshire County Council,Continuing Care - Support at Home - 65+,17/03/2023,5691,,3111385460,SAHC40,"-23,184.00",Henley Care Ltd
http://statistics.data.gov.uk/id/local-authority/38,Oxfordshire County Council,Continuing Care - Care Homes - Under 65,10/03/2023,5687,,3111381799,SAHC10,"-21,428.58",MARIA MALLABAND CARE GROUP
http://statistics.data.gov.uk/id/local-authority/38,Oxfordshire County Council,Continuing Care - Care Homes - 65+,10/03/2023,5687,,3111380196,SAHC30,"-21,257.15",LAWTON GROUP LTD
http://statistics.data.gov.uk/id/local-authority/38,Oxfordshire County Council,Support at Home 65+ Mental Health,10/03/2023,5686,,3111380631,SACM40,"-19,200.01",Kirlena House
http://statistics.data.gov.uk/id/local-authority/38,Oxfordshire County Council,COMM DRAWDOWN FUNDNG,15/03/2023,8102,Payments to main contractor,2201091729,NQ1006,"-18,597.94",Milestone Infrastructure Limited
http://statistics.data.gov.uk/id/local-authority/38,Oxfordshire County Council,COMM DRAWDOWN FUNDNG,15/03/2023,8102,Payments to main contractor,2201091736,NQ1006,"-18,474.90",Milestone Infrastructure Limited
http://statistics.data.gov.uk/id/local-authority/38,Oxfordshire County Council,Support at Home 65+ Physical Support,10/03/2023,5687,,3111379758,SACP40,"-17,642.85",Cherwood House Care Centre
http://statistics.data.gov.uk/id/local-authority/38,Oxfordshire County Council,NURSERY ED FUND,30/03/2023,5537,Payments to Other Establishments,3111396978,EL0022,"-17,159.04",Magpies Preschool
http://statistics.data.gov.uk/id/local-authority/38,Oxfordshire County Council,YPSH Int Prop Management,02/03/2023,5785,Client Lodgings and Accommodation,3111373515,SCT150,"-17,023.34",Response Organisation
http://statistics.data.gov.uk/id/local-authority/38,Oxfordshire County Council,Continuing Care - Care Homes - 65+,10/03/2023,5687,,3111381129,SAHC30,"-15,328.57",Barchester Healthcare Homes Ltd
http://statistics.data.gov.uk/id/local-authority/38,Oxfordshire County Council,CHC Fast Track - Care Homes - Over 65,10/03/2023,5687,,3111380688,SAHE30,"-15,024.35",Lincroft Meadow
http://statistics.data.gov.uk/id/local-authority/38,Oxfordshire County Council,Planned Maintenance,15/03/2023,5526,Payments to Private Contractors,2201091723,K30120,"-14,681.48",Milestone Infrastructure Limited
http://statistics.data.gov.uk/id/local-authority/38,Oxfordshire County Council,Support at Home 65+ Physical Support,10/03/2023,5687,,3111380098,SACP40,"-14,452.05",Freeland House
http://statistics.data.gov.uk/id/local-authority/38,Oxfordshire County Council,NURSERY ED FUND,08/03/2023,5537,Payments to Other Establishments,3111376323,EL0022,"-14,187.96",Windrush Church of England Primary
http://statistics.data.gov.uk/id/local-authority/38,Oxfordshire County Council,Interim Funding  - Care Homes - Over 65,10/03/2023,5687,,3111381515,SAHN30,"-13,760.57",Four Seasons (Headington) Ltd
http://statistics.data.gov.uk/id/local-authority/38,Oxfordshire County Council,YPSH Int Prop Management,02/03/2023,5785,Client Lodgings and Accommodation,3111373514,SCT150,"-13,633.06",Response Organisation
http://statistics.data.gov.uk/id/local-authority/38,Oxfordshire County Council,Support at Home U65 Learning Disability,28/03/2023,5682,,3111392757,SACL20,"-11,735.52",The Brandon Trust
http://statistics.data.gov.uk/id/local-authority/38,Oxfordshire County Council,Care Homes - Over 65 Physical Sypport,10/03/2023,5687,,3111380478,SACP30,"-11,335.72",Heathfield House Nursing Home
http://statistics.data.gov.uk/id/local-authority/38,Oxfordshire County Council,HIGHWAYS GENERAL,31/03/2023,8102,Payments to main contractor,2201098356,N20100,"-10,583.68",Milestone Infrastructure Limited
http://statistics.data.gov.uk/id/local-authority/38,Oxfordshire County Council,INTERPRETATION holding account,15/03/2023,4940,Other Services,2201091930,R51000,"-9,528.00",D.A. LANGUAGES
http://statistics.data.gov.uk/id/local-authority/38,Oxfordshire County Council,Funded Nursing Care  - Over 65,10/03/2023,5692,,3111381051,SAHF30,"-8,995.16",RICHMOND VILLAGE WITNEY
http://statistics.data.gov.uk/id/local-authority/38,Oxfordshire County Council,Funded Nursing Care  - Over 65,10/03/2023,5692,,3111379288,SAHF30,"-8,965.28",Bridge House
http://statistics.data.gov.uk/id/local-authority/38,Oxfordshire County Council,Care Homes - Under 65 Physical Sypport,10/03/2023,5687,,3111381143,SACP10,"-8,732.27",Barchester Healthcare Homes Ltd
http://statistics.data.gov.uk/id/local-authority/38,Oxfordshire County Council,Support at Home U65 Autism /Abated,10/03/2023,5688,,3111377613,SACA20,"-8,255.52",Community Integrated Care
http://statistics.data.gov.uk/id/local-authority/38,Oxfordshire County Council,Support at Home 65+ Physical Support,10/03/2023,5686,,3111377394,SACP40,"-8,166.86",Orders of St John
http://statistics.data.gov.uk/id/local-authority/38,Oxfordshire County Council,Care Homes - Over 65 Physical Sypport,10/03/2023,5685,B*Cycle tracks,3111379375,SACP30,"-7,825.60",METHODIST HOMES
http://statistics.data.gov.uk/id/local-authority/38,Oxfordshire County Council,RESOURCE EFFICIENCY,10/03/2023,4407,Equipment,2201089850,N93170,"-7,458.04",STARK SOFTWARE INTERNATIONAL LTD
http://statistics.data.gov.uk/id/local-authority/38,Oxfordshire County Council,Support at Home 65+ Physical Support,10/03/2023,5685,B*Cycle tracks,3111380123,SACP40,"-7,376.06",Freeland House
http://statistics.data.gov.uk/id/local-authority/38,Oxfordshire County Council,"Marketing, Communications & Engagement",30/03/2023,4625,"Newspapers, Periodicals and Publications",2201097766,A62000,"-7,000.00",Presspage Ltd
http://statistics.data.gov.uk/id/local-authority/38,Oxfordshire County Council,Support at Home 65+ Physical Support,10/03/2023,5687,,3111381437,SACP40,"-6,607.14",The Grange Care Centre
http://statistics.data.gov.uk/id/local-authority/38,Oxfordshire County Council,Care Homes - Under 65 Leaning Disability,10/03/2023,5686,,3111381634,SACL10,"-6,499.06",Truecare Group Ltd
http://statistics.data.gov.uk/id/local-authority/38,Oxfordshire County Council,Care Homes - Over 65 Physical Sypport,10/03/2023,5687,,3111379198,SACP30,"-6,081.38",Bondcare (Henley) Ltd
http://statistics.data.gov.uk/id/local-authority/38,Oxfordshire County Council,Care Homes - Over 65 Memory & Cognition,10/03/2023,5687,,3111379680,SACC30,"-6,000.00",Chacombe Park Care Home
http://statistics.data.gov.uk/id/local-authority/38,Oxfordshire County Council,Adoption Service Overheads,16/03/2023,3980,Service Charges - Premises,2201092450,ATV200,"-5,875.00",Wokingham Borough Council
http://statistics.data.gov.uk/id/local-authority/38,Oxfordshire County Council,CHC Fast Track - Care Homes - Under 65,10/03/2023,5687,,3111381667,SAHE10,"-5,691.43",SANCTUARY CARE LTD
http://statistics.data.gov.uk/id/local-authority/38,Oxfordshire County Council,Support at Home U65 Learning Disability,10/03/2023,5688,,3111378720,SACL20,"-5,651.88",The Brandon Trust
http://statistics.data.gov.uk/id/local-authority/38,Oxfordshire County Council,CHC Fast Track - Care Homes - Over 65,10/03/2023,5687,,3111380251,SAHE30,"-5,571.43",GCH (St Katherines) Ltd
http://statistics.data.gov.uk/id/local-authority/38,Oxfordshire County Council,Support at Home 65+ Physical Support,10/03/2023,5686,,3111377361,SACP40,"-5,444.57",Orders of St John
http://statistics.data.gov.uk/id/local-authority/38,Oxfordshire County Council,HIGHWAYS GENERAL,15/03/2023,8102,Payments to main contractor,2201091735,N20100,"-5,379.72",Milestone Infrastructure Limited
http://statistics.data.gov.uk/id/local-authority/38,Oxfordshire County Council,STI TESTING+TREATMEN,30/03/2023,4940,Other Services,3111396688,PH0002,"-5,232.00",Royal Berkshire NHS Foundation Trus
http://statistics.data.gov.uk/id/local-authority/38,Oxfordshire County Council,NURSERY ED FUND,30/03/2023,5537,Payments to Other Establishments,3111397175,EL0022,"-5,220.00",Expansive Education Ltd
http://statistics.data.gov.uk/id/local-authority/38,Oxfordshire County Council,CHC Fast Track - Care Homes - Over 65,10/03/2023,5687,,3111380310,SAHE30,"-5,142.86",Green Gates NH (BUPA)
http://statistics.data.gov.uk/id/local-authority/38,Oxfordshire County Council,Funded Nursing Care  - Over 65,10/03/2023,5692,,3111381108,SAHF30,"-5,020.55",SANCTUARY CARE PROPERTY (2) LTD
http://statistics.data.gov.uk/id/local-authority/38,Oxfordshire County Council,YP PATHWAY,02/03/2023,5606,,3111373545,SHT221,"-4,997.93",KEY2 FUTURES LTD
http://statistics.data.gov.uk/id/local-authority/38,Oxfordshire County Council,Support at Home 65+ Physical Support,28/03/2023,5689,,3111394563,SACP40,"-4,901.67",Kare Plus Oxford
http://statistics.data.gov.uk/id/local-authority/38,Oxfordshire County Council,Support at Home 65+ Physical Support,10/03/2023,5686,,3111380020,SACP40,"-4,857.14",Enstone House
http://statistics.data.gov.uk/id/local-authority/38,Oxfordshire County Council,CHC Fast Track - Sup at Home - Under 65,13/03/2023,5691,,3111382031,SAHE20,"-4,836.00",Rynes Healthcare Ltd
http://statistics.data.gov.uk/id/local-authority/38,Oxfordshire County Council,CHC Fast Track - Care Homes - Over 65,10/03/2023,5687,,3111378818,SAHE30,"-4,796.43",Abbey Crest Nursing Home
http://statistics.data.gov.uk/id/local-authority/38,Oxfordshire County Council,OCC Discharge Funding Allocation,10/03/2023,5687,,3111379654,SBE562,"-4,714.29",Chacombe Park Care Home
http://statistics.data.gov.uk/id/local-authority/38,Oxfordshire County Council,CHC Fast Track - Care Homes - Under 65,10/03/2023,5687,,3111381213,SAHE10,"-4,714.29",Stowford House
http://statistics.data.gov.uk/id/local-authority/38,Oxfordshire County Council,,06/03/2023,1264,Employers Contribution - NHS,3111374445,,"-4,418.98",NHS PENSION SCHEME ACCOUNT
http://statistics.data.gov.uk/id/local-authority/38,Oxfordshire County Council,LANDLORD & TENANT,21/03/2023,4001,Uniform Business Rates,3111386956,K10130,"-4,410.69",South Oxfordshire District Council
http://statistics.data.gov.uk/id/local-authority/38,Oxfordshire County Council,Funded Nursing Care  - Over 65,10/03/2023,5692,,3111379312,SAHF30,"-4,333.22",Bridge House
http://statistics.data.gov.uk/id/local-authority/38,Oxfordshire County Council,High Cost INMSS Placements,03/03/2023,5500,Payments to Other Local Authorities,2201086863,EP1168,"-4,318.85",East Sussex County Council
http://statistics.data.gov.uk/id/local-authority/38,Oxfordshire County Council,High Cost INMSS Placements,06/03/2023,5500,Payments to Other Local Authorities,2201087428,EP1168,"-4,318.85",East Sussex County Council
http://statistics.data.gov.uk/id/local-authority/38,Oxfordshire County Council,Support at Home U65 Learning Disability,10/03/2023,5688,,3111377998,SACL20,"-4,288.41",SEEABILITY
http://statistics.data.gov.uk/id/local-authority/38,Oxfordshire County Council,Funded Nursing Care  - Over 65,10/03/2023,5692,,3111381807,SAHF30,"-4,243.56",MARIA MALLABAND CARE GROUP
http://statistics.data.gov.uk/id/local-authority/38,Oxfordshire County Council,Corp Proc Service,29/03/2023,6567,,3111395063,G21024,"-4,227.44",Chiltern Way Academy
http://statistics.data.gov.uk/id/local-authority/38,Oxfordshire County Council,Support at Home U65 Learning Disability,28/03/2023,5689,,3111394736,SACL20,"-4,122.72",PLL Care Services
http://statistics.data.gov.uk/id/local-authority/38,Oxfordshire County Council,Support at Home 65+ Physical Support,28/03/2023,5699,,3111394121,SACP40,"-4,104.63",CaringPlus Healthcare Services Ltd
http://statistics.data.gov.uk/id/local-authority/38,Oxfordshire County Council,Funded Nursing Care  - Over 65,10/03/2023,5692,,3111378838,SAHF30,"-4,064.26",Abbey Crest Nursing Home
http://statistics.data.gov.uk/id/local-authority/38,Oxfordshire County Council,Interim Funding  - Care Homes - Over 65,10/03/2023,5687,,3111381858,SAHN30,"-4,014.29",Caring Homes Healthcare Group Ltd
http://statistics.data.gov.uk/id/local-authority/38,Oxfordshire County Council,MOTOR FLEET,29/03/2023,3053,,3111396117,Z00010,"-3,991.76",OCC One Time Vendor
http://statistics.data.gov.uk/id/local-authority/38,Oxfordshire County Council,Support at Home 65+ Physical Support,10/03/2023,5686,,3111377801,SACP40,"-3,856.57",Orders of St John
http://statistics.data.gov.uk/id/local-authority/38,Oxfordshire County Council,Support at Home 65+ Memory & Cognition,10/03/2023,5686,,3111380653,SACC40,"-3,764.29",Leafield Rest Home
http://statistics.data.gov.uk/id/local-authority/38,Oxfordshire County Council,Continuing Care - Care Homes - 65+,10/03/2023,5687,,3111381238,SAHC30,"-3,753.86",Stowford House
http://statistics.data.gov.uk/id/local-authority/38,Oxfordshire County Council,TRANSPORT GENERAL,01/03/2023,4270,HTM / Other Vehicle - Hire Charges,2201085574,M90000,"-3,668.25",DAYS Fleet
http://statistics.data.gov.uk/id/local-authority/38,Oxfordshire County Council,Care Homes - Over 65 Physical Sypport,10/03/2023,5687,,3111381387,SACP30,"-3,608.78",The Close Nursing Home
http://statistics.data.gov.uk/id/local-authority/38,Oxfordshire County Council,AGENCY RESID - DISAB,29/03/2023,5559,,3111396273,SCE571,"-3,548.57",Five Rivers Child Care Ltd
http://statistics.data.gov.uk/id/local-authority/38,Oxfordshire County Council,Continuing Care - Care Homes - 65+,10/03/2023,5687,,3111377604,SAHC30,"-3,534.29",Orders of St John
http://statistics.data.gov.uk/id/local-authority/38,Oxfordshire County Council,Continuing Care - Care Homes - 65+,10/03/2023,5687,,3111380351,SAHC30,"-3,528.57",Green Pastures Christian NH
http://statistics.data.gov.uk/id/local-authority/38,Oxfordshire County Council,CHC Fast Track - Care Homes - Over 65,10/03/2023,5687,,3111379590,SAHE30,"-3,490.71",CARE UK COMMUNITY PARTNERSHIPS LIMI
http://statistics.data.gov.uk/id/local-authority/38,Oxfordshire County Council,CHC Fast Track - Care Homes - Over 65,10/03/2023,5687,,3111380800,SAHE30,"-3,471.43",Middletown Grange Care Home
http://statistics.data.gov.uk/id/local-authority/38,Oxfordshire County Council,OCC Discharge Funding Allocation,10/03/2023,5687,,3111379674,SBE562,"-3,214.29",Chacombe Park Care Home
http://statistics.data.gov.uk/id/local-authority/38,Oxfordshire County Council,OCC Discharge Funding Allocation,10/03/2023,5687,,3111380203,SBE562,"-3,214.29",LAWTON GROUP LTD
http://statistics.data.gov.uk/id/local-authority/38,Oxfordshire County Council,COMM DRAWDOWN FUNDNG,15/03/2023,8102,Payments to main contractor,2201091722,NQ1006,"-3,202.82",Milestone Infrastructure Limited
http://statistics.data.gov.uk/id/local-authority/38,Oxfordshire County Council,Funded Nursing Care  - Over 65,10/03/2023,5692,,3111380687,SAHF30,"-3,137.84",Lincroft Meadow
http://statistics.data.gov.uk/id/local-authority/38,Oxfordshire County Council,ICT Operations & Maintenance,10/03/2023,8037,Other In house Fees / Charges,2201089804,R41000,"-3,090.75",Embridge Consulting (UK) LTD
http://statistics.data.gov.uk/id/local-authority/38,Oxfordshire County Council,Continuing Care - Care Homes - 65+,10/03/2023,5687,,3111378874,SAHC30,"-3,085.71",ACER HEALTHCARE LTD
http://statistics.data.gov.uk/id/local-authority/38,Oxfordshire County Council,COMM DRAWDOWN FUNDNG,16/03/2023,8102,Payments to main contractor,2201092150,NQ1006,"-3,046.23",Milestone Infrastructure Limited
http://statistics.data.gov.uk/id/local-authority/38,Oxfordshire County Council,CHC Fast Track - Care Homes - Over 65,10/03/2023,5687,,3111380145,SAHE30,"-3,000.00",Freeland House
http://statistics.data.gov.uk/id/local-authority/38,Oxfordshire County Council,TRAINING MANAGEMENT,30/03/2023,3100,Educational and Vocational Training,2201097904,F27000,"-3,000.00",Lee Valley Regional Park Authority
http://statistics.data.gov.uk/id/local-authority/38,Oxfordshire County Council,Support at Home 65+ Physical Support,10/03/2023,5687,,3111380105,SACP40,"-2,971.43",Freeland House
http://statistics.data.gov.uk/id/local-authority/38,Oxfordshire County Council,Funded Nursing Care  - Over 65,10/03/2023,5692,,3111380509,SAHF30,"-2,958.54",HENLEY MANOR CARE HOME
http://statistics.data.gov.uk/id/local-authority/38,Oxfordshire County Council,SPECIAL GUARDIANSHIP,08/03/2023,5661,B*Carriageway pre surf. dressing patchin,3111375766,SCP551,"-2,896.50",Redacted Personal Data
http://statistics.data.gov.uk/id/local-authority/38,Oxfordshire County Council,Care Homes - Over 65 Physical Sypport,10/03/2023,5686,,3111380000,SACP30,"-2,828.57",Oakland Wantage Care Home Limited
http://statistics.data.gov.uk/id/local-authority/38,Oxfordshire County Council,Funded Nursing Care  - Over 65,10/03/2023,5692,,3111379848,SAHF30,"-2,779.23",CHURCHFIELDS CARE HOME
http://statistics.data.gov.uk/id/local-authority/38,Oxfordshire County Council,NURSERY ED FUND,15/03/2023,5537,Payments to Other Establishments,3111384786,EL0022,"-2,740.50",Little Dots Daycare Ltd
http://statistics.data.gov.uk/id/local-authority/38,Oxfordshire County Council,Care Homes - Over 65 Physical Sypport,10/03/2023,5687,,3111381485,SACP30,"-2,700.00",Four Seasons (Headington) Ltd
http://statistics.data.gov.uk/id/local-authority/38,Oxfordshire County Council,GRASS CUTTING DIST.,17/03/2023,5526,Payments to Private Contractors,2201092555,NTH435,"-2,675.86",Carterton Town Council
http://statistics.data.gov.uk/id/local-authority/38,Oxfordshire County Council,GRASS CUTTING DIST.,23/03/2023,5526,Payments to Private Contractors,2201094624,NTH435,"-2,675.86",Carterton Town Council
http://statistics.data.gov.uk/id/local-authority/38,Oxfordshire County Council,Support at Home 65+ Physical Support,28/03/2023,5699,,3111394687,SACP40,"-2,646.00",PLL Care Services
http://statistics.data.gov.uk/id/local-authority/38,Oxfordshire County Council,Funded Nursing Care  - Over 65,10/03/2023,5692,,3111378854,SAHF30,"-2,599.93",Abbey Crest Nursing Home
http://statistics.data.gov.uk/id/local-authority/38,Oxfordshire County Council,Support at Home 65+ Memory & Cognition,28/03/2023,5699,,3111393802,SACC40,"-2,557.80",All Care GB Ltd
http://statistics.data.gov.uk/id/local-authority/38,Oxfordshire County Council,CHC Fast Track - Care Homes - Over 65,10/03/2023,5687,,3111380193,SAHE30,"-2,435.71",LAWTON GROUP LTD
http://statistics.data.gov.uk/id/local-authority/38,Oxfordshire County Council,CHC Fast Track - Care Homes - Over 65,10/03/2023,5687,,3111381834,SAHE30,"-2,435.71",MARIA MALLABAND CARE GROUP
http://statistics.data.gov.uk/id/local-authority/38,Oxfordshire County Council,Funded Nursing Care  - Over 65,10/03/2023,5692,,3111379829,SAHF30,"-2,420.62",CHURCHFIELDS CARE HOME
http://statistics.data.gov.uk/id/local-authority/38,Oxfordshire County Council,Funded Nursing Care  - Over 65,10/03/2023,5692,,3111380184,SAHF30,"-2,360.86",LAWTON GROUP LTD
http://statistics.data.gov.uk/id/local-authority/38,Oxfordshire County Council,Care Homes - Over 65 Memory & Cognition,10/03/2023,5686,,3111378576,SACC30,"-2,331.43",Orders of St John
http://statistics.data.gov.uk/id/local-authority/38,Oxfordshire County Council,Care Homes - Over 65 Physical Sypport,10/03/2023,5685,B*Cycle tracks,3111381188,SACP30,"-2,317.41",Barchester Healthcare Homes Ltd
http://statistics.data.gov.uk/id/local-authority/38,Oxfordshire County Council,Support at Home U65 Physical Support,28/03/2023,5699,,3111394394,SACP20,"-2,278.50",Kare Plus Oxford
http://statistics.data.gov.uk/id/local-authority/38,Oxfordshire County Council,Care Homes - Over 65 Physical Sypport,10/03/2023,5687,,3111378380,SACP30,"-2,269.99",Orders of St John
http://statistics.data.gov.uk/id/local-authority/38,Oxfordshire County Council,SHARED LIVES B & L,10/03/2023,5555,Payments to Carers,3111377217,SAP154,"-2,233.63",Redacted Personal Data
http://statistics.data.gov.uk/id/local-authority/38,Oxfordshire County Council,CHC Fast Track - Care Homes - Over 65,10/03/2023,5687,,3111380831,SAHE30,"-2,228.57",Mill House Nursing Home
http://statistics.data.gov.uk/id/local-authority/38,Oxfordshire County Council,Care Homes - Over 65 Memory & Cognition,10/03/2023,5687,,3111380711,SACC30,"-2,173.70",Lincroft Meadow
http://statistics.data.gov.uk/id/local-authority/38,Oxfordshire County Council,CORONER,31/03/2023,5505,Payments to Health Authorities,2201098367,R71000,"-2,160.00",Oxford University Hospitals NHS Tru
http://statistics.data.gov.uk/id/local-authority/38,Oxfordshire County Council,Early Years Pupil Premium,30/03/2023,5537,Payments to Other Establishments,3111396907,EL0885,"-2,113.80",Pegasus Primary School
http://statistics.data.gov.uk/id/local-authority/38,Oxfordshire County Council,Care Homes - Over 65 Mental Health,10/03/2023,5685,B*Cycle tracks,3111380154,SACM30,"-2,025.79",Freeland House
http://statistics.data.gov.uk/id/local-authority/38,Oxfordshire County Council,CHC Fast Track - Care Homes - Over 65,10/03/2023,5687,,3111380907,SAHE30,"-1,992.86",Oakenholt Care Ltd
http://statistics.data.gov.uk/id/local-authority/38,Oxfordshire County Council,Funded Nursing Care  - Over 65,10/03/2023,5692,,3111380512,SAHF30,"-1,882.71",HENLEY MANOR CARE HOME
http://statistics.data.gov.uk/id/local-authority/38,Oxfordshire County Council,Care Homes - Over 65 Physical Sypport,10/03/2023,5687,,3111380147,SACP30,"-1,848.52",Freeland House
http://statistics.data.gov.uk/id/local-authority/38,Oxfordshire County Council,Support at Home 65+ Physical Support,28/03/2023,5699,,3111394752,SACP40,"-1,839.60",PLL Care Services
http://statistics.data.gov.uk/id/local-authority/38,Oxfordshire County Council,NURSERY ED FUND,15/03/2023,5537,Payments to Other Establishments,3111384783,EL0022,"-1,827.00",Little Dots Daycare Ltd
http://statistics.data.gov.uk/id/local-authority/38,Oxfordshire County Council,NURSERY ED FUND,15/03/2023,5537,Payments to Other Establishments,3111384785,EL0022,"-1,827.00",Little Dots Daycare Ltd
http://statistics.data.gov.uk/id/local-authority/38,Oxfordshire County Council,ICT Operations & Maintenance,24/03/2023,8037,Other In house Fees / Charges,2201095502,R41000,"-1,820.00",Embridge Consulting (UK) LTD
http://statistics.data.gov.uk/id/local-authority/38,Oxfordshire County Council,,06/03/2023,1264,Employers Contribution - NHS,3111374444,,"-1,809.05",NHS PENSION SCHEME ACCOUNT
http://statistics.data.gov.uk/id/local-authority/38,Oxfordshire County Council,FOSTERING MAIN,28/03/2023,5548,B*Fostering - Special Rates & Plus Amou,3111393290,SCP501,"-1,747.76",Redacted Personal Data
http://statistics.data.gov.uk/id/local-authority/38,Oxfordshire County Council,Support at Home 65+ Physical Support,10/03/2023,5686,,3111381366,SACP40,"-1,714.29",Tall Trees
http://statistics.data.gov.uk/id/local-authority/38,Oxfordshire County Council,NURSERY ED FUND,02/03/2023,5537,Payments to Other Establishments,3111373607,EL0022,"-1,696.50",North Hinksey Pre School & Childcar
http://statistics.data.gov.uk/id/local-authority/38,Oxfordshire County Council,SHARED LIVES,10/03/2023,5555,Payments to Carers,3111377244,SAT151,"-1,673.97",Redacted Personal Data
http://statistics.data.gov.uk/id/local-authority/38,Oxfordshire County Council,Care Homes - Over 65 Memory & Cognition,10/03/2023,5686,,3111380865,SACC30,"-1,635.43",Mon Choisy
http://statistics.data.gov.uk/id/local-authority/38,Oxfordshire County Council,Funded Nursing Care  - Over 65,10/03/2023,5692,,3111379831,SAHF30,"-1,613.75",CHURCHFIELDS CARE HOME
http://statistics.data.gov.uk/id/local-authority/38,Oxfordshire County Council,Funded Nursing Care  - Over 65,10/03/2023,5692,,3111379841,SAHF30,"-1,613.75",CHURCHFIELDS CARE HOME
http://statistics.data.gov.uk/id/local-authority/38,Oxfordshire County Council,LAC PUPIL PREMIUM,30/03/2023,5537,Payments to Other Establishments,3111396341,EP1395,"-1,600.00",Orchard Meadow School
http://statistics.data.gov.uk/id/local-authority/38,Oxfordshire County Council,MANAGEMENT & ADMIN,31/03/2023,3103,Other Training Courses and Qualification,2201098530,SCT222,"-1,600.00",TEAM-TEACH LTD
http://statistics.data.gov.uk/id/local-authority/38,Oxfordshire County Council,Funded Nursing Care  - Over 65,10/03/2023,5692,,3111380955,SAHF30,"-1,583.87",Oxford Beaumont
http://statistics.data.gov.uk/id/local-authority/38,Oxfordshire County Council,Early Years SEN Funding,17/03/2023,5537,Payments to Other Establishments,3111385482,ES1771,"-1,570.80",Julia Durbin Day Nursery
http://statistics.data.gov.uk/id/local-authority/38,Oxfordshire County Council,NURSERY ED FUND,30/03/2023,5537,Payments to Other Establishments,3111397318,EL0022,"-1,566.00",Abingdon Kindergarten (Loyd Close)
http://statistics.data.gov.uk/id/local-authority/38,Oxfordshire County Council,NURSERY ED FUND,30/03/2023,5537,Payments to Other Establishments,3111397320,EL0022,"-1,566.00",Abingdon Kindergarten (Loyd Close)
http://statistics.data.gov.uk/id/local-authority/38,Oxfordshire County Council,NURSERY ED FUND,30/03/2023,5537,Payments to Other Establishments,3111397322,EL0022,"-1,566.00",Abingdon Kindergarten (Loyd Close)
http://statistics.data.gov.uk/id/local-authority/38,Oxfordshire County Council,NURSERY ED FUND,30/03/2023,5537,Payments to Other Establishments,3111397323,EL0022,"-1,566.00",Abingdon Kindergarten (Loyd Close)
http://statistics.data.gov.uk/id/local-authority/38,Oxfordshire County Council,NURSERY ED FUND,30/03/2023,5537,Payments to Other Establishments,3111397336,EL0022,"-1,566.00",Abingdon Kindergarten (Loyd Close)
http://statistics.data.gov.uk/id/local-authority/38,Oxfordshire County Council,NURSERY ED FUND,30/03/2023,5537,Payments to Other Establishments,3111397340,EL0022,"-1,566.00",Abingdon Kindergarten (Loyd Close)
http://statistics.data.gov.uk/id/local-authority/38,Oxfordshire County Council,NURSERY ED FUND,30/03/2023,5537,Payments to Other Establishments,3111396843,EL0022,"-1,566.00",Ascott-under-Wychwood Pre-School
http://statistics.data.gov.uk/id/local-authority/38,Oxfordshire County Council,NURSERY ED FUND,30/03/2023,5537,Payments to Other Establishments,3111397178,EL0022,"-1,566.00",Early Days Nursery Schoo
http://statistics.data.gov.uk/id/local-authority/38,Oxfordshire County Council,NURSERY ED FUND,30/03/2023,5537,Payments to Other Establishments,3111396977,EL0022,"-1,566.00",Imogen Mason
http://statistics.data.gov.uk/id/local-authority/38,Oxfordshire County Council,NURSERY ED FUND,30/03/2023,5537,Payments to Other Establishments,3111396875,EL0022,"-1,566.00",Lake Street Nursery
http://statistics.data.gov.uk/id/local-authority/38,Oxfordshire County Council,NURSERY ED FUND,30/03/2023,5537,Payments to Other Establishments,3111396897,EL0022,"-1,566.00",Scamps of Benson Ltd
http://statistics.data.gov.uk/id/local-authority/38,Oxfordshire County Council,ALTERNATIVES TO CARE,21/03/2023,3945,Rent,3111386961,SCE575,"-1,565.63",OCC One Time Vendor
http://statistics.data.gov.uk/id/local-authority/38,Oxfordshire County Council,Funded Nursing Care  - Over 65,10/03/2023,5692,,3111381424,SAHF30,"-1,524.10",The Cotswold Home
http://statistics.data.gov.uk/id/local-authority/38,Oxfordshire County Council,COMM DRAWDOWN FUNDNG,15/03/2023,8004,Design Consultant,2201091731,NQ1006,"-1,520.63",Milestone Infrastructure Limited
http://statistics.data.gov.uk/id/local-authority/38,Oxfordshire County Council,Care Homes - Over 65 Memory & Cognition,10/03/2023,5687,,3111381562,SACC30,"-1,520.06",The Langston
http://statistics.data.gov.uk/id/local-authority/38,Oxfordshire County Council,CHC Fast Track - Care Homes - Over 65,10/03/2023,5687,,3111380298,SAHE30,"-1,485.71",Green Gates NH (BUPA)
http://statistics.data.gov.uk/id/local-authority/38,Oxfordshire County Council,Care Homes - Over 65 Physical Sypport,10/03/2023,5686,,3111377471,SACP30,"-1,474.57",Orders of St John
http://statistics.data.gov.uk/id/local-authority/38,Oxfordshire County Council,Support at Home 65+ Physical Support,10/03/2023,5686,,3111377795,SACP40,"-1,474.57",Orders of St John
http://statistics.data.gov.uk/id/local-authority/38,Oxfordshire County Council,Support at Home 65+ Physical Support,10/03/2023,5685,B*Cycle tracks,3111380816,SACP40,"-1,447.20",Middletown Grange Care Home
http://statistics.data.gov.uk/id/local-authority/38,Oxfordshire County Council,Household Support Fund 3,23/03/2023,7690,Additional Grant for Schools,3111388352,A16009,"-1,440.00",Rose Hill Primary School
http://statistics.data.gov.uk/id/local-authority/38,Oxfordshire County Council,NURSERY ED FUND,30/03/2023,5537,Payments to Other Establishments,3111397189,EL0022,"-1,435.56",Early Days Nursery Schoo
http://statistics.data.gov.uk/id/local-authority/38,Oxfordshire County Council,Care Homes - Over 65 Memory & Cognition,10/03/2023,5686,,3111378020,SACC30,"-1,428.57",Orders of St John
http://statistics.data.gov.uk/id/local-authority/38,Oxfordshire County Council,NURSERY ED FUND,30/03/2023,5537,Payments to Other Establishments,3111396784,EL0022,"-1,409.40",Long Wittenham Pre-School
http://statistics.data.gov.uk/id/local-authority/38,Oxfordshire County Council,Independent Foster,01/03/2023,5559,,3111372763,SCE501,"-1,369.71",Credo Care Ltd
http://statistics.data.gov.uk/id/local-authority/38,Oxfordshire County Council,Care Homes - Over 65 Mental Health,10/03/2023,5686,,3111378073,SACM30,"-1,361.14",OSJ  - Old Station House
http://statistics.data.gov.uk/id/local-authority/38,Oxfordshire County Council,Care Homes - Over 65 Physical Sypport,10/03/2023,5686,,3111378395,SACP30,"-1,335.29",Orders of St John
http://statistics.data.gov.uk/id/local-authority/38,Oxfordshire County Council,NURSERY ED FUND,30/03/2023,5537,Payments to Other Establishments,3111397184,EL0022,"-1,331.16",Early Days Nursery Schoo
http://statistics.data.gov.uk/id/local-authority/38,Oxfordshire County Council,Vegetation Mgmt,15/03/2023,5526,Payments to Private Contractors,2201091727,NTH430,"-1,321.03",Milestone Infrastructure Limited
http://statistics.data.gov.uk/id/local-authority/38,Oxfordshire County Council,Care Homes - Over 65 Physical Sypport,10/03/2023,5687,,3111379161,SACP30,"-1,315.29",Beech Haven Care Home
http://statistics.data.gov.uk/id/local-authority/38,Oxfordshire County Council,NURSERY ED FUND,30/03/2023,5537,Payments to Other Establishments,3111397643,EL0022,"-1,305.00",Botley Primary School
http://statistics.data.gov.uk/id/local-authority/38,Oxfordshire County Council,NURSERY ED FUND,30/03/2023,5537,Payments to Other Establishments,3111397194,EL0022,"-1,278.96",Early Days Nursery Schoo
http://statistics.data.gov.uk/id/local-authority/38,Oxfordshire County Council,NURSERY ED FUND,15/03/2023,5537,Payments to Other Establishments,3111384784,EL0022,"-1,278.90",Little Dots Daycare Ltd
http://statistics.data.gov.uk/id/local-authority/38,Oxfordshire County Council,LAC PUPIL PREMIUM,30/03/2023,5537,Payments to Other Establishments,3111396339,EP1395,"-1,255.00",Orchard Meadow School
http://statistics.data.gov.uk/id/local-authority/38,Oxfordshire County Council,NURSERY ED FUND,30/03/2023,5537,Payments to Other Establishments,3111396853,EL0022,"-1,252.80",Hanborough Meadows Pre-School
http://statistics.data.gov.uk/id/local-authority/38,Oxfordshire County Council,NURSERY ED FUND,30/03/2023,5537,Payments to Other Establishments,3111396859,EL0022,"-1,252.80",Lake Street Nursery
http://statistics.data.gov.uk/id/local-authority/38,Oxfordshire County Council,Support at Home 65+ Physical Support,10/03/2023,5686,,3111377825,SACP40,"-1,247.71",Orders of St John
http://statistics.data.gov.uk/id/local-authority/38,Oxfordshire County Council,FOSTERING MAIN,28/03/2023,5541,B*Foster Parents,3111393416,SCP501,"-1,170.00",Redacted Personal Data
http://statistics.data.gov.uk/id/local-authority/38,Oxfordshire County Council,Early Years SEN Funding,17/03/2023,5537,Payments to Other Establishments,3111385485,ES1771,"-1,155.00",Julia Durbin Day Nursery
http://statistics.data.gov.uk/id/local-authority/38,Oxfordshire County Council,NURSERY ED FUND,30/03/2023,5537,Payments to Other Establishments,3111396793,EL0022,"-1,148.40",Long Wittenham Pre-School
http://statistics.data.gov.uk/id/local-authority/38,Oxfordshire County Council,CHC Fast Track - Sup at Homes - Over 65,16/03/2023,5691,,3111384985,SAHE40,"-1,134.00",Cherry Care Services
http://statistics.data.gov.uk/id/local-authority/38,Oxfordshire County Council,NURSERY ED FUND,30/03/2023,5537,Payments to Other Establishments,3111397181,EL0022,"-1,122.36",Early Days Nursery Schoo
http://statistics.data.gov.uk/id/local-authority/38,Oxfordshire County Council,LEGAL BUDGET,08/03/2023,5251,Legal Costs,2201088788,SCP655,"-1,110.00",Boardman Hawkins and Osborne
http://statistics.data.gov.uk/id/local-authority/38,Oxfordshire County Council,LEGAL BUDGET,08/03/2023,5251,Legal Costs,3111376562,SCP655,"-1,110.00",Boardman Hawkins and Osborne
http://statistics.data.gov.uk/id/local-authority/38,Oxfordshire County Council,NURSERY ED FUND,30/03/2023,5537,Payments to Other Establishments,3111396865,EL0022,"-1,096.20",Lake Street Nursery
http://statistics.data.gov.uk/id/local-authority/38,Oxfordshire County Council,NURSERY ED FUND,30/03/2023,5537,Payments to Other Establishments,3111396946,EL0022,"-1,096.20",St Nicholas CE Infants'School
http://statistics.data.gov.uk/id/local-authority/38,Oxfordshire County Council,NURSERY ED FUND,30/03/2023,5537,Payments to Other Establishments,3111397667,EL0022,"-1,096.20",Windrush Church of England Primary
http://statistics.data.gov.uk/id/local-authority/38,Oxfordshire County Council,YPSH Int Prop Management,29/03/2023,5785,Client Lodgings and Accommodation,3111395112,SCT150,"-1,078.32",Response Organisation
http://statistics.data.gov.uk/id/local-authority/38,Oxfordshire County Council,CHC Fast Track - Care Homes - Over 65,10/03/2023,5687,,3111380192,SAHE30,"-1,071.43",LAWTON GROUP LTD
http://statistics.data.gov.uk/id/local-authority/38,Oxfordshire County Council,2 YEAR OLD FUNDING,30/03/2023,5537,Payments to Other Establishments,3111397341,EL1442,"-1,060.20",Abingdon Kindergarten (Loyd Close)
http://statistics.data.gov.uk/id/local-authority/38,Oxfordshire County Council,2 YEAR OLD FUNDING,30/03/2023,5537,Payments to Other Establishments,3111396867,EL1442,"-1,060.20",Lake Street Nursery
http://statistics.data.gov.uk/id/local-authority/38,Oxfordshire County Council,2 YEAR OLD FUNDING,30/03/2023,5537,Payments to Other Establishments,3111397524,EL1442,"-1,060.20",Willowcroft Community School
http://statistics.data.gov.uk/id/local-authority/38,Oxfordshire County Council,Senior Leadership Team,29/03/2023,4641,Catering Provisions,2201097023,SST711,"-1,050.00",Oxford Active Limited
http://statistics.data.gov.uk/id/local-authority/38,Oxfordshire County Council,Funded Nursing Care  - Over 65,10/03/2023,5692,,3111379833,SAHF30,"-1,045.95",CHURCHFIELDS CARE HOME
http://statistics.data.gov.uk/id/local-authority/38,Oxfordshire County Council,Support at Home 65+ Physical Support,28/03/2023,5689,,3111394007,SACP40,"-1,036.06",Alina Homecare Ltd
http://statistics.data.gov.uk/id/local-authority/38,Oxfordshire County Council,CHC Fast Track - Care Homes - Over 65,10/03/2023,5687,,3111381094,SAHE30,"-1,022.86",SANCTUARY CARE PROPERTY (2) LTD
http://statistics.data.gov.uk/id/local-authority/38,Oxfordshire County Council,Funded Nursing Care  - Over 65,10/03/2023,5692,,3111381096,SAHF30,"-1,016.07",SANCTUARY CARE PROPERTY (2) LTD
http://statistics.data.gov.uk/id/local-authority/38,Oxfordshire County Council,HIF2 Team,15/03/2023,2040,Agency Staff,2201091531,N93740,"-1,010.40",Faithful & Gould
http://statistics.data.gov.uk/id/local-authority/38,Oxfordshire County Council,SI EQUIPMENT,29/03/2023,4494,Purchase of IT Equipment,2201097366,EP0690,"-1,000.99",Insight Direct (UK) Ltd
http://statistics.data.gov.uk/id/local-authority/38,Oxfordshire County Council,Reactive Maintenance,29/03/2023,3821,Grounds Maintenance Contracts,2201096846,K10200,"-1,000.00",BARNES AND WELLS TREE CARE LTD
http://statistics.data.gov.uk/id/local-authority/38,Oxfordshire County Council,Support at Home U65 Learning Disability,03/03/2023,5227,Other Transport Arrangements,3111374258,SACL20,"-1,000.00",BORJAN LTD
http://statistics.data.gov.uk/id/local-authority/38,Oxfordshire County Council,2 YEAR OLD FUNDING,30/03/2023,5537,Payments to Other Establishments,3111396792,EL1442,-989.52,Burford Pre-School
http://statistics.data.gov.uk/id/local-authority/38,Oxfordshire County Council,NURSERY ED FUND,30/03/2023,5537,Payments to Other Establishments,3111396814,EL0022,-975.6,Burford Pre-School
http://statistics.data.gov.uk/id/local-authority/38,Oxfordshire County Council,Early Years Pupil Premium,30/03/2023,5537,Payments to Other Establishments,3111396816,EL0885,-975.6,Burford Pre-School
http://statistics.data.gov.uk/id/local-authority/38,Oxfordshire County Council,Early Years Pupil Premium,30/03/2023,5537,Payments to Other Establishments,3111396944,EL0885,-975.6,Thameside Primary School
http://statistics.data.gov.uk/id/local-authority/38,Oxfordshire County Council,NURSERY ED FUND,30/03/2023,5537,Payments to Other Establishments,3111397242,EL0022,-975.6,Willow Cottage Kindergar
http://statistics.data.gov.uk/id/local-authority/38,Oxfordshire County Council,Care Homes - Over 65 Memory & Cognition,10/03/2023,5686,,3111380494,SACC30,-975,Heathfield House Nursing Home
http://statistics.data.gov.uk/id/local-authority/38,Oxfordshire County Council,NURSERY ED FUND,30/03/2023,5537,Payments to Other Establishments,3111397393,EL0022,-974.04,Treetops Nursery
http://statistics.data.gov.uk/id/local-authority/38,Oxfordshire County Council,West Berkshire Adoption Support Fund,15/03/2023,4861,Hired and Contracted Services,2201091741,ATV806,-960,The Annex Project
http://statistics.data.gov.uk/id/local-authority/38,Oxfordshire County Council,LIBRARY COLLECTIONS,29/03/2023,4539,"Books, DVDs and CDs",2201096999,M37000,-947.99,Blackwells Music Shop
http://statistics.data.gov.uk/id/local-authority/38,Oxfordshire County Council,Support at Home U65 Other /Soc Isolation,10/03/2023,5690,,3111377941,SACV20,-940.37,ADVANCE HOUSING & SUPPORT LTD
http://statistics.data.gov.uk/id/local-authority/38,Oxfordshire County Council,Support at Home U65 Learning Disability,10/03/2023,5690,,3111377954,SACL20,-940.37,ADVANCE HOUSING & SUPPORT LTD
http://statistics.data.gov.uk/id/local-authority/38,Oxfordshire County Council,NURSERY ED FUND,30/03/2023,5537,Payments to Other Establishments,3111397258,EL0022,-939.6,Great Tew Pre-School
http://statistics.data.gov.uk/id/local-authority/38,Oxfordshire County Council,NURSERY ED FUND,30/03/2023,5537,Payments to Other Establishments,3111397401,EL0022,-939.6,Little Stars Nursery
http://statistics.data.gov.uk/id/local-authority/38,Oxfordshire County Council,Funded Nursing Care  - Over 65,10/03/2023,5692,,3111381042,SAHF30,-926.41,Richmond Letcombe Regis
http://statistics.data.gov.uk/id/local-authority/38,Oxfordshire County Council,NURSERY ED FUND,30/03/2023,5537,Payments to Other Establishments,3111396941,EL0022,-913.5,Bainton Road Nursery
http://statistics.data.gov.uk/id/local-authority/38,Oxfordshire County Council,NURSERY ED FUND,30/03/2023,5537,Payments to Other Establishments,3111397302,EL0022,-904.8,Whitchurch Pre-School Group
http://statistics.data.gov.uk/id/local-authority/38,Oxfordshire County Council,Household Support Fund 3,29/03/2023,7690,Additional Grant for Schools,3111396166,A16009,-900,St John Fisher
http://statistics.data.gov.uk/id/local-authority/38,Oxfordshire County Council,Household Support Fund 3,29/03/2023,7690,Additional Grant for Schools,3111396169,A16009,-900,St John Fisher
http://statistics.data.gov.uk/id/local-authority/38,Oxfordshire County Council,NURSERY ED FUND,30/03/2023,5537,Payments to Other Establishments,3111396939,EL0022,-894.3,Thameside Primary School
http://statistics.data.gov.uk/id/local-authority/38,Oxfordshire County Council,NURSERY ED FUND,30/03/2023,5537,Payments to Other Establishments,3111397932,EL0022,-887.4,Michael Moody
http://statistics.data.gov.uk/id/local-authority/38,Oxfordshire County Council,SEN TRANSPORT,16/03/2023,4320,Pupil / Client Travel Reimbursement,3111384857,ER1860,-883.96,Redacted Personal Data
http://statistics.data.gov.uk/id/local-authority/38,Oxfordshire County Council,Care Homes - Over 65 Physical Sypport,10/03/2023,5685,B*Cycle tracks,3111381135,SACP30,-881.62,Barchester Healthcare Homes Ltd
http://statistics.data.gov.uk/id/local-authority/38,Oxfordshire County Council,Household Support Fund 3,29/03/2023,7690,Additional Grant for Schools,3111396161,A16009,-870,Our Lady of Lourdes
http://statistics.data.gov.uk/id/local-authority/38,Oxfordshire County Council,Support at Home U65 Learning Disability,10/03/2023,5690,,3111377922,SACL20,-868.82,ADVANCE HOUSING & SUPPORT LTD
http://statistics.data.gov.uk/id/local-authority/38,Oxfordshire County Council,FOSTERING MAIN,08/03/2023,5548,B*Fostering - Special Rates & Plus Amou,3111376163,SCP501,-860.86,Redacted Personal Data
http://statistics.data.gov.uk/id/local-authority/38,Oxfordshire County Council,Support at Home 65+ Physical Support,10/03/2023,5686,,3111380063,SACP40,-857.14,Fewcott Healthcare Ltd
http://statistics.data.gov.uk/id/local-authority/38,Oxfordshire County Council,CHC Fast Track - Care Homes - Over 65,10/03/2023,5687,,3111381218,SAHE30,-857.14,Stowford House
http://statistics.data.gov.uk/id/local-authority/38,Oxfordshire County Council,2 YEAR OLD FUNDING,30/03/2023,5537,Payments to Other Establishments,3111396903,EL1442,-848.16,Eynsham Community
http://statistics.data.gov.uk/id/local-authority/38,Oxfordshire County Council,NURSERY ED FUND,30/03/2023,5537,Payments to Other Establishments,3111396848,EL0022,-835.2,Bubbles Pre School
http://statistics.data.gov.uk/id/local-authority/38,Oxfordshire County Council,Care Homes - Over 65 Physical Sypport,10/03/2023,5686,,3111380493,SACP30,-821.43,Heathfield House Nursing Home
http://statistics.data.gov.uk/id/local-authority/38,Oxfordshire County Council,Care Homes - Over 65 Memory & Cognition,10/03/2023,5686,,3111379751,SACC30,-817.71,Cherwood House Care Centre
http://statistics.data.gov.uk/id/local-authority/38,Oxfordshire County Council,Disability Access Fund,08/03/2023,5537,Payments to Other Establishments,3111376308,EL1122,-800,Rainbow Village Nursery
http://statistics.data.gov.uk/id/local-authority/38,Oxfordshire County Council,Support at Home U65 Physical Support,28/03/2023,5699,,3111393878,SACP20,-793.8,Calvary Care Ltd
http://statistics.data.gov.uk/id/local-authority/38,Oxfordshire County Council,,23/03/2023,1320,Childcare Vouchers A/C,3111387761,,-790,Childcare Vouchers Ltd
http://statistics.data.gov.uk/id/local-authority/38,Oxfordshire County Council,Early Years SEN Funding,27/03/2023,5537,Payments to Other Establishments,3111388601,ES1771,-785.4,Crowmarsh Cifford Ce School
http://statistics.data.gov.uk/id/local-authority/38,Oxfordshire County Council,NURSERY ED FUND,30/03/2023,5537,Payments to Other Establishments,3111397317,EL0022,-783,Abingdon Kindergarten (Loyd Close)
http://statistics.data.gov.uk/id/local-authority/38,Oxfordshire County Council,NURSERY ED FUND,30/03/2023,5537,Payments to Other Establishments,3111397319,EL0022,-783,Abingdon Kindergarten (Loyd Close)
http://statistics.data.gov.uk/id/local-authority/38,Oxfordshire County Council,NURSERY ED FUND,30/03/2023,5537,Payments to Other Establishments,3111397331,EL0022,-783,Abingdon Kindergarten (Loyd Close)
http://statistics.data.gov.uk/id/local-authority/38,Oxfordshire County Council,NURSERY ED FUND,30/03/2023,5537,Payments to Other Establishments,3111397332,EL0022,-783,Abingdon Kindergarten (Loyd Close)
http://statistics.data.gov.uk/id/local-authority/38,Oxfordshire County Council,NURSERY ED FUND,30/03/2023,5537,Payments to Other Establishments,3111397334,EL0022,-783,Abingdon Kindergarten (Loyd Close)
http://statistics.data.gov.uk/id/local-authority/38,Oxfordshire County Council,NURSERY ED FUND,30/03/2023,5537,Payments to Other Establishments,3111397335,EL0022,-783,Abingdon Kindergarten (Loyd Close)
http://statistics.data.gov.uk/id/local-authority/38,Oxfordshire County Council,NURSERY ED FUND,30/03/2023,5537,Payments to Other Establishments,3111397339,EL0022,-783,Abingdon Kindergarten (Loyd Close)
http://statistics.data.gov.uk/id/local-authority/38,Oxfordshire County Council,NURSERY ED FUND,30/03/2023,5537,Payments to Other Establishments,3111397342,EL0022,-783,Abingdon Kindergarten (Loyd Close)
http://statistics.data.gov.uk/id/local-authority/38,Oxfordshire County Council,NURSERY ED FUND,30/03/2023,5537,Payments to Other Establishments,3111397343,EL0022,-783,Abingdon Kindergarten (Loyd Close)
http://statistics.data.gov.uk/id/local-authority/38,Oxfordshire County Council,NURSERY ED FUND,30/03/2023,5537,Payments to Other Establishments,3111397344,EL0022,-783,Abingdon Kindergarten (Loyd Close)
http://statistics.data.gov.uk/id/local-authority/38,Oxfordshire County Council,NURSERY ED FUND,30/03/2023,5537,Payments to Other Establishments,3111397345,EL0022,-783,Abingdon Kindergarten (Loyd Close)
http://statistics.data.gov.uk/id/local-authority/38,Oxfordshire County Council,NURSERY ED FUND,30/03/2023,5537,Payments to Other Establishments,3111397244,EL0022,-783,Annabelles Nursery
http://statistics.data.gov.uk/id/local-authority/38,Oxfordshire County Council,NURSERY ED FUND,30/03/2023,5537,Payments to Other Establishments,3111396965,EL0022,-783,Badgemore Preschool
http://statistics.data.gov.uk/id/local-authority/38,Oxfordshire County Council,NURSERY ED FUND,30/03/2023,5537,Payments to Other Establishments,3111397645,EL0022,-783,Botley Primary School
http://statistics.data.gov.uk/id/local-authority/38,Oxfordshire County Council,NURSERY ED FUND,30/03/2023,5537,Payments to Other Establishments,3111397291,EL0022,-783,Brightwell Pre-school
http://statistics.data.gov.uk/id/local-authority/38,Oxfordshire County Council,NURSERY ED FUND,30/03/2023,5537,Payments to Other Establishments,3111396815,EL0022,-783,Brize Norton Village Pre
http://statistics.data.gov.uk/id/local-authority/38,Oxfordshire County Council,NURSERY ED FUND,30/03/2023,5537,Payments to Other Establishments,3111396813,EL0022,-783,Burford Pre-School
http://statistics.data.gov.uk/id/local-authority/38,Oxfordshire County Council,NURSERY ED FUND,30/03/2023,5537,Payments to Other Establishments,3111396894,EL0022,-783,Child First (Banbury)
http://statistics.data.gov.uk/id/local-authority/38,Oxfordshire County Council,NURSERY ED FUND,30/03/2023,5537,Payments to Other Establishments,3111396849,EL0022,-783,Cogges Under 5s Associa
http://statistics.data.gov.uk/id/local-authority/38,Oxfordshire County Council,NURSERY ED FUND,30/03/2023,5537,Payments to Other Establishments,3111397187,EL0022,-783,Early Days Nursery Schoo
http://statistics.data.gov.uk/id/local-authority/38,Oxfordshire County Council,NURSERY ED FUND,30/03/2023,5537,Payments to Other Establishments,3111396856,EL0022,-783,Hanborough Meadows Pre-School
http://statistics.data.gov.uk/id/local-authority/38,Oxfordshire County Council,NURSERY ED FUND,30/03/2023,5537,Payments to Other Establishments,3111396864,EL0022,-783,Lake Street Nursery
http://statistics.data.gov.uk/id/local-authority/38,Oxfordshire County Council,NURSERY ED FUND,30/03/2023,5537,Payments to Other Establishments,3111396787,EL0022,-783,Long Wittenham Pre-School
http://statistics.data.gov.uk/id/local-authority/38,Oxfordshire County Council,NURSERY ED FUND,30/03/2023,5537,Payments to Other Establishments,3111397568,EL0022,-783,Mortimer Hall Pre-School CIO
http://statistics.data.gov.uk/id/local-authority/38,Oxfordshire County Council,NURSERY ED FUND,30/03/2023,5537,Payments to Other Establishments,3111397483,EL0022,-783,Rainbows Day Nursery
http://statistics.data.gov.uk/id/local-authority/38,Oxfordshire County Council,NURSERY ED FUND,30/03/2023,5537,Payments to Other Establishments,3111396959,EL0022,-783,Roots for Life Thame
http://statistics.data.gov.uk/id/local-authority/38,Oxfordshire County Council,NURSERY ED FUND,30/03/2023,5537,Payments to Other Establishments,3111396964,EL0022,-783,Roots for Life Thame
http://statistics.data.gov.uk/id/local-authority/38,Oxfordshire County Council,NURSERY ED FUND,30/03/2023,5537,Payments to Other Establishments,3111396979,EL0022,-783,Sibford Gower Endowed Primary Schoo
http://statistics.data.gov.uk/id/local-authority/38,Oxfordshire County Council,NURSERY ED FUND,30/03/2023,5537,Payments to Other Establishments,3111397179,EL0022,-783,Small World Nursery and
http://statistics.data.gov.uk/id/local-authority/38,Oxfordshire County Council,NURSERY ED FUND,30/03/2023,5537,Payments to Other Establishments,3111396945,EL0022,-783,Thameside Primary School
http://statistics.data.gov.uk/id/local-authority/38,Oxfordshire County Council,NURSERY ED FUND,30/03/2023,5537,Payments to Other Establishments,3111396947,EL0022,-783,Thameside Primary School
http://statistics.data.gov.uk/id/local-authority/38,Oxfordshire County Council,NURSERY ED FUND,30/03/2023,5537,Payments to Other Establishments,3111396954,EL0022,-783,Thameside Primary School
http://statistics.data.gov.uk/id/local-authority/38,Oxfordshire County Council,NURSERY ED FUND,30/03/2023,5537,Payments to Other Establishments,3111397577,EL0022,-783,Thameside Primary School
http://statistics.data.gov.uk/id/local-authority/38,Oxfordshire County Council,NURSERY ED FUND,30/03/2023,5537,Payments to Other Establishments,3111396967,EL0022,-783,The Close Day Nursery Opco Ltd
http://statistics.data.gov.uk/id/local-authority/38,Oxfordshire County Council,NURSERY ED FUND,30/03/2023,5537,Payments to Other Establishments,3111396969,EL0022,-783,The Close Day Nursery Opco Ltd
http://statistics.data.gov.uk/id/local-authority/38,Oxfordshire County Council,NURSERY ED FUND,30/03/2023,5537,Payments to Other Establishments,3111396970,EL0022,-783,The Close Day Nursery Opco Ltd
http://statistics.data.gov.uk/id/local-authority/38,Oxfordshire County Council,NURSERY ED FUND,30/03/2023,5537,Payments to Other Establishments,3111397610,EL0022,-783,The Old Station Nursery Heyford Par
http://statistics.data.gov.uk/id/local-authority/38,Oxfordshire County Council,NURSERY ED FUND,30/03/2023,5537,Payments to Other Establishments,3111396909,EL0022,-783,The Warriner Multi Academy Trust
http://statistics.data.gov.uk/id/local-authority/38,Oxfordshire County Council,Early Years Pupil Premium,30/03/2023,5537,Payments to Other Establishments,3111397375,EL0885,-780.48,Camel Pre-School (PFSU)
http://statistics.data.gov.uk/id/local-authority/38,Oxfordshire County Council,Household Support Fund 3,29/03/2023,7690,Additional Grant for Schools,3111396158,A16009,-780,Our Lady of Lourdes
http://statistics.data.gov.uk/id/local-authority/38,Oxfordshire County Council,NURSERY ED FUND,30/03/2023,5537,Payments to Other Establishments,3111397409,EL0022,-773.19,Little Stars Nursery
http://statistics.data.gov.uk/id/local-authority/38,Oxfordshire County Council,Care Homes - Over 65 Leaning Disability,10/03/2023,5686,,3111377404,SACL30,-736.28,Orders of St John
http://statistics.data.gov.uk/id/local-authority/38,Oxfordshire County Council,Household Support Fund 3,23/03/2023,7690,Additional Grant for Schools,3111388486,A16009,-735,Rose Hill Primary School
http://statistics.data.gov.uk/id/local-authority/38,Oxfordshire County Council,SEN Inclusion Fund,30/03/2023,5537,Payments to Other Establishments,3111397796,EL1128,-731.5,Positive Steps Day Nursery
http://statistics.data.gov.uk/id/local-authority/38,Oxfordshire County Council,MUSEUMS COLLECTIONS,16/03/2023,4940,Other Services,2201092173,M56000,-720.21,Rentokil Hygiene
http://statistics.data.gov.uk/id/local-authority/38,Oxfordshire County Council,Wokingham Adoption Support Fund,15/03/2023,4861,Hired and Contracted Services,2201091949,ATV805,-720,The Annex Project
http://statistics.data.gov.uk/id/local-authority/38,Oxfordshire County Council,NURSERY ED FUND,30/03/2023,5537,Payments to Other Establishments,3111397646,EL0022,-717.75,Botley Primary School
http://statistics.data.gov.uk/id/local-authority/38,Oxfordshire County Council,NURSERY ED FUND,30/03/2023,5537,Payments to Other Establishments,3111397517,EL0022,-717.75,Willowcroft Community School
http://statistics.data.gov.uk/id/local-authority/38,Oxfordshire County Council,LD Continuing Care - Sup at Home - U65,08/03/2023,5691,,3111376597,SAHL20,-712.8,Paterson Recruitment
http://statistics.data.gov.uk/id/local-authority/38,Oxfordshire County Council,NURSERY ED FUND,30/03/2023,5537,Payments to Other Establishments,3111397416,EL0022,-711.24,Ascott-under-Wychwood Pre-School
http://statistics.data.gov.uk/id/local-authority/38,Oxfordshire County Council,COMMUNICATIONS,29/03/2023,5085,Radio Costs,2201097476,F30000,-710,Daisy IT Managed Services Ltd
http://statistics.data.gov.uk/id/local-authority/38,Oxfordshire County Council,PSYCHOLOGY SERVICE,29/03/2023,4861,Hired and Contracted Services,3111395060,EP0674,-706.67,St Gregory the Great Catholic
http://statistics.data.gov.uk/id/local-authority/38,Oxfordshire County Council,SEN TRANSPORT,24/03/2023,4330,Transport to School Activities,3111388185,ER1860,-694.6,24/7 LTD
http://statistics.data.gov.uk/id/local-authority/38,Oxfordshire County Council,REAL COST ALLOWANCES,27/03/2023,5662,B*Christmas Allowance,3111388602,SCP552,-693.57,Redacted Personal Data
http://statistics.data.gov.uk/id/local-authority/38,Oxfordshire County Council,Support at Home 65+ Physical Support,28/03/2023,5699,,3111393800,SACP40,-693,All Care GB Ltd
http://statistics.data.gov.uk/id/local-authority/38,Oxfordshire County Council,LIBRARY COLLECTIONS,29/03/2023,4539,"Books, DVDs and CDs",2201097006,M37000,-692,Blackwells Music Shop
http://statistics.data.gov.uk/id/local-authority/38,Oxfordshire County Council,Care Homes - Over 65 Physical Sypport,10/03/2023,5686,,3111377699,SACP30,-680.57,Orders of St John
http://statistics.data.gov.uk/id/local-authority/38,Oxfordshire County Council,POST18 UASC DCSF FND,29/03/2023,5785,Client Lodgings and Accommodation,3111395137,SCP810,-678.83,Response Organisation
http://statistics.data.gov.uk/id/local-authority/38,Oxfordshire County Council,NURSERY ED FUND,30/03/2023,5537,Payments to Other Establishments,3111396912,EL0022,-678.6,Standlake CE Primary School
http://statistics.data.gov.uk/id/local-authority/38,Oxfordshire County Council,Household Support Fund 3,23/03/2023,7690,Additional Grant for Schools,3111388423,A16009,-675,Rose Hill Primary School
http://statistics.data.gov.uk/id/local-authority/38,Oxfordshire County Council,Support at Home 65+ Physical Support,28/03/2023,5699,,3111393799,SACP40,-674.1,All Care GB Ltd
http://statistics.data.gov.uk/id/local-authority/38,Oxfordshire County Council,Support at Home 65+ Physical Support,28/03/2023,5699,,3111393957,SACP40,-665.56,Care Outlook Ltd
http://statistics.data.gov.uk/id/local-authority/38,Oxfordshire County Council,Support at Home U65 Learning Disability,03/03/2023,5227,Other Transport Arrangements,3111374259,SACL20,-660,BORJAN LTD
http://statistics.data.gov.uk/id/local-authority/38,Oxfordshire County Council,MAINSTREAM-SECONDARY,17/03/2023,4322,"Season Tickets - Bus, Rail & Ferry",3111385498,ER1251,-657.5,Oxford Bus Company Ltd
http://statistics.data.gov.uk/id/local-authority/38,Oxfordshire County Council,Funded Nursing Care  - Over 65,10/03/2023,5692,,3111381816,SAHF30,-657.45,MARIA MALLABAND CARE GROUP
http://statistics.data.gov.uk/id/local-authority/38,Oxfordshire County Council,SEN Inclusion Fund,30/03/2023,5537,Payments to Other Establishments,3111397862,EL1128,-654.5,Grow Learn Play Project CIC
http://statistics.data.gov.uk/id/local-authority/38,Oxfordshire County Council,NURSERY ED FUND,30/03/2023,5537,Payments to Other Establishments,3111396797,EL0022,-652.5,Long Wittenham Pre-School
http://statistics.data.gov.uk/id/local-authority/38,Oxfordshire County Council,NURSERY ED FUND,30/03/2023,5537,Payments to Other Establishments,3111397207,EL0022,-652.5,Long Wittenham Pre-School
http://statistics.data.gov.uk/id/local-authority/38,Oxfordshire County Council,NURSERY ED FUND,30/03/2023,5537,Payments to Other Establishments,3111397647,EL0022,-650.39,Botley Primary School
http://statistics.data.gov.uk/id/local-authority/38,Oxfordshire County Council,LEGAL BUDGET,29/03/2023,5251,Legal Costs,2201097291,SCP655,-645,NGS Medicolegal Ltd
http://statistics.data.gov.uk/id/local-authority/38,Oxfordshire County Council,Support at Home 65+ Physical Support,10/03/2023,5685,B*Cycle tracks,3111378560,SACP40,-628.28,Orders of St John
http://statistics.data.gov.uk/id/local-authority/38,Oxfordshire County Council,NURSERY ED FUND,30/03/2023,5537,Payments to Other Establishments,3111396860,EL0022,-626.4,Lake Street Nursery
http://statistics.data.gov.uk/id/local-authority/38,Oxfordshire County Council,NURSERY ED FUND,30/03/2023,5537,Payments to Other Establishments,3111396863,EL0022,-626.4,Lake Street Nursery
http://statistics.data.gov.uk/id/local-authority/38,Oxfordshire County Council,NURSERY ED FUND,30/03/2023,5537,Payments to Other Establishments,3111397742,EL0022,-626.4,Nara Horton
http://statistics.data.gov.uk/id/local-authority/38,Oxfordshire County Council,NURSERY ED FUND,30/03/2023,5537,Payments to Other Establishments,3111397186,EL0022,-626.4,Small World Nursery and
http://statistics.data.gov.uk/id/local-authority/38,Oxfordshire County Council,NURSERY ED FUND,30/03/2023,5537,Payments to Other Establishments,3111396872,EL0022,-626.4,The Lighthouse Nursery
http://statistics.data.gov.uk/id/local-authority/38,Oxfordshire County Council,NURSERY ED FUND,30/03/2023,5537,Payments to Other Establishments,3111396905,EL0022,-626.4,The Warriner Multi Academy Trust
http://statistics.data.gov.uk/id/local-authority/38,Oxfordshire County Council,2 YEAR OLD FUNDING,30/03/2023,5537,Payments to Other Establishments,3111396895,EL1442,-618.45,Child First (Banbury)
http://statistics.data.gov.uk/id/local-authority/38,Oxfordshire County Council,NURSERY ED FUND,30/03/2023,5537,Payments to Other Establishments,3111397728,EL0022,-609,The Old Station Nursery Oxford
http://statistics.data.gov.uk/id/local-authority/38,Oxfordshire County Council,NURSERY ED FUND,30/03/2023,5537,Payments to Other Establishments,3111396791,EL0022,-600.3,Long Wittenham Pre-School
http://statistics.data.gov.uk/id/local-authority/38,Oxfordshire County Council,Funded Nursing Care  - Over 65,10/03/2023,5692,,3111381800,SAHF30,-597.69,MARIA MALLABAND CARE GROUP
http://statistics.data.gov.uk/id/local-authority/38,Oxfordshire County Council,Support at Home 65+ Physical Support,28/03/2023,5699,,3111393969,SACP40,-594.26,Care Outlook Ltd
http://statistics.data.gov.uk/id/local-authority/38,Oxfordshire County Council,NURSERY ED FUND,30/03/2023,5537,Payments to Other Establishments,3111396855,EL0022,-587.28,Ascott-under-Wychwood Pre-School
http://statistics.data.gov.uk/id/local-authority/38,Oxfordshire County Council,NURSERY ED FUND,30/03/2023,5537,Payments to Other Establishments,3111397722,EL0022,-587.25,Finmere Primary School
http://statistics.data.gov.uk/id/local-authority/38,Oxfordshire County Council,NURSERY ED FUND,30/03/2023,5537,Payments to Other Establishments,3111397266,EL0022,-587.25,Woodcote Pre-School Group
http://statistics.data.gov.uk/id/local-authority/38,Oxfordshire County Council,SEN Inclusion Fund,30/03/2023,5537,Payments to Other Establishments,3111397856,EL1128,-577.5,Grow Learn Play Project CIC
http://statistics.data.gov.uk/id/local-authority/38,Oxfordshire County Council,SEN Inclusion Fund,30/03/2023,5537,Payments to Other Establishments,3111397859,EL1128,-577.5,Grow Learn Play Project CIC
http://statistics.data.gov.uk/id/local-authority/38,Oxfordshire County Council,NURSERY ED FUND,30/03/2023,5537,Payments to Other Establishments,3111396818,EL0022,-574.2,Burford Pre-School
http://statistics.data.gov.uk/id/local-authority/38,Oxfordshire County Council,NURSERY ED FUND,30/03/2023,5537,Payments to Other Establishments,3111396878,EL0022,-574.2,Harpsden Pre-School Playgroup
http://statistics.data.gov.uk/id/local-authority/38,Oxfordshire County Council,NURSERY ED FUND,30/03/2023,5537,Payments to Other Establishments,3111396783,EL0022,-574.2,Long Wittenham Pre-School
http://statistics.data.gov.uk/id/local-authority/38,Oxfordshire County Council,NURSERY ED FUND,30/03/2023,5537,Payments to Other Establishments,3111396821,EL0022,-569.1,Rush Common Pre-School
http://statistics.data.gov.uk/id/local-authority/38,Oxfordshire County Council,TRANSPORT COSTS,07/03/2023,4330,Transport to School Activities,3111374732,SCT190,-550,BORJAN LTD
http://statistics.data.gov.uk/id/local-authority/38,Oxfordshire County Council,HIGHWAYS GENERAL,22/03/2023,4001,Uniform Business Rates,3111387269,N20100,-548.99,South Oxfordshire District Council
http://statistics.data.gov.uk/id/local-authority/38,Oxfordshire County Council,NURSERY ED FUND,30/03/2023,5537,Payments to Other Establishments,3111396842,EL0022,-548.1,Cogges Under 5s Associa
http://statistics.data.gov.uk/id/local-authority/38,Oxfordshire County Council,NURSERY ED FUND,30/03/2023,5537,Payments to Other Establishments,3111396846,EL0022,-548.1,Cogges Under 5s Associa
http://statistics.data.gov.uk/id/local-authority/38,Oxfordshire County Council,NURSERY ED FUND,30/03/2023,5537,Payments to Other Establishments,3111397451,EL0022,-543.75,Busy Bees Day Nursery (Bicester)
http://statistics.data.gov.uk/id/local-authority/38,Oxfordshire County Council,SEN Inclusion Fund,07/03/2023,5537,Payments to Other Establishments,3111374871,EL1128,-539,Grovelands Park Pre-School
http://statistics.data.gov.uk/id/local-authority/38,Oxfordshire County Council,SEN Inclusion Fund,30/03/2023,5537,Payments to Other Establishments,3111397853,EL1128,-539,Grow Learn Play Project CIC
http://statistics.data.gov.uk/id/local-authority/38,Oxfordshire County Council,SEN Inclusion Fund,07/03/2023,5537,Payments to Other Establishments,3111375078,EL1128,-539,John Henry Newman Academy
http://statistics.data.gov.uk/id/local-authority/38,Oxfordshire County Council,MAINSTREAM-SECONDARY,30/03/2023,4322,"Season Tickets - Bus, Rail & Ferry",3111396368,ER1251,-535,Carousel Buses Ltd
http://statistics.data.gov.uk/id/local-authority/38,Oxfordshire County Council,2 YEAR OLD FUNDING,30/03/2023,5537,Payments to Other Establishments,3111396802,EL1442,-530.1,Rainbow Pre-School
http://statistics.data.gov.uk/id/local-authority/38,Oxfordshire County Council,2 YEAR OLD FUNDING,30/03/2023,5537,Payments to Other Establishments,3111396805,EL1442,-530.1,Rainbow Pre-School
http://statistics.data.gov.uk/id/local-authority/38,Oxfordshire County Council,Support at Home 65+ Physical Support,28/03/2023,5699,,3111394782,SACP40,-522.9,PLL Care Services
http://statistics.data.gov.uk/id/local-authority/38,Oxfordshire County Council,NURSERY ED FUND,30/03/2023,5537,Payments to Other Establishments,3111397290,EL0022,-522,Brightwell Pre-school
http://statistics.data.gov.uk/id/local-authority/38,Oxfordshire County Council,NURSERY ED FUND,30/03/2023,5537,Payments to Other Establishments,3111397452,EL0022,-522,Busy Bees Day Nursery (Bicester)
http://statistics.data.gov.uk/id/local-authority/38,Oxfordshire County Council,NURSERY ED FUND,30/03/2023,5537,Payments to Other Establishments,3111397369,EL0022,-522,Camel Pre-School (PFSU)
http://statistics.data.gov.uk/id/local-authority/38,Oxfordshire County Council,NURSERY ED FUND,30/03/2023,5537,Payments to Other Establishments,3111397459,EL0022,-522,Child First (Bicester)
http://statistics.data.gov.uk/id/local-authority/38,Oxfordshire County Council,NURSERY ED FUND,30/03/2023,5537,Payments to Other Establishments,3111396785,EL0022,-522,Long Wittenham Pre-School
http://statistics.data.gov.uk/id/local-authority/38,Oxfordshire County Council,Care Homes - Over 65 Memory & Cognition,10/03/2023,5685,B*Cycle tracks,3111378570,SACC30,-519.5,Orders of St John
http://statistics.data.gov.uk/id/local-authority/38,Oxfordshire County Council,NURSERY ED FUND,30/03/2023,5537,Payments to Other Establishments,3111396810,EL0022,-508.98,Paddocks Pre-School
http://statistics.data.gov.uk/id/local-authority/38,Oxfordshire County Council,Funded Nursing Care  - Over 65,10/03/2023,5692,,3111379142,SAHF30,-508.03,Banbury Heights Nursing Home
http://statistics.data.gov.uk/id/local-authority/38,Oxfordshire County Council,SEN Inclusion Fund,07/03/2023,5537,Payments to Other Establishments,3111374828,EL1128,-500.5,Kiddies Korner
http://statistics.data.gov.uk/id/local-authority/38,Oxfordshire County Council,Fire Protection,16/03/2023,5251,Legal Costs,2201092423,F36000,500,12CP Barristers
http://statistics.data.gov.uk/id/local-authority/38,Oxfordshire County Council,POST 16 SEN,01/03/2023,4330,Transport to School Activities,3111372837,ER0947,500,Ali's Cabs
http://statistics.data.gov.uk/id/local-authority/38,Oxfordshire County Council,Business Intellectual Property Centre,22/03/2023,5051,Provision of Courses,2201094417,M08000,500,Bentley Cook Ltd
http://statistics.data.gov.uk/id/local-authority/38,Oxfordshire County Council,Councillors Priorities Fund,21/03/2023,4940,Other Services,3111386162,A26015,500,Blackbird Leys Adventure Playground
http://statistics.data.gov.uk/id/local-authority/38,Oxfordshire County Council,LEGAL BUDGET,20/03/2023,5251,Legal Costs,2201093317,SCP655,500,Boardman Hawkins and Osborne
http://statistics.data.gov.uk/id/local-authority/38,Oxfordshire County Council,LEGAL BUDGET,31/03/2023,5251,Legal Costs,2201098726,SCP655,500,Boardman Hawkins and Osborne
http://statistics.data.gov.uk/id/local-authority/38,Oxfordshire County Council,Councillors Priorities Fund,01/03/2023,4940,Other Services,3111372723,A26015,500,Cotswold Voluntary Wardens
http://statistics.data.gov.uk/id/local-authority/38,Oxfordshire County Council,LAC PUPIL PREMIUM,20/03/2023,5537,Payments to Other Establishments,3111386014,EP1395,500,Cressex Lodge
http://statistics.data.gov.uk/id/local-authority/38,Oxfordshire County Council,MEADOWBROOK TRANSPT,28/03/2023,4330,Transport to School Activities,3111389271,ER1875,500,Go Green Taxis
http://statistics.data.gov.uk/id/local-authority/38,Oxfordshire County Council,Fostering Panel,03/03/2023,4861,Hired and Contracted Services,2201086656,SCT149,500,Green Light People Solutions
http://statistics.data.gov.uk/id/local-authority/38,Oxfordshire County Council,Fostering Panel,03/03/2023,4861,Hired and Contracted Services,2201086657,SCT149,500,Green Light People Solutions
http://statistics.data.gov.uk/id/local-authority/38,Oxfordshire County Council,Fostering Panel,03/03/2023,4861,Hired and Contracted Services,2201086658,SCT149,500,Green Light People Solutions
http://statistics.data.gov.uk/id/local-authority/38,Oxfordshire County Council,Wokingham Adoption Support Fund,07/03/2023,4861,Hired and Contracted Services,2201088272,ATV805,500,Heads & Hearts Ltd
http://statistics.data.gov.uk/id/local-authority/38,Oxfordshire County Council,MUSIC UNALLOCABLE,03/03/2023,4540,"Educational Supplies, Stationery & Mater",2201086639,EP0796,500,HERITAGE MUSIC
http://statistics.data.gov.uk/id/local-authority/38,Oxfordshire County Council,ICT Operations & Maintenance,20/03/2023,8037,Other In house Fees / Charges,2201093409,R41000,500,Low Voltage UK Ltd
http://statistics.data.gov.uk/id/local-authority/38,Oxfordshire County Council,LEAVING CARE SOUTH,16/03/2023,5394,Other Expenses,3111385076,SCT194,500,Redacted Personal Data
http://statistics.data.gov.uk/id/local-authority/38,Oxfordshire County Council,LAC PUPIL PREMIUM,02/03/2023,5380,"Author, Speaker and Lecturer Fees",2201086433,EP1395,500,Nasen
http://statistics.data.gov.uk/id/local-authority/38,Oxfordshire County Council,Family Solutions Plus Non-staff - North,01/03/2023,5365,Non-Staff Subsistence and Expenses,3500093458,SCT316,500,Redacted Personal Data
http://statistics.data.gov.uk/id/local-authority/38,Oxfordshire County Council,LAC PUPIL PREMIUM,02/03/2023,5380,"Author, Speaker and Lecturer Fees",3111373968,EP1395,500,OCC One Time Vendor
http://statistics.data.gov.uk/id/local-authority/38,Oxfordshire County Council,HIGHWAYS GENERAL,03/03/2023,5055,Insurance Costs,3111374243,N20100,500,OCC One Time Vendor
http://statistics.data.gov.uk/id/local-authority/38,Oxfordshire County Council,HIGHWAYS GENERAL,22/03/2023,5055,Insurance Costs,3111387146,N20100,500,OCC One Time Vendor
http://statistics.data.gov.uk/id/local-authority/38,Oxfordshire County Council,LANDLORD & TENANT,22/03/2023,3945,Rent,3500093968,K10130,500,Oxford City Council
http://statistics.data.gov.uk/id/local-authority/38,Oxfordshire County Council,Support at Home U65 Physical Support,31/03/2023,5227,Other Transport Arrangements,3111398192,SACP20,500,Oxfordlinks
http://statistics.data.gov.uk/id/local-authority/38,Oxfordshire County Council,SEN Alternative Provision,29/03/2023,4861,Hired and Contracted Services,3111396127,ES1800,500,THE DARE2DREAM FOUNDATION
http://statistics.data.gov.uk/id/local-authority/38,Oxfordshire County Council,SEN Alternative Provision,29/03/2023,4861,Hired and Contracted Services,3111396134,ES1800,500,THE DARE2DREAM FOUNDATION
http://statistics.data.gov.uk/id/local-authority/38,Oxfordshire County Council,SEN Miscellaneous Expenditure,08/03/2023,4859,Medical and Counselling Fees,3111385548,ES1778,500,The Owl Centre Ltd
http://statistics.data.gov.uk/id/local-authority/38,Oxfordshire County Council,CAP CHRGES-PREM,06/03/2023,8102,Payments to main contractor,2201087151,ERPCAP,500,tmd Building Consultancy Ltd
http://statistics.data.gov.uk/id/local-authority/38,Oxfordshire County Council,IN YEAR FAIR ACCESS,08/03/2023,5537,Payments to Other Establishments,3111376324,EP1170,500,Wallingford Schools Academy
http://statistics.data.gov.uk/id/local-authority/38,Oxfordshire County Council,Family Solutions Plus Non-staff - North,02/03/2023,5365,Non-Staff Subsistence and Expenses,3500093482,SCT316,500,Redacted Personal Data
http://statistics.data.gov.uk/id/local-authority/38,Oxfordshire County Council,Family Solutions Plus Non-staff - North,03/03/2023,5365,Non-Staff Subsistence and Expenses,3500093507,SCT316,500,Redacted Personal Data
http://statistics.data.gov.uk/id/local-authority/38,Oxfordshire County Council,VOIDS/VACANCY COSTS,10/03/2023,3945,Rent,3111378679,SLE420,500.25,Oxford Citizens Housing Association
http://statistics.data.gov.uk/id/local-authority/38,Oxfordshire County Council,WIDER TOBACCO CONTRL,13/03/2023,4042,Fixtures and Fittings,2201090471,PH0086,500.38,Falcon Signs
http://statistics.data.gov.uk/id/local-authority/38,Oxfordshire County Council,Support at Home U65 Learning Disability,10/03/2023,5690,,3111379492,SACL20,501.14,Style Acre
http://statistics.data.gov.uk/id/local-authority/38,Oxfordshire County Council,Support at Home 65+ Physical Support,31/03/2023,5693,,3111397963,SACP40,501.9,My Carer Ltd
http://statistics.data.gov.uk/id/local-authority/38,Oxfordshire County Council,FOSTERING MAIN,28/03/2023,5548,B*Fostering - Special Rates & Plus Amou,3111393419,SCP501,501.98,Redacted Personal Data
http://statistics.data.gov.uk/id/local-authority/38,Oxfordshire County Council,Support at Home U65 Physical Support,28/03/2023,5698,,3111394595,SACP20,502.19,KCARE NURSING AGENCY
http://statistics.data.gov.uk/id/local-authority/38,Oxfordshire County Council,Support at Home U65 Physical Support,08/03/2023,5693,,3111376255,SACP20,502.2,PLL Care Services
http://statistics.data.gov.uk/id/local-authority/38,Oxfordshire County Council,Support at Home U65 Physical Support,28/03/2023,5689,,3111394029,SACP20,502.56,Allied Health-Services Limited
http://statistics.data.gov.uk/id/local-authority/38,Oxfordshire County Council,Support at Home U65 Learning Disability,14/03/2023,5899,Social Care - Direct Payments,3111383460,SACL20,502.6,Redacted Personal Data
http://statistics.data.gov.uk/id/local-authority/38,Oxfordshire County Council,Support at Home 65+ Physical Support,06/03/2023,5696,,3111374395,SACP40,502.74,Orders of St John Care Trust
http://statistics.data.gov.uk/id/local-authority/38,Oxfordshire County Council,BICESTER PARK & RIDE,13/03/2023,4861,Hired and Contracted Services,2201090464,NPR600,503,Cherwell DC
http://statistics.data.gov.uk/id/local-authority/38,Oxfordshire County Council,FLEET MAINTENANCE,20/03/2023,4220,Vehicle Workshop Spares and Consumables,2201093011,F31200,503.64,Heathrow Truck Centre Ltd
http://statistics.data.gov.uk/id/local-authority/38,Oxfordshire County Council,UASC 16&17,01/03/2023,5365,Non-Staff Subsistence and Expenses,9300059151,SYT011,503.75,OCC SS Vale of White Horse Cash
http://statistics.data.gov.uk/id/local-authority/38,Oxfordshire County Council,Family Solutions Plus Non-staff - South,16/03/2023,5227,Other Transport Arrangements,9300059331,SCT321,503.75,OCC SS Vale of White Horse Cash
http://statistics.data.gov.uk/id/local-authority/38,Oxfordshire County Council,MAINSTREAM-PRIMARY,15/03/2023,4330,Transport to School Activities,3111384452,ER1250,504,001 Alpha Cars Ltd
http://statistics.data.gov.uk/id/local-authority/38,Oxfordshire County Council,Support at Home 65+ Physical Support,28/03/2023,5699,,3111393757,SACP40,504,Acquire Care Ltd
http://statistics.data.gov.uk/id/local-authority/38,Oxfordshire County Council,Support at Home U65 Other /Soc Isolation,14/03/2023,5899,Social Care - Direct Payments,3111383284,SACV20,504,Redacted Personal Data
http://statistics.data.gov.uk/id/local-authority/38,Oxfordshire County Council,Support at Home 65+ Memory & Cognition,28/03/2023,5699,,3111393809,SACC40,504,BBC CARE SERVICE LIMITED
http://statistics.data.gov.uk/id/local-authority/38,Oxfordshire County Council,Support at Home 65+ Physical Support,15/03/2023,5693,,3111384516,SACP40,504,Clark Care Services
http://statistics.data.gov.uk/id/local-authority/38,Oxfordshire County Council,Support at Home U65 Physical Support,01/03/2023,5693,,3111372662,SACP20,504,Direct Link Care Ltd
http://statistics.data.gov.uk/id/local-authority/38,Oxfordshire County Council,Support at Home U65 Physical Support,29/03/2023,5693,,3111395826,SACP20,504,Direct Link Care Ltd
http://statistics.data.gov.uk/id/local-authority/38,Oxfordshire County Council,Support at Home 65+ Learning Disability,28/03/2023,5699,,3111394271,SACL40,504,Enable Health Ltd
http://statistics.data.gov.uk/id/local-authority/38,Oxfordshire County Council,Support at Home 65+ Mental Health,29/03/2023,5693,,3111395885,SACM40,504,HEALTHCARE ACCESS LTD
http://statistics.data.gov.uk/id/local-authority/38,Oxfordshire County Council,Support at Home U65 Physical Support,29/03/2023,5693,,3111395892,SACP20,504,HEALTHCARE ACCESS LTD
http://statistics.data.gov.uk/id/local-authority/38,Oxfordshire County Council,Support at Home 65+ Physical Support,28/03/2023,5699,,3111394355,SACP40,504,Home Helpers Care Ltd
http://statistics.data.gov.uk/id/local-authority/38,Oxfordshire County Council,Support at Home U65 Learning Disability,09/03/2023,5227,Other Transport Arrangements,3111376579,SACL20,504,Local Cars Kidlington
http://statistics.data.gov.uk/id/local-authority/38,Oxfordshire County Council,Support at Home 65+ Memory & Cognition,14/03/2023,5899,Social Care - Direct Payments,3111383616,SACC40,504,Redacted Personal Data
http://statistics.data.gov.uk/id/local-authority/38,Oxfordshire County Council,Support at Home U65 Physical Support,08/03/2023,5693,,3111376277,SACP20,504,PLL Care Services
http://statistics.data.gov.uk/id/local-authority/38,Oxfordshire County Council,Support at Home 65+ Physical Support,28/03/2023,5699,,3111394608,SACP40,504,PLL Care Services
http://statistics.data.gov.uk/id/local-authority/38,Oxfordshire County Council,Support at Home 65+ Physical Support,28/03/2023,5693,,3111394793,SACP40,504,PLL Care Services
http://statistics.data.gov.uk/id/local-authority/38,Oxfordshire County Council,OXF. EMPLOYMENT SERV,27/03/2023,3942,Hire of Accommodation and Facilities,2201095713,SAP093,504,Seacourt Hall
http://statistics.data.gov.uk/id/local-authority/38,Oxfordshire County Council,WCR IMPROVEMENT,13/03/2023,5190,Subscriptions,2201090845,N50402,504,TAGMASTER UK LIMITED
http://statistics.data.gov.uk/id/local-authority/38,Oxfordshire County Council,Support at Home 65+ Memory & Cognition,28/03/2023,5699,,3111395024,SACC40,504,YOD Ltd
http://statistics.data.gov.uk/id/local-authority/38,Oxfordshire County Council,ECH Central Costs,10/03/2023,5696,,3111377308,SBE561,504.06,BPHA Limited
http://statistics.data.gov.uk/id/local-authority/38,Oxfordshire County Council,Support at Home U65 HFA,14/03/2023,5899,Social Care - Direct Payments,3111383037,SACF20,504.32,Connection Support (Oxford)
http://statistics.data.gov.uk/id/local-authority/38,Oxfordshire County Council,CHC Fast Track - Sup at Homes - Over 65,31/03/2023,5691,,3111398277,SAHE40,505,Sue Ryder
http://statistics.data.gov.uk/id/local-authority/38,Oxfordshire County Council,Support at Home 65+ Physical Support,28/03/2023,5698,,3111393263,SACP40,505.05,Oxford Private Care
http://statistics.data.gov.uk/id/local-authority/38,Oxfordshire County Council,CHC Fast Track - Sup at Homes - Over 65,31/03/2023,5691,,3111398272,SAHE40,506,Sue Ryder
http://statistics.data.gov.uk/id/local-authority/38,Oxfordshire County Council,SM DISABILITIES,29/03/2023,5554,Childrens' Social Care - Direct Payments,3111396017,SCT102,507.6,Purple Conversation Com In Co (DP)
http://statistics.data.gov.uk/id/local-authority/38,Oxfordshire County Council,SM DISABILITIES,29/03/2023,5554,Childrens' Social Care - Direct Payments,3111395971,SCT102,507.64,Purple Conversation Com In Co (DP)
http://statistics.data.gov.uk/id/local-authority/38,Oxfordshire County Council,COMM DRAWDOWN FUNDNG,13/03/2023,8004,Design Consultant,2201090912,NQ1006,507.71,Milestone Infrastructure Limited
http://statistics.data.gov.uk/id/local-authority/38,Oxfordshire County Council,Support at Home U65 Physical Support,28/03/2023,5698,,3111393250,SACP20,508.24,Oxford Private Care
http://statistics.data.gov.uk/id/local-authority/38,Oxfordshire County Council,WASTE RECYCLING,23/03/2023,5526,Payments to Private Contractors,2201094538,N50601,508.25,W&S RECYCLING
http://statistics.data.gov.uk/id/local-authority/38,Oxfordshire County Council,Support at Home 65+ Physical Support,21/03/2023,5899,Social Care - Direct Payments,3111386192,SACP40,508.5,Redacted Personal Data
http://statistics.data.gov.uk/id/local-authority/38,Oxfordshire County Council,SEN Additional Funding,23/03/2023,5537,Payments to Other Establishments,3111389260,ES1779,508.56,Manor School (GLF Academy)
http://statistics.data.gov.uk/id/local-authority/38,Oxfordshire County Council,Support at Home U65 Physical Support,10/03/2023,5690,,3111378185,SACP20,508.84,The Camden Society
http://statistics.data.gov.uk/id/local-authority/38,Oxfordshire County Council,Support at Home U65 Learning Disability,10/03/2023,5690,,3111378202,SACL20,508.84,The Camden Society
http://statistics.data.gov.uk/id/local-authority/38,Oxfordshire County Council,Support at Home U65 Learning Disability,10/03/2023,5690,,3111378235,SACL20,508.84,The Camden Society
http://statistics.data.gov.uk/id/local-authority/38,Oxfordshire County Council,NURSERY ED FUND,01/03/2023,5537,Payments to Other Establishments,3111372066,EL0022,508.95,Farmhouse Nursery School
http://statistics.data.gov.uk/id/local-authority/38,Oxfordshire County Council,NURSERY ED FUND,30/03/2023,5537,Payments to Other Establishments,3111397716,EL0022,508.95,Magpies Preschool
http://statistics.data.gov.uk/id/local-authority/38,Oxfordshire County Council,Support at Home 65+ Learning Disability,06/03/2023,5696,,3111374378,SACL40,509.5,Orders of St John Care Trust
http://statistics.data.gov.uk/id/local-authority/38,Oxfordshire County Council,Support at Home 65+ Physical Support,10/03/2023,5693,,3111377124,SACP40,510,Care with Care Ltd
http://statistics.data.gov.uk/id/local-authority/38,Oxfordshire County Council,POST 16 SEN,23/03/2023,4330,Transport to School Activities,3111387906,ER0947,510,Cherwell Cars
http://statistics.data.gov.uk/id/local-authority/38,Oxfordshire County Council,Household Support Fund 3,23/03/2023,7690,Additional Grant for Schools,3111388278,A16009,510,Christopher Rawlins Primary School
http://statistics.data.gov.uk/id/local-authority/38,Oxfordshire County Council,TRAINING MANAGEMENT,01/03/2023,3100,Educational and Vocational Training,2201085430,F27000,510,Gardiner Associates Training and
http://statistics.data.gov.uk/id/local-authority/38,Oxfordshire County Council,Household Support Fund 3,23/03/2023,7690,Additional Grant for Schools,3111388301,A16009,510,GEMS Wantage Primary Academy
http://statistics.data.gov.uk/id/local-authority/38,Oxfordshire County Council,Household Support Fund 3,30/03/2023,7690,Additional Grant for Schools,3111396468,A16009,510,Grow Learn Play Project CIC
http://statistics.data.gov.uk/id/local-authority/38,Oxfordshire County Council,Household Support Fund 3,30/03/2023,7690,Additional Grant for Schools,3111396498,A16009,510,Kiddies Korner
http://statistics.data.gov.uk/id/local-authority/38,Oxfordshire County Council,CSDP TEAM,14/03/2023,5899,Social Care - Direct Payments,3111383421,SPT551,510,Redacted Personal Data
http://statistics.data.gov.uk/id/local-authority/38,Oxfordshire County Council,Reactive Maintenance,20/03/2023,3787,Premises Repairs,2201093444,K10200,510.22,CEF
http://statistics.data.gov.uk/id/local-authority/38,Oxfordshire County Council,Support at Home 65+ Physical Support,28/03/2023,5699,,3111394175,SACP40,510.3,CaringPlus Healthcare Services Ltd
http://statistics.data.gov.uk/id/local-authority/38,Oxfordshire County Council,Support at Home 65+ Physical Support,28/03/2023,5698,,3111394715,SACP40,510.61,Oxfordshire Crossroads
http://statistics.data.gov.uk/id/local-authority/38,Oxfordshire County Council,POST18 UASC DCSF FND,31/03/2023,5663,B*Birthday Allowance,9300059555,SCP810,511.3,OCC SS Oxford City Div 1 Cash
http://statistics.data.gov.uk/id/local-authority/38,Oxfordshire County Council,Support at Home 65+ Physical Support,28/03/2023,5689,,3111394734,SACP40,511.94,PLL Care Services
http://statistics.data.gov.uk/id/local-authority/38,Oxfordshire County Council,Support at Home 65+ Physical Support,28/03/2023,5689,,3111394753,SACP40,511.94,PLL Care Services
http://statistics.data.gov.uk/id/local-authority/38,Oxfordshire County Council,Support at Home U65 Physical Support,28/03/2023,5689,,3111394035,SACP20,511.98,Bicester PA and Care LLP
http://statistics.data.gov.uk/id/local-authority/38,Oxfordshire County Council,Support at Home 65+ Other /Soc Isolation,22/03/2023,5693,,3111387184,SACV40,512,Redacted Personal Data
http://statistics.data.gov.uk/id/local-authority/38,Oxfordshire County Council,Support at Home U65 Physical Support,01/03/2023,5227,Other Transport Arrangements,3111373602,SACP20,512,TOOTS TAXIS LTD
http://statistics.data.gov.uk/id/local-authority/38,Oxfordshire County Council,Support at Home U65 Learning Disability,14/03/2023,5899,Social Care - Direct Payments,3111383741,SACL20,512.16,Purple Conversation Com In Co (DP)
http://statistics.data.gov.uk/id/local-authority/38,Oxfordshire County Council,FOSTERING MAIN,28/03/2023,5548,B*Fostering - Special Rates & Plus Amou,3111393394,SCP501,512.29,Redacted Personal Data
http://statistics.data.gov.uk/id/local-authority/38,Oxfordshire County Council,Community Support Service Oxford,03/03/2023,2040,Agency Staff,2201086607,SAP205,512.4,Completely Care Ltd
http://statistics.data.gov.uk/id/local-authority/38,Oxfordshire County Council,Community Support Service Banbury,09/03/2023,2040,Agency Staff,2201089358,SAP202,512.4,Completely Care Ltd
http://statistics.data.gov.uk/id/local-authority/38,Oxfordshire County Council,SM DISABILITIES,29/03/2023,5554,Childrens' Social Care - Direct Payments,3111395827,SCT102,512.82,Redacted Personal Data
http://statistics.data.gov.uk/id/local-authority/38,Oxfordshire County Council,Delegated Health Tasks  - Over 65,01/03/2023,5691,,3111372518,SAHD40,512.85,Allied Health-Services Limited
http://statistics.data.gov.uk/id/local-authority/38,Oxfordshire County Council,Support at Home U65 Learning Disability,14/03/2023,5899,Social Care - Direct Payments,3111383317,SACL20,514.12,Redacted Personal Data
http://statistics.data.gov.uk/id/local-authority/38,Oxfordshire County Council,Support at Home 65+ Learning Disability,06/03/2023,5696,,3111374336,SACL40,514.37,Orders of St John Care Trust
http://statistics.data.gov.uk/id/local-authority/38,Oxfordshire County Council,LAC PUPIL PREMIUM,02/03/2023,5380,"Author, Speaker and Lecturer Fees",2201086393,EP1395,514.5,Tuition Extra (Kent) Ltd
http://statistics.data.gov.uk/id/local-authority/38,Oxfordshire County Council,Support at Home 65+ Physical Support,01/03/2023,5693,,3111372664,SACP40,514.62,Helping Hands Fareham
http://statistics.data.gov.uk/id/local-authority/38,Oxfordshire County Council,MUSEUM CAFE,17/03/2023,4665,Catering,2201092657,M54300,514.9,The Mid Counties Co-Operative Ltd
http://statistics.data.gov.uk/id/local-authority/38,Oxfordshire County Council,INSTRU PURCHASE SCHM,09/03/2023,4407,Equipment,2201088883,EP0795,515,HERITAGE MUSIC
http://statistics.data.gov.uk/id/local-authority/38,Oxfordshire County Council,CORONER,03/03/2023,5202,Use of Mortuary Services,2201086729,R71000,515,ORAMIS DIGITAL AUTOPSY LTD
http://statistics.data.gov.uk/id/local-authority/38,Oxfordshire County Council,VOIDS/VACANCY COSTS,10/03/2023,3945,Rent,3111378667,SLE420,515.22,Oxford Citizens Housing Association
http://statistics.data.gov.uk/id/local-authority/38,Oxfordshire County Council,VOIDS/VACANCY COSTS,10/03/2023,3945,Rent,3111378673,SLE420,515.22,Oxford Citizens Housing Association
http://statistics.data.gov.uk/id/local-authority/38,Oxfordshire County Council,High Cost INMSS Placements,10/03/2023,5537,Payments to Other Establishments,3500093706,EP1168,515.62,Thames Valley School
http://statistics.data.gov.uk/id/local-authority/38,Oxfordshire County Council,High Cost INMSS Placements,10/03/2023,5537,Payments to Other Establishments,3500093707,EP1168,515.62,Thames Valley School
http://statistics.data.gov.uk/id/local-authority/38,Oxfordshire County Council,Support at Home U65 Mental Health,14/03/2023,5899,Social Care - Direct Payments,3111384079,SACM20,515.68,Purple Conversation Com In Co (DP)
http://statistics.data.gov.uk/id/local-authority/38,Oxfordshire County Council,CHC Fast Track - Sup at Homes - Over 65,27/03/2023,5691,,3111389246,SAHE40,516,FiNN Homecare Ltd
http://statistics.data.gov.uk/id/local-authority/38,Oxfordshire County Council,Delegated Health Tasks  - Under 65,29/03/2023,5691,,3111396194,SAHD20,516,FiNN Homecare Ltd
http://statistics.data.gov.uk/id/local-authority/38,Oxfordshire County Council,Delegated Health Tasks  - Over 65,29/03/2023,5691,,3111396195,SAHD40,516,FiNN Homecare Ltd
http://statistics.data.gov.uk/id/local-authority/38,Oxfordshire County Council,CHC Fast Track - Sup at Homes - Over 65,29/03/2023,5691,,3111396197,SAHE40,516,FiNN Homecare Ltd
http://statistics.data.gov.uk/id/local-authority/38,Oxfordshire County Council,Support at Home U65 Other /Soc Isolation,14/03/2023,5899,Social Care - Direct Payments,3111384018,SACV20,516.24,Purple Conversation Com In Co (DP)
http://statistics.data.gov.uk/id/local-authority/38,Oxfordshire County Council,Support at Home 65+ Memory & Cognition,10/03/2023,5690,,3111379232,SACC40,516.37,Daybreak Oxford
http://statistics.data.gov.uk/id/local-authority/38,Oxfordshire County Council,Support at Home 65+ Memory & Cognition,10/03/2023,5690,,3111379234,SACC40,516.37,Daybreak Oxford
http://statistics.data.gov.uk/id/local-authority/38,Oxfordshire County Council,Support at Home 65+ Memory & Cognition,28/03/2023,5699,,3111394127,SACC40,516.6,CaringPlus Healthcare Services Ltd
http://statistics.data.gov.uk/id/local-authority/38,Oxfordshire County Council,Support at Home 65+ Physical Support,28/03/2023,5699,,3111394341,SACP40,516.6,Home Helpers Care Ltd
http://statistics.data.gov.uk/id/local-authority/38,Oxfordshire County Council,Support at Home 65+ Physical Support,28/03/2023,5699,,3111394863,SACP40,516.6,Ringstead Healthcare Limited
http://statistics.data.gov.uk/id/local-authority/38,Oxfordshire County Council,Support at Home U65 Learning Disability,10/03/2023,5690,,3111378072,SACL20,517.35,MacIntyre Care (Womaston)
http://statistics.data.gov.uk/id/local-authority/38,Oxfordshire County Council,Community DOLS,10/03/2023,4861,Hired and Contracted Services,2201090411,SLE520,517.56,Pohwer
http://statistics.data.gov.uk/id/local-authority/38,Oxfordshire County Council,FAM GRP CONFERENCES,28/03/2023,4940,Other Services,2201096373,SCT211,517.6,Mrs Laurie Smith
http://statistics.data.gov.uk/id/local-authority/38,Oxfordshire County Council,LEGAL BUDGET,29/03/2023,5251,Legal Costs,3111395671,SCP655,518.1,OCC One Time Vendor
http://statistics.data.gov.uk/id/local-authority/38,Oxfordshire County Council,2 YEAR OLD FUNDING,01/03/2023,5537,Payments to Other Establishments,3111372140,EL1442,518.32,Deddington Village Nursery
http://statistics.data.gov.uk/id/local-authority/38,Oxfordshire County Council,Support at Home U65 Physical Support,06/03/2023,5696,,3111374370,SACP20,519.24,Orders of St John Care Trust
http://statistics.data.gov.uk/id/local-authority/38,Oxfordshire County Council,Support at Home 65+ Mental Health,14/03/2023,5899,Social Care - Direct Payments,3111383050,SACM40,519.84,Redacted Personal Data
http://statistics.data.gov.uk/id/local-authority/38,Oxfordshire County Council,Support at Home U65 Learning Disability,14/03/2023,5899,Social Care - Direct Payments,3111383711,SACL20,519.88,Purple Conversation Com In Co (DP)
http://statistics.data.gov.uk/id/local-authority/38,Oxfordshire County Council,Support at Home U65 MH OBC Contract,14/03/2023,5899,Social Care - Direct Payments,3111384282,SACH20,519.92,Purple Conversation Com In Co (DP)
http://statistics.data.gov.uk/id/local-authority/38,Oxfordshire County Council,Support at Home U65 Learning Disability,01/03/2023,5227,Other Transport Arrangements,3111373589,SACL20,520,24 Seven Cars (Oxford) Ltd
http://statistics.data.gov.uk/id/local-authority/38,Oxfordshire County Council,Delegated Health Tasks  - Under 65,29/03/2023,5691,,3111396198,SAHD20,520,FiNN Homecare Ltd
http://statistics.data.gov.uk/id/local-authority/38,Oxfordshire County Council,Support at Home U65 Learning Disability,13/03/2023,5227,Other Transport Arrangements,3111382161,SACL20,520,Oxon Transport Services Ltd
http://statistics.data.gov.uk/id/local-authority/38,Oxfordshire County Council,COUNTY HALL,07/03/2023,4070,Cleaning services,2201087828,K10231,520,Parker Contract Cleaning
http://statistics.data.gov.uk/id/local-authority/38,Oxfordshire County Council,SHORT BREAK ACTIVITIES,31/03/2023,4330,Transport to School Activities,3111398115,SCT103,520,Prominency Ltd
http://statistics.data.gov.uk/id/local-authority/38,Oxfordshire County Council,TREE MAINT OPS,20/03/2023,5526,Payments to Private Contractors,2201092991,NAA100,520,South Bucks Tree Surgeons
http://statistics.data.gov.uk/id/local-authority/38,Oxfordshire County Council,Support at Home 65+ Mental Health,24/03/2023,5693,,3111388078,SACM40,520,Star Projections
http://statistics.data.gov.uk/id/local-authority/38,Oxfordshire County Council,Support at Home U65 Mental Health,08/03/2023,5697,,3111376204,SACM20,520,Thoughtfully Organised Homes
http://statistics.data.gov.uk/id/local-authority/38,Oxfordshire County Council,Support at Home U65 Physical Support,28/03/2023,5689,,3111394625,SACP20,520.43,My Carer Ltd
http://statistics.data.gov.uk/id/local-authority/38,Oxfordshire County Council,Family Solutions Plus Non-staff - South,22/03/2023,5227,Other Transport Arrangements,9300059389,SCT321,520.55,OCC SS Vale of White Horse Cash
http://statistics.data.gov.uk/id/local-authority/38,Oxfordshire County Council,Support at Home U65 HFA,14/03/2023,5899,Social Care - Direct Payments,3111384037,SACF20,520.56,Purple Conversation Com In Co (DP)
http://statistics.data.gov.uk/id/local-authority/38,Oxfordshire County Council,Support at Home U65 MH OBC Contract,14/03/2023,5899,Social Care - Direct Payments,3111384114,SACH20,520.56,Purple Conversation Com In Co (DP)
http://statistics.data.gov.uk/id/local-authority/38,Oxfordshire County Council,Support at Home 65+ Learning Disability,14/03/2023,5899,Social Care - Direct Payments,3111384199,SACL40,520.56,Purple Conversation Com In Co (DP)
http://statistics.data.gov.uk/id/local-authority/38,Oxfordshire County Council,Support at Home U65 Physical Support,14/03/2023,5899,Social Care - Direct Payments,3111384243,SACP20,520.56,Purple Conversation Com In Co (DP)
http://statistics.data.gov.uk/id/local-authority/38,Oxfordshire County Council,Support at Home 65+ Learning Disability,10/03/2023,5690,,3111378015,SACL40,521.07,HF TRUST Ltd
http://statistics.data.gov.uk/id/local-authority/38,Oxfordshire County Council,Support at Home U65 Physical Support,06/03/2023,5696,,3111374430,SACP20,521.37,Orders of St John Care Trust
http://statistics.data.gov.uk/id/local-authority/38,Oxfordshire County Council,TRANSLATION,16/03/2023,5668,Technical and Professional Consultant F,2201092052,R51004,521.47,K International PLC
http://statistics.data.gov.uk/id/local-authority/38,Oxfordshire County Council,NURSERY ED FUND,30/03/2023,5537,Payments to Other Establishments,3111397286,EL0022,522,Brightwell Pre-school
http://statistics.data.gov.uk/id/local-authority/38,Oxfordshire County Council,FLEET MAINTENANCE,06/03/2023,4495,IT Software,2201087283,F31200,522,C Track UK
http://statistics.data.gov.uk/id/local-authority/38,Oxfordshire County Council,NURSERY ED FUND,30/03/2023,5537,Payments to Other Establishments,3111397463,EL0022,522,Child First (Banbury)
http://statistics.data.gov.uk/id/local-authority/38,Oxfordshire County Council,NURSERY ED FUND,30/03/2023,5537,Payments to Other Establishments,3111397484,EL0022,522,Co-Op JR Nursery
http://statistics.data.gov.uk/id/local-authority/38,Oxfordshire County Council,NURSERY ED FUND,30/03/2023,5537,Payments to Other Establishments,3111397426,EL0022,522,Hadden Hill Nursery and Pre-School
http://statistics.data.gov.uk/id/local-authority/38,Oxfordshire County Council,NURSERY ED FUND,30/03/2023,5537,Payments to Other Establishments,3111397668,EL0022,522,New Marston Primary School
http://statistics.data.gov.uk/id/local-authority/38,Oxfordshire County Council,Support at Home U65 Mental Health,06/03/2023,5696,,3111374407,SACM20,522.22,Orders of St John Care Trust
http://statistics.data.gov.uk/id/local-authority/38,Oxfordshire County Council,Support at Home 65+ Physical Support,06/03/2023,5696,,3111374329,SACP40,522.33,Orders of St John Care Trust
http://statistics.data.gov.uk/id/local-authority/38,Oxfordshire County Council,Catering Management Soft FM,03/03/2023,4665,Catering,2201086577,K30140,522.36,Whitco Catering & Bakery Equipment
http://statistics.data.gov.uk/id/local-authority/38,Oxfordshire County Council,Support at Home 65+ Physical Support,03/03/2023,5693,,3111374071,SACP40,522.75,Care with Care Ltd
http://statistics.data.gov.uk/id/local-authority/38,Oxfordshire County Council,Support at Home U65 MH OBC Contract,28/03/2023,5899,Social Care - Direct Payments,3111393838,SACH20,522.9,Bridges Home Care Ltd
http://statistics.data.gov.uk/id/local-authority/38,Oxfordshire County Council,Support at Home U65 Learning Disability,14/03/2023,5899,Social Care - Direct Payments,3111383812,SACL20,523.08,Purple Conversation Com In Co (DP)
http://statistics.data.gov.uk/id/local-authority/38,Oxfordshire County Council,FAM GRP CONFERENCES,29/03/2023,4940,Other Services,2201096903,SCT211,523.1,Mrs Laurie Smith
http://statistics.data.gov.uk/id/local-authority/38,Oxfordshire County Council,Support at Home U65 Mental Health,28/03/2023,5699,,3111394505,SACM20,523.32,Oxford Private Care
http://statistics.data.gov.uk/id/local-authority/38,Oxfordshire County Council,Support at Home U65 Learning Disability,14/03/2023,5899,Social Care - Direct Payments,3111383878,SACL20,523.48,Purple Conversation Com In Co (DP)
http://statistics.data.gov.uk/id/local-authority/38,Oxfordshire County Council,Support at Home 65+ Mental Health,28/03/2023,5696,,3111393646,SACM40,523.64,All Care GB Ltd
http://statistics.data.gov.uk/id/local-authority/38,Oxfordshire County Council,STI TESTING+TREATMEN,08/03/2023,4940,Other Services,3111376784,PH0002,524,Central and North West
http://statistics.data.gov.uk/id/local-authority/38,Oxfordshire County Council,Family Solutions Plus Non-staff - North,14/03/2023,4940,Other Services,2201091155,SCT316,524.2,Bright Horizons
http://statistics.data.gov.uk/id/local-authority/38,Oxfordshire County Council,LIBRARY COLLECTIONS,29/03/2023,4539,"Books, DVDs and CDs",3111395073,M37000,524.82,ASKEWS & HOLTS LIBRARY SERVICES LTD
http://statistics.data.gov.uk/id/local-authority/38,Oxfordshire County Council,LEGAL SERVICES,21/03/2023,5251,Legal Costs,2201093954,R21000,525,Aimee Fox
http://statistics.data.gov.uk/id/local-authority/38,Oxfordshire County Council,SEN Miscellaneous Expenditure,31/03/2023,4859,Medical and Counselling Fees,3111398140,ES1778,525,Redacted Personal Data
http://statistics.data.gov.uk/id/local-authority/38,Oxfordshire County Council,SEN TRANSPORT,06/03/2023,4330,Transport to School Activities,3111374270,ER1860,525,Blackstar Chauffeur Ltd T/A Blackst
http://statistics.data.gov.uk/id/local-authority/38,Oxfordshire County Council,Household Support Fund 3,22/03/2023,5667,Can be reused,3111387016,A16009,525,Faringdon Academy Schools
http://statistics.data.gov.uk/id/local-authority/38,Oxfordshire County Council,Family Solutions Plus Non-staff - Centra,13/03/2023,5227,Other Transport Arrangements,3111381939,SCT311,525,Her Ride Limited
http://statistics.data.gov.uk/id/local-authority/38,Oxfordshire County Council,Community Support Service Banbury,20/03/2023,5460,Entertainment Expenses,3111385876,SAP202,525,OCC One Time Vendor
http://statistics.data.gov.uk/id/local-authority/38,Oxfordshire County Council,Household Support Fund 3,22/03/2023,5667,Can be reused,3111387091,A16009,525,The Gallery Trust
http://statistics.data.gov.uk/id/local-authority/38,Oxfordshire County Council,Reactive Maintenance,10/03/2023,4042,Fixtures and Fittings,2201089834,K10200,525,Windrush Door & Window Services Ltd
http://statistics.data.gov.uk/id/local-authority/38,Oxfordshire County Council,DEVELOPMENT MANAGEME,24/03/2023,4790,"Publicity, Promotions and Advertisement",2201095086,N40250,525.08,PEOPLESCOUT LIMITED
http://statistics.data.gov.uk/id/local-authority/38,Oxfordshire County Council,Support at Home 65+ Physical Support,28/03/2023,5689,,3111394741,SACP40,525.29,PLL Care Services
http://statistics.data.gov.uk/id/local-authority/38,Oxfordshire County Council,Support at Home U65 Physical Support,28/03/2023,5698,,3111394597,SACP20,525.75,KCARE NURSING AGENCY
http://statistics.data.gov.uk/id/local-authority/38,Oxfordshire County Council,Support at Home U65 Physical Support,06/03/2023,5696,,3111374376,SACP20,525.85,Orders of St John Care Trust
http://statistics.data.gov.uk/id/local-authority/38,Oxfordshire County Council,COMM DRAWDOWN FUNDNG,30/03/2023,8102,Payments to main contractor,2201098012,NQ1006,526,VolkerHighways
http://statistics.data.gov.uk/id/local-authority/38,Oxfordshire County Council,NURSERY ED FUND,30/03/2023,5537,Payments to Other Establishments,3111397380,EL0022,526.35,Horspath Pre-School Nursery
http://statistics.data.gov.uk/id/local-authority/38,Oxfordshire County Council,Support at Home 65+ Physical Support,28/03/2023,5698,,3111394589,SACP40,526.56,KCARE NURSING AGENCY
http://statistics.data.gov.uk/id/local-authority/38,Oxfordshire County Council,Reactive Maintenance,28/03/2023,3740,General Maintenance,2201096597,K10200,526.64,ARJO LTD
http://statistics.data.gov.uk/id/local-authority/38,Oxfordshire County Council,FLEET OPERATIONS,10/03/2023,4210,Vehicles and Plant - Repairs and Main,2201089798,SAP231,527,AWP Body Repairs
http://statistics.data.gov.uk/id/local-authority/38,Oxfordshire County Council,Family Solutions Plus Non-staff - North,21/03/2023,5227,Other Transport Arrangements,3111386185,SCT316,528,Bicester Cars UK Ltd
http://statistics.data.gov.uk/id/local-authority/38,Oxfordshire County Council,SHORT BREAK ACTIVITIES,09/03/2023,4330,Transport to School Activities,3111376992,SCT103,528,My Cabbie LTD t/a J and A Transport
http://statistics.data.gov.uk/id/local-authority/38,Oxfordshire County Council,Support at Home U65 Physical Support,10/03/2023,5690,,3111377987,SACP20,528.11,ADVANCE HOUSING & SUPPORT LTD
http://statistics.data.gov.uk/id/local-authority/38,Oxfordshire County Council,Family Solutions Plus Non-staff - North,23/03/2023,4685,Clothing and Uniforms,3111387894,SCT316,528.4,NASHE-UK LTD
http://statistics.data.gov.uk/id/local-authority/38,Oxfordshire County Council,Family Solutions Plus Non-staff - South,16/03/2023,5227,Other Transport Arrangements,9300059321,SCT321,528.6,OCC SS Vale of White Horse Cash
http://statistics.data.gov.uk/id/local-authority/38,Oxfordshire County Council,FOSTERING MAIN,08/03/2023,5549,B*Fostering Allowance - Regulation 38,3111375987,SCP501,529,Redacted Personal Data
http://statistics.data.gov.uk/id/local-authority/38,Oxfordshire County Council,FOSTERING MAIN,14/03/2023,5549,B*Fostering Allowance - Regulation 38,3111382829,SCP501,529,Redacted Personal Data
http://statistics.data.gov.uk/id/local-authority/38,Oxfordshire County Council,FOSTERING MAIN,28/03/2023,5549,B*Fostering Allowance - Regulation 38,3111393426,SCP501,529,Redacted Personal Data
http://statistics.data.gov.uk/id/local-authority/38,Oxfordshire County Council,Support at Home 65+ Physical Support,29/03/2023,5693,,3111395713,SACP40,529.2,A CARING HAND LTD
http://statistics.data.gov.uk/id/local-authority/38,Oxfordshire County Council,Support at Home U65 MH OBC Contract,28/03/2023,5699,,3111393770,SACH20,529.2,Adult Transition Services Ltd (ATrS
http://statistics.data.gov.uk/id/local-authority/38,Oxfordshire County Council,Support at Home U65 Physical Support,28/03/2023,5699,,3111393797,SACP20,529.2,All Care GB Ltd
http://statistics.data.gov.uk/id/local-authority/38,Oxfordshire County Council,Support at Home 65+ Physical Support,22/03/2023,5693,,3111387159,SACP40,529.2,Angel Care Group
http://statistics.data.gov.uk/id/local-authority/38,Oxfordshire County Council,Support at Home U65 Physical Support,28/03/2023,5698,,3111394050,SACP20,529.2,Bridges Home Care Ltd
http://statistics.data.gov.uk/id/local-authority/38,Oxfordshire County Council,Support at Home 65+ Physical Support,28/03/2023,5698,,3111394066,SACP40,529.2,Bridges Home Care Ltd
http://statistics.data.gov.uk/id/local-authority/38,Oxfordshire County Council,Support at Home 65+ Physical Support,28/03/2023,5698,,3111394076,SACP40,529.2,Bridges Home Care Ltd
http://statistics.data.gov.uk/id/local-authority/38,Oxfordshire County Council,Support at Home 65+ Physical Support,28/03/2023,5699,,3111393906,SACP40,529.2,Care Hearted Ltd
http://statistics.data.gov.uk/id/local-authority/38,Oxfordshire County Council,Support at Home 65+ Physical Support,28/03/2023,5699,,3111393929,SACP40,529.2,Care Hearted Ltd
http://statistics.data.gov.uk/id/local-authority/38,Oxfordshire County Council,Support at Home 65+ Physical Support,28/03/2023,5699,,3111393932,SACP40,529.2,Care Hearted Ltd
http://statistics.data.gov.uk/id/local-authority/38,Oxfordshire County Council,Support at Home 65+ Physical Support,28/03/2023,5699,,3111393981,SACP40,529.2,Care Outlook Ltd
http://statistics.data.gov.uk/id/local-authority/38,Oxfordshire County Council,Support at Home 65+ Physical Support,28/03/2023,5699,,3111395045,SACP40,529.2,Care Outlook Ltd
http://statistics.data.gov.uk/id/local-authority/38,Oxfordshire County Council,Support at Home U65 Physical Support,28/03/2023,5699,,3111394042,SACP20,529.2,CaringPlus Healthcare Services Ltd
http://statistics.data.gov.uk/id/local-authority/38,Oxfordshire County Council,Support at Home 65+ Physical Support,28/03/2023,5699,,3111394290,SACP40,529.2,Greigcare Home Service
http://statistics.data.gov.uk/id/local-authority/38,Oxfordshire County Council,Support at Home 65+ Physical Support,28/03/2023,5699,,3111394313,SACP40,529.2,HEALTHCARE ACCESS LTD
http://statistics.data.gov.uk/id/local-authority/38,Oxfordshire County Council,Support at Home 65+ Physical Support,29/03/2023,5693,,3111395887,SACP40,529.2,HEALTHCARE ACCESS LTD
http://statistics.data.gov.uk/id/local-authority/38,Oxfordshire County Council,Support at Home 65+ Physical Support,29/03/2023,5693,,3111395922,SACP40,529.2,JMC Care Solutions Limited
http://statistics.data.gov.uk/id/local-authority/38,Oxfordshire County Council,Support at Home 65+ Physical Support,01/03/2023,5693,,3111372683,SACP40,529.2,Oxford Private Care
http://statistics.data.gov.uk/id/local-authority/38,Oxfordshire County Council,Support at Home 65+ Physical Support,29/03/2023,5693,,3111396018,SACP40,529.2,Oxford Private Care
http://statistics.data.gov.uk/id/local-authority/38,Oxfordshire County Council,Support at Home 65+ Memory & Cognition,29/03/2023,5693,,3111395781,SACC40,529.2,Oxfordshire Crossroads
http://statistics.data.gov.uk/id/local-authority/38,Oxfordshire County Council,Support at Home 65+ Physical Support,28/03/2023,5699,,3111394517,SACP40,529.2,Pechiv Ltd
http://statistics.data.gov.uk/id/local-authority/38,Oxfordshire County Council,Support at Home 65+ Physical Support,28/03/2023,5699,,3111394519,SACP40,529.2,Pechiv Ltd
http://statistics.data.gov.uk/id/local-authority/38,Oxfordshire County Council,Support at Home 65+ Physical Support,28/03/2023,5699,,3111394542,SACP40,529.2,Pechiv Ltd
http://statistics.data.gov.uk/id/local-authority/38,Oxfordshire County Council,Support at Home 65+ Physical Support,28/03/2023,5699,,3111394552,SACP40,529.2,Pechiv Ltd
http://statistics.data.gov.uk/id/local-authority/38,Oxfordshire County Council,Support at Home 65+ Physical Support,28/03/2023,5699,,3111394562,SACP40,529.2,Pechiv Ltd
http://statistics.data.gov.uk/id/local-authority/38,Oxfordshire County Council,Support at Home 65+ Physical Support,28/03/2023,5699,,3111394568,SACP40,529.2,Pioneering Care Bicester Limited
http://statistics.data.gov.uk/id/local-authority/38,Oxfordshire County Council,Support at Home U65 Physical Support,01/03/2023,5693,,3111371917,SACP20,529.2,PLL Care Services
http://statistics.data.gov.uk/id/local-authority/38,Oxfordshire County Council,Support at Home 65+ Physical Support,01/03/2023,5693,,3111371918,SACP40,529.2,PLL Care Services
http://statistics.data.gov.uk/id/local-authority/38,Oxfordshire County Council,Support at Home 65+ Physical Support,01/03/2023,5693,,3111371919,SACP40,529.2,PLL Care Services
http://statistics.data.gov.uk/id/local-authority/38,Oxfordshire County Council,Support at Home 65+ Physical Support,01/03/2023,5693,,3111371929,SACP40,529.2,PLL Care Services
http://statistics.data.gov.uk/id/local-authority/38,Oxfordshire County Council,Support at Home 65+ Physical Support,01/03/2023,5693,,3111371934,SACP40,529.2,PLL Care Services
http://statistics.data.gov.uk/id/local-authority/38,Oxfordshire County Council,Support at Home 65+ Mental Health,01/03/2023,5693,,3111371936,SACM40,529.2,PLL Care Services
http://statistics.data.gov.uk/id/local-authority/38,Oxfordshire County Council,Support at Home 65+ Physical Support,28/03/2023,5699,,3111394689,SACP40,529.2,PLL Care Services
http://statistics.data.gov.uk/id/local-authority/38,Oxfordshire County Council,Support at Home U65 Physical Support,28/03/2023,5699,,3111394693,SACP20,529.2,PLL Care Services
http://statistics.data.gov.uk/id/local-authority/38,Oxfordshire County Council,Support at Home 65+ Memory & Cognition,28/03/2023,5699,,3111394738,SACC40,529.2,PLL Care Services
http://statistics.data.gov.uk/id/local-authority/38,Oxfordshire County Council,Support at Home 65+ Physical Support,28/03/2023,5689,,3111394805,SACP40,529.2,PLL Care Services
http://statistics.data.gov.uk/id/local-authority/38,Oxfordshire County Council,Support at Home 65+ Physical Support,28/03/2023,5693,,3111394832,SACP40,529.2,PLL Care Services
http://statistics.data.gov.uk/id/local-authority/38,Oxfordshire County Council,Support at Home 65+ Mental Health,28/03/2023,5689,,3111394838,SACM40,529.2,PLL Care Services
http://statistics.data.gov.uk/id/local-authority/38,Oxfordshire County Council,Support at Home U65 Physical Support,24/03/2023,5693,,3111388065,SACP20,529.2,Procare Healthcare Ltd
http://statistics.data.gov.uk/id/local-authority/38,Oxfordshire County Council,Support at Home 65+ Physical Support,29/03/2023,5693,,3111396046,SACP40,529.2,Same Ways Care Ltd
http://statistics.data.gov.uk/id/local-authority/38,Oxfordshire County Council,Support at Home 65+ Physical Support,28/03/2023,5699,,3111394972,SACP40,529.2,Xperience Recruitment Ltd
http://statistics.data.gov.uk/id/local-authority/38,Oxfordshire County Council,Support at Home 65+ Physical Support,28/03/2023,5699,,3111394977,SACP40,529.2,YOD Ltd
http://statistics.data.gov.uk/id/local-authority/38,Oxfordshire County Council,Support at Home U65 Learning Disability,14/03/2023,5899,Social Care - Direct Payments,3111383381,SACL20,529.28,Redacted Personal Data
http://statistics.data.gov.uk/id/local-authority/38,Oxfordshire County Council,Support at Home 65+ Physical Support,01/03/2023,5693,,3111372608,SACP40,529.6,A CARING HAND LTD
http://statistics.data.gov.uk/id/local-authority/38,Oxfordshire County Council,Support at Home 65+ Physical Support,29/03/2023,5693,,3111395722,SACP40,529.6,A CARING HAND LTD
http://statistics.data.gov.uk/id/local-authority/38,Oxfordshire County Council,FLEET OPERATIONS,23/03/2023,4516,Domestic and Cleaning Equipment,2201094562,SAP231,529.73,LSW Workshop Supplies Ltd
http://statistics.data.gov.uk/id/local-authority/38,Oxfordshire County Council,TREE MAINT OPS,20/03/2023,5526,Payments to Private Contractors,2201093071,NAA100,530,Acreman's Arboriculture Ltd
http://statistics.data.gov.uk/id/local-authority/38,Oxfordshire County Council,TRAINING MANAGEMENT,16/03/2023,3100,Educational and Vocational Training,2201092341,F27000,530,Premier Partnership
http://statistics.data.gov.uk/id/local-authority/38,Oxfordshire County Council,2 YEAR OLD FUNDING,30/03/2023,5537,Payments to Other Establishments,3111397664,EL1442,530.1,Barton Park Primary School
http://statistics.data.gov.uk/id/local-authority/38,Oxfordshire County Council,2 YEAR OLD FUNDING,30/03/2023,5537,Payments to Other Establishments,3111397461,EL1442,530.1,Child First (Banbury)
http://statistics.data.gov.uk/id/local-authority/38,Oxfordshire County Council,2 YEAR OLD FUNDING,01/03/2023,5537,Payments to Other Establishments,3111372147,EL1442,530.1,Deddington Village Nursery
http://statistics.data.gov.uk/id/local-authority/38,Oxfordshire County Council,2 YEAR OLD FUNDING,30/03/2023,5537,Payments to Other Establishments,3111397512,EL1442,530.1,Faringdon Infant School - Adademy
http://statistics.data.gov.uk/id/local-authority/38,Oxfordshire County Council,2 YEAR OLD FUNDING,30/03/2023,5537,Payments to Other Establishments,3111397494,EL1442,530.1,Kids Unlimited (Clearwater Place)
http://statistics.data.gov.uk/id/local-authority/38,Oxfordshire County Council,2 YEAR OLD FUNDING,30/03/2023,5537,Payments to Other Establishments,3111397240,EL1442,530.1,Rainbow Pre-School
http://statistics.data.gov.uk/id/local-authority/38,Oxfordshire County Council,2 YEAR OLD FUNDING,30/03/2023,5537,Payments to Other Establishments,3111397256,EL1442,530.1,Rainbow Pre-School
http://statistics.data.gov.uk/id/local-authority/38,Oxfordshire County Council,SPECIAL GUARDIANSHIP,21/03/2023,5661,B*Carriageway pre surf. dressing patchin,3111386413,SCP551,530.54,Redacted Personal Data
http://statistics.data.gov.uk/id/local-authority/38,Oxfordshire County Council,REAL COST ALLOWANCES,21/03/2023,5662,B*Christmas Allowance,3111386877,SCP552,530.54,Redacted Personal Data
http://statistics.data.gov.uk/id/local-authority/38,Oxfordshire County Council,REAL COST ALLOWANCES,21/03/2023,5662,B*Christmas Allowance,3111386878,SCP552,530.54,Redacted Personal Data
http://statistics.data.gov.uk/id/local-authority/38,Oxfordshire County Council,Family Solutions Plus Staffing - North,22/03/2023,5665,B*Fostering Project Care Fee,9300059381,SCT315,530.6,OCC SS Banbury Area Off Cash
http://statistics.data.gov.uk/id/local-authority/38,Oxfordshire County Council,DEFINITIVE MAP,28/03/2023,3103,Other Training Courses and Qualification,2201096580,NC3550,530.81,INSTITUTE OF PUBLIC RIGHTS OF WAY
http://statistics.data.gov.uk/id/local-authority/38,Oxfordshire County Council,Support at Home U65 Learning Disability,10/03/2023,5690,,3111379244,SACL20,531.43,FIT (Farm Inspiration Trust)
http://statistics.data.gov.uk/id/local-authority/38,Oxfordshire County Council,Delegated Health Tasks  - Over 65,06/03/2023,5691,,3111374554,SAHD40,532,Prime Social Care Services Ltd
http://statistics.data.gov.uk/id/local-authority/38,Oxfordshire County Council,Delegated Health Tasks  - Over 65,31/03/2023,5691,,3111398365,SAHD40,532,Prime Social Care Services Ltd
http://statistics.data.gov.uk/id/local-authority/38,Oxfordshire County Council,Support at Home 65+ Physical Support,22/03/2023,5693,,3111387185,SACP40,532.1,Pioneering Care Bicester Limited
http://statistics.data.gov.uk/id/local-authority/38,Oxfordshire County Council,Delegated Health Tasks  - Over 65,08/03/2023,5691,,3111376680,SAHD40,532.4,George Springall Homecare
http://statistics.data.gov.uk/id/local-authority/38,Oxfordshire County Council,Support at Home U65 Physical Support,14/03/2023,5899,Social Care - Direct Payments,3111383605,SACP20,532.44,Redacted Personal Data
http://statistics.data.gov.uk/id/local-authority/38,Oxfordshire County Council,Support at Home U65 Learning Disability,03/03/2023,5227,Other Transport Arrangements,3111374263,SACL20,532.72,Redacted Personal Data
http://statistics.data.gov.uk/id/local-authority/38,Oxfordshire County Council,SEN TRANSPORT,09/03/2023,5227,Other Transport Arrangements,3111376817,ER1860,534,LINK SHIRES LTD
http://statistics.data.gov.uk/id/local-authority/38,Oxfordshire County Council,Support at Home 65+ Physical Support,28/03/2023,5699,,3111393966,SACP40,534.03,Care Outlook Ltd
http://statistics.data.gov.uk/id/local-authority/38,Oxfordshire County Council,Support at Home U65 Sensory Support,14/03/2023,5899,Social Care - Direct Payments,3111383365,SACS20,534.24,Redacted Personal Data
http://statistics.data.gov.uk/id/local-authority/38,Oxfordshire County Council,Support at Home U65 Physical Support,14/03/2023,5899,Social Care - Direct Payments,3111384041,SACP20,534.76,Purple Conversation Com In Co (DP)
http://statistics.data.gov.uk/id/local-authority/38,Oxfordshire County Council,FOSTERING MAIN,08/03/2023,5541,B*Foster Parents,3111376091,SCP501,535,Redacted Personal Data
http://statistics.data.gov.uk/id/local-authority/38,Oxfordshire County Council,FOSTERING MAIN,14/03/2023,5541,B*Foster Parents,3111382935,SCP501,535,Redacted Personal Data
http://statistics.data.gov.uk/id/local-authority/38,Oxfordshire County Council,FOSTERING MAIN,21/03/2023,5541,B*Foster Parents,3111386846,SCP501,535,Redacted Personal Data
http://statistics.data.gov.uk/id/local-authority/38,Oxfordshire County Council,FOSTERING MAIN,28/03/2023,5541,B*Foster Parents,3111393534,SCP501,535,Redacted Personal Data
http://statistics.data.gov.uk/id/local-authority/38,Oxfordshire County Council,COUNTY HALL,29/03/2023,4665,Catering,2201096973,K10231,535.1,Vending Sense
http://statistics.data.gov.uk/id/local-authority/38,Oxfordshire County Council,Support at Home 65+ Physical Support,29/03/2023,5693,,3111395734,SACP40,535.5,A CARING HAND LTD
http://statistics.data.gov.uk/id/local-authority/38,Oxfordshire County Council,Support at Home U65 Physical Support,28/03/2023,5699,,3111393765,SACP20,535.5,Adult Transition Services Ltd (ATrS
http://statistics.data.gov.uk/id/local-authority/38,Oxfordshire County Council,Support at Home U65 Physical Support,28/03/2023,5699,,3111393812,SACP20,535.5,BBC CARE SERVICE LIMITED
http://statistics.data.gov.uk/id/local-authority/38,Oxfordshire County Council,Support at Home U65 Learning Disability,14/03/2023,5899,Social Care - Direct Payments,3111383329,SACL20,535.68,Redacted Personal Data
http://statistics.data.gov.uk/id/local-authority/38,Oxfordshire County Council,Support at Home 65+ Physical Support,01/03/2023,5693,,3111372701,SACP40,535.74,AVR (Oxon) Ltd
http://statistics.data.gov.uk/id/local-authority/38,Oxfordshire County Council,Support at Home U65 Mental Health,14/03/2023,5899,Social Care - Direct Payments,3111384076,SACM20,535.8,Purple Conversation Com In Co (DP)
http://statistics.data.gov.uk/id/local-authority/38,Oxfordshire County Council,Support at Home U65 Learning Disability,24/03/2023,5227,Other Transport Arrangements,3111388184,SACL20,536,24/7 LTD
http://statistics.data.gov.uk/id/local-authority/38,Oxfordshire County Council,TREE MAINT OPS,16/03/2023,5526,Payments to Private Contractors,2201092069,NAA100,536,Oxford Direct Services Trading Ltd
http://statistics.data.gov.uk/id/local-authority/38,Oxfordshire County Council,Support at Home U65 Learning Disability,28/03/2023,5682,,3111392730,SACL20,536.98,The Brandon Trust
http://statistics.data.gov.uk/id/local-authority/38,Oxfordshire County Council,Delegated Health Tasks  - Over 65,29/03/2023,5691,,3111396196,SAHD40,537,FiNN Homecare Ltd
http://statistics.data.gov.uk/id/local-authority/38,Oxfordshire County Council,Delegated Health Tasks  - Under 65,29/03/2023,5691,,3111396199,SAHD20,537,FiNN Homecare Ltd
http://statistics.data.gov.uk/id/local-authority/38,Oxfordshire County Council,Reactive Maintenance,31/03/2023,3787,Premises Repairs,2201098813,K10200,537.58,Travis Perkins Trading Co Ltd
http://statistics.data.gov.uk/id/local-authority/38,Oxfordshire County Council,Support at Home 65+ Learning Disability,10/03/2023,5690,,3111379270,SACL40,537.81,The Ice Centre
http://statistics.data.gov.uk/id/local-authority/38,Oxfordshire County Council,Active Travel Capability Fund,22/03/2023,4042,Fixtures and Fittings,2201094385,N10572,537.88,Oxford Direct Services Trading Ltd
http://statistics.data.gov.uk/id/local-authority/38,Oxfordshire County Council,FOSTERING MAIN,21/03/2023,5394,Other Expenses,3111386927,SCP501,537.94,Redacted Personal Data
http://statistics.data.gov.uk/id/local-authority/38,Oxfordshire County Council,Support at Home U65 Physical Support,06/03/2023,5696,,3111374335,SACP20,538.71,Orders of St John Care Trust
http://statistics.data.gov.uk/id/local-authority/38,Oxfordshire County Council,Support at Home U65 MH OBC Contract,14/03/2023,5899,Social Care - Direct Payments,3111383215,SACH20,538.88,Redacted Personal Data
http://statistics.data.gov.uk/id/local-authority/38,Oxfordshire County Council,SEN Inclusion Fund,30/03/2023,5537,Payments to Other Establishments,3111397807,EL1128,539,Ascott-under-Wychwood Pre-School
http://statistics.data.gov.uk/id/local-authority/38,Oxfordshire County Council,SEN Inclusion Fund,31/03/2023,5537,Payments to Other Establishments,3111398341,EL1128,539,Brize Norton Village Pre
http://statistics.data.gov.uk/id/local-authority/38,Oxfordshire County Council,SEN Inclusion Fund,30/03/2023,5537,Payments to Other Establishments,3111397775,EL1128,539,Grovelands Park Pre-School
http://statistics.data.gov.uk/id/local-authority/38,Oxfordshire County Council,FOSTERING MAIN,08/03/2023,5549,B*Fostering Allowance - Regulation 38,3111376086,SCP501,539,Redacted Personal Data
http://statistics.data.gov.uk/id/local-authority/38,Oxfordshire County Council,FOSTERING MAIN,14/03/2023,5549,B*Fostering Allowance - Regulation 38,3111382930,SCP501,539,Redacted Personal Data
http://statistics.data.gov.uk/id/local-authority/38,Oxfordshire County Council,FOSTERING MAIN,21/03/2023,5549,B*Fostering Allowance - Regulation 38,3111386841,SCP501,539,Redacted Personal Data
http://statistics.data.gov.uk/id/local-authority/38,Oxfordshire County Council,FOSTERING MAIN,28/03/2023,5549,B*Fostering Allowance - Regulation 38,3111393529,SCP501,539,Redacted Personal Data
http://statistics.data.gov.uk/id/local-authority/38,Oxfordshire County Council,LAC PUPIL PREMIUM,17/03/2023,5380,"Author, Speaker and Lecturer Fees",2201092559,EP1395,539,Tuition Extra (Kent) Ltd
http://statistics.data.gov.uk/id/local-authority/38,Oxfordshire County Council,LAC PUPIL PREMIUM,23/03/2023,5380,"Author, Speaker and Lecturer Fees",2201094784,EP1395,539,Tuition Extra (Kent) Ltd
http://statistics.data.gov.uk/id/local-authority/38,Oxfordshire County Council,LAC PUPIL PREMIUM,31/03/2023,5380,"Author, Speaker and Lecturer Fees",2201098540,EP1395,539,Tuition Extra (Kent) Ltd
http://statistics.data.gov.uk/id/local-authority/38,Oxfordshire County Council,LIBRARY COLLECTIONS,09/03/2023,4539,"Books, DVDs and CDs",3111376799,M37000,539.17,ASKEWS & HOLTS LIBRARY SERVICES LTD
http://statistics.data.gov.uk/id/local-authority/38,Oxfordshire County Council,UASC 16&17,02/03/2023,5785,Client Lodgings and Accommodation,3111373517,SYT011,539.2,Response Organisation
http://statistics.data.gov.uk/id/local-authority/38,Oxfordshire County Council,UASC 16&17,02/03/2023,5785,Client Lodgings and Accommodation,3111373518,SYT011,539.2,Response Organisation
http://statistics.data.gov.uk/id/local-authority/38,Oxfordshire County Council,UASC 16&17,02/03/2023,5785,Client Lodgings and Accommodation,3111373519,SYT011,539.2,Response Organisation
http://statistics.data.gov.uk/id/local-authority/38,Oxfordshire County Council,PLACEMENTS- RELEVANT,02/03/2023,5785,Client Lodgings and Accommodation,3111373520,SCP802,539.2,Response Organisation
http://statistics.data.gov.uk/id/local-authority/38,Oxfordshire County Council,Support at Home 65+ Physical Support,28/03/2023,5699,,3111393986,SACP40,539.21,Care Outlook Ltd
http://statistics.data.gov.uk/id/local-authority/38,Oxfordshire County Council,Youth Justice & Exploitation,20/03/2023,5227,Other Transport Arrangements,3111385593,SCT118,539.88,The Oxfordshire Taxi Company Ltd T/
http://statistics.data.gov.uk/id/local-authority/38,Oxfordshire County Council,POST 16 SEN,17/03/2023,4330,Transport to School Activities,3111388213,ER0947,540,A2B Castle Cars Ltd
http://statistics.data.gov.uk/id/local-authority/38,Oxfordshire County Council,Support at Home U65 Learning Disability,31/03/2023,5227,Other Transport Arrangements,3111398174,SACL20,540,Ali's Cabs
http://statistics.data.gov.uk/id/local-authority/38,Oxfordshire County Council,Household Support Fund 3,22/03/2023,5667,Can be reused,3111386975,A16009,540,Aureus Primary School Academy
http://statistics.data.gov.uk/id/local-authority/38,Oxfordshire County Council,Delegated Health Tasks  - Over 65,16/03/2023,5691,,3111385277,SAHD40,540,Bolff Healthcare Services Ltd
http://statistics.data.gov.uk/id/local-authority/38,Oxfordshire County Council,Family Solutions Plus Non-staff - Centra,22/03/2023,3942,Hire of Accommodation and Facilities,2201094401,SCT311,540,DMR Services Ltd
http://statistics.data.gov.uk/id/local-authority/38,Oxfordshire County Council,Household Support Fund 3,22/03/2023,5667,Can be reused,3111386963,A16009,540,Europa School Uk
http://statistics.data.gov.uk/id/local-authority/38,Oxfordshire County Council,TRANSPORT COSTS,09/03/2023,4330,Transport to School Activities,3111376588,SCT190,540,Lightway Services Ltd
http://statistics.data.gov.uk/id/local-authority/38,Oxfordshire County Council,Household Support Fund 3,30/03/2023,7690,Additional Grant for Schools,3111396546,A16009,540,Millbrook Primary School
http://statistics.data.gov.uk/id/local-authority/38,Oxfordshire County Council,Start Well Staffing,30/03/2023,3100,Educational and Vocational Training,2201098065,SCG125,540,Oxford Brookes University
http://statistics.data.gov.uk/id/local-authority/38,Oxfordshire County Council,Support at Home U65 Learning Disability,29/03/2023,5697,,3111396006,SACL20,540,Pennyhooks Farm Trust
http://statistics.data.gov.uk/id/local-authority/38,Oxfordshire County Council,Household Support Fund 3,30/03/2023,7690,Additional Grant for Schools,3111396577,A16009,540,Rainbows Day Nursery
http://statistics.data.gov.uk/id/local-authority/38,Oxfordshire County Council,Household Support Fund 3,22/03/2023,5667,Can be reused,3111387093,A16009,540,The Gallery Trust
http://statistics.data.gov.uk/id/local-authority/38,Oxfordshire County Council,Household Support Fund 3,22/03/2023,5667,Can be reused,3111386972,A16009,540,Tyndale Community School (Academy)
http://statistics.data.gov.uk/id/local-authority/38,Oxfordshire County Council,SEN TRANSPORT,16/03/2023,4330,Transport to School Activities,3111385157,ER1860,540,Vine Community Services Ltd T/A
http://statistics.data.gov.uk/id/local-authority/38,Oxfordshire County Council,Support at Home U65 Learning Disability,14/03/2023,5899,Social Care - Direct Payments,3111383951,SACL20,540.12,Purple Conversation Com In Co (DP)
http://statistics.data.gov.uk/id/local-authority/38,Oxfordshire County Council,Support at Home 65+ Physical Support,28/03/2023,5689,,3111394653,SACP40,540.54,My Carer Ltd
http://statistics.data.gov.uk/id/local-authority/38,Oxfordshire County Council,Support at Home 65+ Physical Support,28/03/2023,5689,,3111393216,SACP40,540.75,Caremark (West Oxfordshire & Cherwe
http://statistics.data.gov.uk/id/local-authority/38,Oxfordshire County Council,ALTERNATIVES TO CARE,27/03/2023,2040,Agency Staff,2201095951,SCE575,541.6,THORNBURY NURSING SERVICES
http://statistics.data.gov.uk/id/local-authority/38,Oxfordshire County Council,Support at Home U65 Learning Disability,14/03/2023,5899,Social Care - Direct Payments,3111383042,SACL20,541.72,Connection Support (Oxford)
http://statistics.data.gov.uk/id/local-authority/38,Oxfordshire County Council,TRANSLATION,15/03/2023,5668,Technical and Professional Consultant F,2201091812,R51004,541.72,K International PLC
http://statistics.data.gov.uk/id/local-authority/38,Oxfordshire County Council,LEAVING CARE CITY 1,28/03/2023,5227,Other Transport Arrangements,9300059477,SCT193,541.77,OCC SS Oxford City Div 1 Cash
http://statistics.data.gov.uk/id/local-authority/38,Oxfordshire County Council,Support at Home 65+ Physical Support,28/03/2023,5699,,3111394566,SACP40,541.8,Pechiv Ltd
http://statistics.data.gov.uk/id/local-authority/38,Oxfordshire County Council,FOSTERING MAIN,08/03/2023,5545,B*Fostering Enhancements - Level 2,3111375956,SCP501,542,Redacted Personal Data
http://statistics.data.gov.uk/id/local-authority/38,Oxfordshire County Council,FOSTERING MAIN,14/03/2023,5545,B*Fostering Enhancements - Level 2,3111382748,SCP501,542,Redacted Personal Data
http://statistics.data.gov.uk/id/local-authority/38,Oxfordshire County Council,FOSTERING MAIN,21/03/2023,5545,B*Fostering Enhancements - Level 2,3111386711,SCP501,542,Redacted Personal Data
http://statistics.data.gov.uk/id/local-authority/38,Oxfordshire County Council,FOSTERING MAIN,28/03/2023,5545,B*Fostering Enhancements - Level 2,3111393388,SCP501,542,Redacted Personal Data
http://statistics.data.gov.uk/id/local-authority/38,Oxfordshire County Council,Support at Home U65 Physical Support,14/03/2023,5899,Social Care - Direct Payments,3111383612,SACP20,542,Redacted Personal Data
http://statistics.data.gov.uk/id/local-authority/38,Oxfordshire County Council,Support at Home U65 Learning Disability,20/03/2023,5227,Other Transport Arrangements,3111385758,SACL20,542.3,The Oxfordshire Taxi Company Ltd T/
http://statistics.data.gov.uk/id/local-authority/38,Oxfordshire County Council,Support at Home 65+ Physical Support,14/03/2023,5899,Social Care - Direct Payments,3111383987,SACP40,542.56,Purple Conversation Com In Co (DP)
http://statistics.data.gov.uk/id/local-authority/38,Oxfordshire County Council,Support at Home U65 Learning Disability,14/03/2023,5899,Social Care - Direct Payments,3111383448,SACL20,542.72,Redacted Personal Data
http://statistics.data.gov.uk/id/local-authority/38,Oxfordshire County Council,NHS HEALTHCHECK PROG,07/03/2023,4790,"Publicity, Promotions and Advertisement",2201088216,PH0010,543,JC Decaux
http://statistics.data.gov.uk/id/local-authority/38,Oxfordshire County Council,Support at Home 65+ Physical Support,28/03/2023,5689,,3111394478,SACP40,543.02,Greigcare Home Service
http://statistics.data.gov.uk/id/local-authority/38,Oxfordshire County Council,Support at Home U65 Learning Disability,21/03/2023,5227,Other Transport Arrangements,3111386175,SACL20,543.32,Bicester Cars UK Ltd
http://statistics.data.gov.uk/id/local-authority/38,Oxfordshire County Council,Support at Home U65 Physical Support,06/03/2023,5696,,3111374372,SACP20,543.58,Orders of St John Care Trust
http://statistics.data.gov.uk/id/local-authority/38,Oxfordshire County Council,DISABILITIES TEAM-C,10/03/2023,5227,Other Transport Arrangements,3111377102,SCT105,544,OXFORD BLUE CARS
http://statistics.data.gov.uk/id/local-authority/38,Oxfordshire County Council,SM DISABILITIES,29/03/2023,5554,Childrens' Social Care - Direct Payments,3111395788,SCT102,544.29,Connection Support (Oxford)
http://statistics.data.gov.uk/id/local-authority/38,Oxfordshire County Council,SM DISABILITIES,29/03/2023,5554,Childrens' Social Care - Direct Payments,3111395859,SCT102,544.29,Redacted Personal Data
http://statistics.data.gov.uk/id/local-authority/38,Oxfordshire County Council,SM DISABILITIES,29/03/2023,5554,Childrens' Social Care - Direct Payments,3111395878,SCT102,544.29,Redacted Personal Data
http://statistics.data.gov.uk/id/local-authority/38,Oxfordshire County Council,CHC Fast Track - Sup at Homes - Over 65,14/03/2023,5691,,3111384575,SAHE40,544.38,Caretree Ltd
http://statistics.data.gov.uk/id/local-authority/38,Oxfordshire County Council,Support at Home U65 Learning Disability,10/03/2023,5690,,3111379444,SACL20,544.71,Turnstyle
http://statistics.data.gov.uk/id/local-authority/38,Oxfordshire County Council,Support at Home U65 MH OBC Contract,14/03/2023,5899,Social Care - Direct Payments,3111384298,SACH20,544.84,Rosekel Resourcing Ltd
http://statistics.data.gov.uk/id/local-authority/38,Oxfordshire County Council,CHC Fast Track - Sup at Homes - Over 65,14/03/2023,5691,,3111384353,SAHE40,545,Angel Care Group
http://statistics.data.gov.uk/id/local-authority/38,Oxfordshire County Council,Support at Home 65+ Physical Support,06/03/2023,5696,,3111374391,SACP40,545.33,Orders of St John Care Trust
http://statistics.data.gov.uk/id/local-authority/38,Oxfordshire County Council,Support at Home U65 Memory & Cognition,14/03/2023,5899,Social Care - Direct Payments,3111384216,SACC20,545.56,Purple Conversation Com In Co (DP)
http://statistics.data.gov.uk/id/local-authority/38,Oxfordshire County Council,Support at Home 65+ Physical Support,24/03/2023,5693,,3111388017,SACP40,546,BE WELL CARE LTD
http://statistics.data.gov.uk/id/local-authority/38,Oxfordshire County Council,FOSTERING MAIN,08/03/2023,5541,B*Foster Parents,3111375977,SCP501,546,Redacted Personal Data
http://statistics.data.gov.uk/id/local-authority/38,Oxfordshire County Council,FOSTERING MAIN,14/03/2023,5541,B*Foster Parents,3111382810,SCP501,546,Redacted Personal Data
http://statistics.data.gov.uk/id/local-authority/38,Oxfordshire County Council,FOSTERING MAIN,21/03/2023,5541,B*Foster Parents,3111386732,SCP501,546,Redacted Personal Data
http://statistics.data.gov.uk/id/local-authority/38,Oxfordshire County Council,FOSTERING MAIN,08/03/2023,5541,B*Foster Parents,3111375982,SCP501,546,Redacted Personal Data
http://statistics.data.gov.uk/id/local-authority/38,Oxfordshire County Council,FOSTERING MAIN,08/03/2023,5541,B*Foster Parents,3111375983,SCP501,546,Redacted Personal Data
http://statistics.data.gov.uk/id/local-authority/38,Oxfordshire County Council,FOSTERING MAIN,14/03/2023,5541,B*Foster Parents,3111382824,SCP501,546,Redacted Personal Data
http://statistics.data.gov.uk/id/local-authority/38,Oxfordshire County Council,FOSTERING MAIN,14/03/2023,5541,B*Foster Parents,3111382825,SCP501,546,Redacted Personal Data
http://statistics.data.gov.uk/id/local-authority/38,Oxfordshire County Council,FOSTERING MAIN,21/03/2023,5541,B*Foster Parents,3111386738,SCP501,546,Redacted Personal Data
http://statistics.data.gov.uk/id/local-authority/38,Oxfordshire County Council,FOSTERING MAIN,21/03/2023,5541,B*Foster Parents,3111386739,SCP501,546,Redacted Personal Data
http://statistics.data.gov.uk/id/local-authority/38,Oxfordshire County Council,FOSTERING MAIN,28/03/2023,5541,B*Foster Parents,3111393421,SCP501,546,Redacted Personal Data
http://statistics.data.gov.uk/id/local-authority/38,Oxfordshire County Council,FOSTERING MAIN,28/03/2023,5541,B*Foster Parents,3111393422,SCP501,546,Redacted Personal Data
http://statistics.data.gov.uk/id/local-authority/38,Oxfordshire County Council,Support at Home U65 Autism /Abated,07/03/2023,5899,Social Care - Direct Payments,3111375338,SACA20,546.15,Redacted Personal Data
http://statistics.data.gov.uk/id/local-authority/38,Oxfordshire County Council,Support at Home U65 Sensory Support,14/03/2023,5899,Social Care - Direct Payments,3111383362,SACS20,546.44,Redacted Personal Data
http://statistics.data.gov.uk/id/local-authority/38,Oxfordshire County Council,Unregistered Placements,02/03/2023,5526,Payments to Private Contractors,2201086254,SHT219,547.18,Prospero Group Limited
http://statistics.data.gov.uk/id/local-authority/38,Oxfordshire County Council,FLEET COSTS,06/03/2023,4270,HTM / Other Vehicle - Hire Charges,2201087380,N20420,547.4,Go Plant Fleet Services
http://statistics.data.gov.uk/id/local-authority/38,Oxfordshire County Council,Support at Home U65 Physical Support,14/03/2023,5899,Social Care - Direct Payments,3111383929,SACP20,547.76,Purple Conversation Com In Co (DP)
http://statistics.data.gov.uk/id/local-authority/38,Oxfordshire County Council,Support at Home 65+ Physical Support,14/03/2023,5899,Social Care - Direct Payments,3111383272,SACP40,547.8,Redacted Personal Data
http://statistics.data.gov.uk/id/local-authority/38,Oxfordshire County Council,COUNTY PRINT FINSHRS,28/03/2023,4705,Printing,2201096217,SAP092,548,Fine Print (Services) Ltd
http://statistics.data.gov.uk/id/local-authority/38,Oxfordshire County Council,NURSERY ED FUND,30/03/2023,5537,Payments to Other Establishments,3111397303,EL0022,548.1,Farmhouse Nursery School
http://statistics.data.gov.uk/id/local-authority/38,Oxfordshire County Council,NURSERY ED FUND,31/03/2023,5537,Payments to Other Establishments,3111398326,EL0022,548.16,Expansive Education Ltd
http://statistics.data.gov.uk/id/local-authority/38,Oxfordshire County Council,NURSERY ED FUND,01/03/2023,5537,Payments to Other Establishments,3111372359,EL0022,548.16,Little Acorns Pre-school Kingsmere
http://statistics.data.gov.uk/id/local-authority/38,Oxfordshire County Council,NURSERY ED FUND,01/03/2023,5537,Payments to Other Establishments,3111372368,EL0022,548.16,Little Acorns Pre-school Kingsmere
http://statistics.data.gov.uk/id/local-authority/38,Oxfordshire County Council,,22/03/2023,1531,Cash Allocation Control Account,3111387270,,548.99,South Oxfordshire District Council
http://statistics.data.gov.uk/id/local-authority/38,Oxfordshire County Council,Support at Home U65 Learning Disability,10/03/2023,5690,,3111377945,SACL20,549.23,ADVANCE HOUSING & SUPPORT LTD
http://statistics.data.gov.uk/id/local-authority/38,Oxfordshire County Council,Family Solutions Plus Non-staff - Centra,13/03/2023,5227,Other Transport Arrangements,9300059271,SCT311,549.68,OCC SS Banbury Area Off Cash
http://statistics.data.gov.uk/id/local-authority/38,Oxfordshire County Council,Support at Home 65+ Physical Support,22/03/2023,5227,Other Transport Arrangements,2201094190,SACP40,550,Alpha Care Ambulance Service
http://statistics.data.gov.uk/id/local-authority/38,Oxfordshire County Council,LANDLORD & TENANT,20/03/2023,8102,Payments to main contractor,2201093454,K10130,550,Amity Insulation Services Limited
http://statistics.data.gov.uk/id/local-authority/38,Oxfordshire County Council,LAC PUPIL PREMIUM,20/03/2023,5537,Payments to Other Establishments,3111386049,EP1395,550,Burford School
http://statistics.data.gov.uk/id/local-authority/38,Oxfordshire County Council,HISTORY SERVICE,07/03/2023,5190,Subscriptions,2201087746,M25000,550,CILIP
http://statistics.data.gov.uk/id/local-authority/38,Oxfordshire County Council,LEGAL SERVICES,09/03/2023,5251,Legal Costs,2201088995,R21000,550,Curtis Ball
http://statistics.data.gov.uk/id/local-authority/38,Oxfordshire County Council,Staff Travel Benefits,14/03/2023,5460,Entertainment Expenses,2201091081,G22006,550,Cyclescheme Ltd
http://statistics.data.gov.uk/id/local-authority/38,Oxfordshire County Council,TRANSPORT COSTS,31/03/2023,5227,Other Transport Arrangements,3111398159,SCT190,550,D�Arrive Ltd
http://statistics.data.gov.uk/id/local-authority/38,Oxfordshire County Council,LEGAL SERVICES,03/03/2023,5251,Legal Costs,2201086668,R21000,550,Redacted Personal Data
http://statistics.data.gov.uk/id/local-authority/38,Oxfordshire County Council,TRANSPORT COSTS,06/03/2023,4330,Transport to School Activities,3111374703,SCT190,550,Go Green Taxis
http://statistics.data.gov.uk/id/local-authority/38,Oxfordshire County Council,TRANSPORT COSTS,13/03/2023,4330,Transport to School Activities,3111381963,SCT190,550,Her Ride Limited
http://statistics.data.gov.uk/id/local-authority/38,Oxfordshire County Council,LEGAL SERVICES,01/03/2023,5251,Legal Costs,2201085790,R21000,550,Kate Ferguson
http://statistics.data.gov.uk/id/local-authority/38,Oxfordshire County Council,LEGAL SERVICES,01/03/2023,5251,Legal Costs,2201085817,R21000,550,Mavis Amonoo-Acquah
http://statistics.data.gov.uk/id/local-authority/38,Oxfordshire County Council,LEGAL SERVICES,14/03/2023,5251,Legal Costs,2201091384,R21000,550,Mavis Amonoo-Acquah
http://statistics.data.gov.uk/id/local-authority/38,Oxfordshire County Council,LEGAL SERVICES,30/03/2023,5251,Legal Costs,2201097761,R21000,550,Miss Anna Yarde
http://statistics.data.gov.uk/id/local-authority/38,Oxfordshire County Council,LEGAL SERVICES,02/03/2023,5251,Legal Costs,2201086383,R21000,550,Miss Justine Ramsden
http://statistics.data.gov.uk/id/local-authority/38,Oxfordshire County Council,LEGAL SERVICES,07/03/2023,5251,Legal Costs,2201088127,R21000,550,Oliver Powell (Harcourt)
http://statistics.data.gov.uk/id/local-authority/38,Oxfordshire County Council,L&D CORE PROGRAMME,13/03/2023,3103,Other Training Courses and Qualification,2201090720,G21060,550,Premier Partnership
http://statistics.data.gov.uk/id/local-authority/38,Oxfordshire County Council,L&D CORE PROGRAMME,13/03/2023,3103,Other Training Courses and Qualification,2201090723,G21060,550,Premier Partnership
http://statistics.data.gov.uk/id/local-authority/38,Oxfordshire County Council,L&D CORE PROGRAMME,13/03/2023,3103,Other Training Courses and Qualification,2201090724,G21060,550,Premier Partnership
http://statistics.data.gov.uk/id/local-authority/38,Oxfordshire County Council,L&D CORE PROGRAMME,22/03/2023,3103,Other Training Courses and Qualification,2201094296,G21060,550,Premier Partnership
http://statistics.data.gov.uk/id/local-authority/38,Oxfordshire County Council,L&D CORE PROGRAMME,22/03/2023,3103,Other Training Courses and Qualification,2201094297,G21060,550,Premier Partnership
http://statistics.data.gov.uk/id/local-authority/38,Oxfordshire County Council,L&D CORE PROGRAMME,27/03/2023,3103,Other Training Courses and Qualification,2201095661,G21060,550,Premier Partnership
http://statistics.data.gov.uk/id/local-authority/38,Oxfordshire County Council,Safeguarding commissioning,27/03/2023,4861,Hired and Contracted Services,3111388605,EL1640,550,Red Kite Family Centre
http://statistics.data.gov.uk/id/local-authority/38,Oxfordshire County Council,Support at Home U65 Learning Disability,14/03/2023,5899,Social Care - Direct Payments,3111383126,SACL20,550,Redacted Personal Data
http://statistics.data.gov.uk/id/local-authority/38,Oxfordshire County Council,LEGAL SERVICES,14/03/2023,5251,Legal Costs,2201091342,R21000,550,Stephen Crispin
http://statistics.data.gov.uk/id/local-authority/38,Oxfordshire County Council,FOSTERING MAIN,28/03/2023,5548,B*Fostering - Special Rates & Plus Amou,3111393595,SCP501,550.33,Redacted Personal Data
http://statistics.data.gov.uk/id/local-authority/38,Oxfordshire County Council,LEAVING CARE CITY 2,27/03/2023,4685,Clothing and Uniforms,9300059427,SCT195,551.05,OCC SS Oxford City Div 1 Cash
http://statistics.data.gov.uk/id/local-authority/38,Oxfordshire County Council,Support at Home U65 MH OBC Contract,14/03/2023,5899,Social Care - Direct Payments,3111383794,SACH20,551.08,Purple Conversation Com In Co (DP)
http://statistics.data.gov.uk/id/local-authority/38,Oxfordshire County Council,COMM DRAWDOWN FUNDNG,13/03/2023,8004,Design Consultant,2201090965,NQ1006,551.26,Milestone Infrastructure Limited
http://statistics.data.gov.uk/id/local-authority/38,Oxfordshire County Council,LIBRARY COLLECTIONS,16/03/2023,4539,"Books, DVDs and CDs",3111384872,M37000,551.75,ASKEWS & HOLTS LIBRARY SERVICES LTD
http://statistics.data.gov.uk/id/local-authority/38,Oxfordshire County Council,Support at Home 65+ Physical Support,28/03/2023,5689,,3111394027,SACP40,551.88,Allied Health-Services Limited
http://statistics.data.gov.uk/id/local-authority/38,Oxfordshire County Council,Support at Home U65 Learning Disability,10/03/2023,5690,,3111378108,SACL20,551.95,Style Acre
http://statistics.data.gov.uk/id/local-authority/38,Oxfordshire County Council,LEGAL BUDGET,01/03/2023,5251,Legal Costs,2201085538,SCP655,552,DNA WORLDWIDE GROUP
http://statistics.data.gov.uk/id/local-authority/38,Oxfordshire County Council,Support at Home U65 Sensory Support,29/03/2023,5697,,3111395701,SACS20,552,Tommy Bee UK Limited
http://statistics.data.gov.uk/id/local-authority/38,Oxfordshire County Council,FOSTERING MAIN,28/03/2023,5227,Other Transport Arrangements,3111393551,SCP501,552.24,Redacted Personal Data
http://statistics.data.gov.uk/id/local-authority/38,Oxfordshire County Council,Support at Home 65+ Physical Support,28/03/2023,5689,,3111394023,SACP40,552.72,Allied Health-Services Limited
http://statistics.data.gov.uk/id/local-authority/38,Oxfordshire County Council,Reactive Maintenance,21/03/2023,3787,Premises Repairs,2201093515,K10200,552.73,Wolseley UK Limited
http://statistics.data.gov.uk/id/local-authority/38,Oxfordshire County Council,Delegated Health Tasks  - Over 65,13/03/2023,5691,,3111382120,SAHD40,552.76,Helping Hands
http://statistics.data.gov.uk/id/local-authority/38,Oxfordshire County Council,Support at Home U65 Physical Support,14/03/2023,5899,Social Care - Direct Payments,3111384142,SACP20,552.76,Purple Conversation Com In Co (DP)
http://statistics.data.gov.uk/id/local-authority/38,Oxfordshire County Council,RESPITE,10/03/2023,4330,Transport to School Activities,3111377089,ER0683,553,Eagle Taxi
http://statistics.data.gov.uk/id/local-authority/38,Oxfordshire County Council,Delegated Health Tasks  - Under 65,29/03/2023,5691,,3111396192,SAHD20,553.5,FiNN Homecare Ltd
http://statistics.data.gov.uk/id/local-authority/38,Oxfordshire County Council,Support at Home U65 Other /Soc Isolation,10/03/2023,5690,,3111377990,SACV20,553.57,Headway Oxford
http://statistics.data.gov.uk/id/local-authority/38,Oxfordshire County Council,INCIDENT RESPONSE,09/03/2023,5070,Telephone - Rentals,2201088924,NTH415,554.35,The Answering Service Ltd
http://statistics.data.gov.uk/id/local-authority/38,Oxfordshire County Council,Support at Home U65 Physical Support,28/03/2023,5699,,3111394857,SACP20,554.4,Ringstead Healthcare Limited
http://statistics.data.gov.uk/id/local-authority/38,Oxfordshire County Council,Support at Home 65+ Learning Disability,14/03/2023,5899,Social Care - Direct Payments,3111383851,SACL40,554.48,Purple Conversation Com In Co (DP)
http://statistics.data.gov.uk/id/local-authority/38,Oxfordshire County Council,LIBRARY COLLECTIONS,29/03/2023,4539,"Books, DVDs and CDs",3111396091,M37000,554.5,ASKEWS & HOLTS LIBRARY SERVICES LTD
http://statistics.data.gov.uk/id/local-authority/38,Oxfordshire County Council,Support at Home U65 MH OBC Contract,10/03/2023,4111,Security Costs,3111377113,SACH20,554.67,Headington Carriers Limited
http://statistics.data.gov.uk/id/local-authority/38,Oxfordshire County Council,SHARED LIVES,10/03/2023,5555,Payments to Carers,3111377229,SAT151,554.97,Redacted Personal Data
http://statistics.data.gov.uk/id/local-authority/38,Oxfordshire County Council,Household Support Fund 3,22/03/2023,5667,Can be reused,3111386981,A16009,555,Longford Park Primary School
http://statistics.data.gov.uk/id/local-authority/38,Oxfordshire County Council,CHC Fast Track - Sup at Homes - Over 65,08/03/2023,5691,,3111376605,SAHE40,555,We-Care-Recruitment Ltd
http://statistics.data.gov.uk/id/local-authority/38,Oxfordshire County Council,Support at Home U65 Learning Disability,14/03/2023,5899,Social Care - Direct Payments,3111383336,SACL20,555.44,Redacted Personal Data
http://statistics.data.gov.uk/id/local-authority/38,Oxfordshire County Council,Support at Home 65+ Physical Support,01/03/2023,5693,,3111372620,SACP40,555.8,A CARING HAND LTD
http://statistics.data.gov.uk/id/local-authority/38,Oxfordshire County Council,Support at Home U65 Physical Support,29/03/2023,5693,,3111395710,SACP20,555.8,A CARING HAND LTD
http://statistics.data.gov.uk/id/local-authority/38,Oxfordshire County Council,Support at Home 65+ Physical Support,29/03/2023,5693,,3111395716,SACP40,555.8,A CARING HAND LTD
http://statistics.data.gov.uk/id/local-authority/38,Oxfordshire County Council,Reactive Maintenance,08/03/2023,3787,Premises Repairs,2201088834,K10200,556,SI Pumps Ltd
http://statistics.data.gov.uk/id/local-authority/38,Oxfordshire County Council,CORONER,03/03/2023,5202,Use of Mortuary Services,2201086722,R71000,556.25,Dr Atharina Julai
http://statistics.data.gov.uk/id/local-authority/38,Oxfordshire County Council,CORONER,03/03/2023,5202,Use of Mortuary Services,2201086724,R71000,556.25,Dr Atharina Julai
http://statistics.data.gov.uk/id/local-authority/38,Oxfordshire County Council,CORONER,07/03/2023,5202,Use of Mortuary Services,2201088093,R71000,556.25,Dr Ben Phillips
http://statistics.data.gov.uk/id/local-authority/38,Oxfordshire County Council,CORONER,28/03/2023,5202,Use of Mortuary Services,2201096491,R71000,556.25,Dr Ben Phillips
http://statistics.data.gov.uk/id/local-authority/38,Oxfordshire County Council,CORONER,16/03/2023,5202,Use of Mortuary Services,2201092204,R71000,556.25,Dr Lucinda Winter
http://statistics.data.gov.uk/id/local-authority/38,Oxfordshire County Council,,02/03/2023,1325,Attachment of Earnings,3111373622,,556.29,Kingston upon Thame
http://statistics.data.gov.uk/id/local-authority/38,Oxfordshire County Council,Support at Home 65+ Memory & Cognition,14/03/2023,5899,Social Care - Direct Payments,3111383182,SACC40,556.52,Redacted Personal Data
http://statistics.data.gov.uk/id/local-authority/38,Oxfordshire County Council,Family Solutions Plus Non-staff - Centra,27/03/2023,4940,Other Services,3111388195,SCT311,556.92,The Old Station Nursery (Bampton)
http://statistics.data.gov.uk/id/local-authority/38,Oxfordshire County Council,Family Solutions Plus Non-staff - Centra,27/03/2023,4940,Other Services,3111388198,SCT311,556.92,The Old Station Nursery (Bampton)
http://statistics.data.gov.uk/id/local-authority/38,Oxfordshire County Council,ECH Central Costs,10/03/2023,5696,,3111377307,SBE561,557.56,BPHA Limited
http://statistics.data.gov.uk/id/local-authority/38,Oxfordshire County Council,Support at Home U65 Learning Disability,14/03/2023,5899,Social Care - Direct Payments,3111383573,SACL20,557.56,Redacted Personal Data
http://statistics.data.gov.uk/id/local-authority/38,Oxfordshire County Council,Support at Home U65 Learning Disability,14/03/2023,5899,Social Care - Direct Payments,3111383921,SACL20,557.84,Purple Conversation Com In Co (DP)
http://statistics.data.gov.uk/id/local-authority/38,Oxfordshire County Council,NHS HEALTHCHECK PROG,07/03/2023,4790,"Publicity, Promotions and Advertisement",2201088214,PH0010,558,JC Decaux
http://statistics.data.gov.uk/id/local-authority/38,Oxfordshire County Council,FOSTERING MAIN,08/03/2023,4940,Other Services,3111376038,SCP501,558,Redacted Personal Data
http://statistics.data.gov.uk/id/local-authority/38,Oxfordshire County Council,Support at Home 65+ Physical Support,28/03/2023,5699,,3111394934,SACP40,558.18,The Care Workshop Limited
http://statistics.data.gov.uk/id/local-authority/38,Oxfordshire County Council,Planned Maintenance,23/03/2023,3787,Premises Repairs,2201094708,K30120,559,Ambiflex Ltd
http://statistics.data.gov.uk/id/local-authority/38,Oxfordshire County Council,TRANSPORT COSTS,13/03/2023,4330,Transport to School Activities,3111381968,SCT190,559,Her Ride Limited
http://statistics.data.gov.uk/id/local-authority/38,Oxfordshire County Council,Support at Home U65 MH OBC Contract,14/03/2023,5899,Social Care - Direct Payments,3111383299,SACH20,559.12,Redacted Personal Data
http://statistics.data.gov.uk/id/local-authority/38,Oxfordshire County Council,Support at Home U65 MH OBC Contract,14/03/2023,5899,Social Care - Direct Payments,3111383077,SACH20,559.12,Redacted Personal Data
http://statistics.data.gov.uk/id/local-authority/38,Oxfordshire County Council,Support at Home U65 Learning Disability,10/03/2023,5690,,3111378152,SACL20,559.73,The Camden Society
http://statistics.data.gov.uk/id/local-authority/38,Oxfordshire County Council,Transition Team,21/03/2023,4330,Transport to School Activities,3111386942,SKT371,560,Banbury Taxis
http://statistics.data.gov.uk/id/local-authority/38,Oxfordshire County Council,LAC PUPIL PREMIUM,20/03/2023,5537,Payments to Other Establishments,3111386040,EP1395,560,Burnley High School
http://statistics.data.gov.uk/id/local-authority/38,Oxfordshire County Council,MAINSTREAM-PRIMARY,09/03/2023,4330,Transport to School Activities,3111376773,ER1250,560,Go Green Taxis
http://statistics.data.gov.uk/id/local-authority/38,Oxfordshire County Council,TRANSPORT COSTS,13/03/2023,4330,Transport to School Activities,3111381935,SCT190,560,Her Ride Limited
http://statistics.data.gov.uk/id/local-authority/38,Oxfordshire County Council,Support at Home U65 MH OBC Contract,14/03/2023,5899,Social Care - Direct Payments,3111383670,SACH20,560,Redacted Personal Data
http://statistics.data.gov.uk/id/local-authority/38,Oxfordshire County Council,LD Continuing Care - Sup at Home - U65,21/03/2023,5691,,3111387334,SAHL20,560,Kit Mobility Taxis
http://statistics.data.gov.uk/id/local-authority/38,Oxfordshire County Council,Support at Home U65 Learning Disability,14/03/2023,5899,Social Care - Direct Payments,3111383229,SACL20,560,Redacted Personal Data
http://statistics.data.gov.uk/id/local-authority/38,Oxfordshire County Council,Safeguarding commissioning,29/03/2023,5380,"Author, Speaker and Lecturer Fees",2201097539,EL1640,560,MLS Safeguarding and Consultancy Lt
http://statistics.data.gov.uk/id/local-authority/38,Oxfordshire County Council,Care Packages & Placements- LD - OCC,08/03/2023,5227,Other Transport Arrangements,3111376387,SPB400,560,Oxford Premier Cars Services Limite
http://statistics.data.gov.uk/id/local-authority/38,Oxfordshire County Council,Support at Home U65 Learning Disability,13/03/2023,5227,Other Transport Arrangements,3111382196,SACL20,560,Oxon Transport Services Ltd
http://statistics.data.gov.uk/id/local-authority/38,Oxfordshire County Council,Family Solutions Plus Non-staff - Centra,06/03/2023,4940,Other Services,2201087273,SCT311,560,OXPIP
http://statistics.data.gov.uk/id/local-authority/38,Oxfordshire County Council,Reading Adoption Support Fund,29/03/2023,4861,Hired and Contracted Services,2201097009,ATV801,560,PACT (PARENTS & CHILDREN TOGETHER)
http://statistics.data.gov.uk/id/local-authority/38,Oxfordshire County Council,COMM DRAWDOWN FUNDNG,09/03/2023,8102,Payments to main contractor,2201088911,NQ1006,560,SOLAGEN LTD
http://statistics.data.gov.uk/id/local-authority/38,Oxfordshire County Council,SEN TRANSPORT,08/03/2023,5227,Other Transport Arrangements,3111376394,ER1860,560,The Gallery Trust
http://statistics.data.gov.uk/id/local-authority/38,Oxfordshire County Council,Support at Home U65 Learning Disability,20/03/2023,5227,Other Transport Arrangements,3111385770,SACL20,560,The Oxfordshire Taxi Company Ltd T/
http://statistics.data.gov.uk/id/local-authority/38,Oxfordshire County Council,SHORT BREAK ACTIVITIES,21/03/2023,5526,Payments to Private Contractors,2201093697,SCT103,560,Yellow Submarine Holidays
http://statistics.data.gov.uk/id/local-authority/38,Oxfordshire County Council,NURSERY ED FUND,30/03/2023,5537,Payments to Other Establishments,3111397572,EL0022,560.28,Didcot Primary Academy
http://statistics.data.gov.uk/id/local-authority/38,Oxfordshire County Council,Support at Home 65+ Other /Soc Isolation,28/03/2023,5689,,3111394474,SACV40,560.69,Greigcare Home Service
http://statistics.data.gov.uk/id/local-authority/38,Oxfordshire County Council,SM DISABILITIES,29/03/2023,5554,Childrens' Social Care - Direct Payments,3111395979,SCT102,562.07,Purple Conversation Com In Co (DP)
http://statistics.data.gov.uk/id/local-authority/38,Oxfordshire County Council,Support at Home 65+ Physical Support,28/03/2023,5689,,3111394114,SACP40,562.38,Oxfordshire Crossroads
http://statistics.data.gov.uk/id/local-authority/38,Oxfordshire County Council,CHC Fast Track - Sup at Homes - Over 65,14/03/2023,5691,,3111384339,SAHE40,562.43,Angel Care Group
http://statistics.data.gov.uk/id/local-authority/38,Oxfordshire County Council,Wokingham Adoption Support Fund,29/03/2023,4861,Hired and Contracted Services,2201097094,ATV805,562.5,PACT (PARENTS & CHILDREN TOGETHER)
http://statistics.data.gov.uk/id/local-authority/38,Oxfordshire County Council,Support at Home U65 Physical Support,14/03/2023,5899,Social Care - Direct Payments,3111383798,SACP20,562.96,Purple Conversation Com In Co (DP)
http://statistics.data.gov.uk/id/local-authority/38,Oxfordshire County Council,Support at Home U65 Physical Support,29/03/2023,5693,,3111395898,SACP20,563.06,Helping Hands
http://statistics.data.gov.uk/id/local-authority/38,Oxfordshire County Council,Support at Home U65 Learning Disability,28/03/2023,5682,,3111392735,SACL20,563.42,The Brandon Trust
http://statistics.data.gov.uk/id/local-authority/38,Oxfordshire County Council,FAM GRP CONFERENCES,17/03/2023,4940,Other Services,2201092904,SCT211,563.47,Deborah Ciancio
http://statistics.data.gov.uk/id/local-authority/38,Oxfordshire County Council,Support at Home U65 Physical Support,28/03/2023,5698,,3111393185,SACP20,563.52,Acquire Care Ltd
http://statistics.data.gov.uk/id/local-authority/38,Oxfordshire County Council,Support at Home U65 Mental Health,28/03/2023,5696,,3111393635,SACM20,563.92,All Care GB Ltd
http://statistics.data.gov.uk/id/local-authority/38,Oxfordshire County Council,Support at Home U65 Physical Support,28/03/2023,5696,,3111393651,SACP20,563.92,All Care GB Ltd
http://statistics.data.gov.uk/id/local-authority/38,Oxfordshire County Council,Support at Home 65+ Physical Support,28/03/2023,5696,,3111393686,SACP40,563.92,All Care GB Ltd
http://statistics.data.gov.uk/id/local-authority/38,Oxfordshire County Council,Support at Home 65+ Physical Support,28/03/2023,5696,,3111393687,SACP40,563.92,All Care GB Ltd
http://statistics.data.gov.uk/id/local-authority/38,Oxfordshire County Council,Support at Home 65+ Physical Support,28/03/2023,5696,,3111393692,SACP40,563.92,All Care GB Ltd
http://statistics.data.gov.uk/id/local-authority/38,Oxfordshire County Council,Support at Home 65+ Physical Support,28/03/2023,5696,,3111393693,SACP40,563.92,All Care GB Ltd
http://statistics.data.gov.uk/id/local-authority/38,Oxfordshire County Council,Support at Home 65+ Physical Support,28/03/2023,5696,,3111393697,SACP40,563.92,All Care GB Ltd
http://statistics.data.gov.uk/id/local-authority/38,Oxfordshire County Council,LDD AFTER SCHOOL,09/03/2023,4330,Transport to School Activities,3111376825,ER0681,564,LINK SHIRES LTD
http://statistics.data.gov.uk/id/local-authority/38,Oxfordshire County Council,Support at Home 65+ Physical Support,28/03/2023,5693,,3111394399,SACP40,564.54,Genuine Carers Ltd
http://statistics.data.gov.uk/id/local-authority/38,Oxfordshire County Council,VOIDS/VACANCY COSTS,10/03/2023,3945,Rent,3111378628,SLE420,564.73,Cherwell District Council
http://statistics.data.gov.uk/id/local-authority/38,Oxfordshire County Council,VOIDS/VACANCY COSTS,10/03/2023,3945,Rent,3111378633,SLE420,564.73,Cherwell District Council
http://statistics.data.gov.uk/id/local-authority/38,Oxfordshire County Council,SEN Additional Funding,27/03/2023,5537,Payments to Other Establishments,3111388114,ES1779,565.07,Dr Radcliffe's CE Primary
http://statistics.data.gov.uk/id/local-authority/38,Oxfordshire County Council,SEN Additional Funding,23/03/2023,5537,Payments to Other Establishments,3111389258,ES1779,565.07,Oxford Diocesan School Trust
http://statistics.data.gov.uk/id/local-authority/38,Oxfordshire County Council,LIBRARY COLLECTIONS,15/03/2023,4539,"Books, DVDs and CDs",3111384561,M37000,565.09,ASKEWS & HOLTS LIBRARY SERVICES LTD
http://statistics.data.gov.uk/id/local-authority/38,Oxfordshire County Council,Mockingbird,21/03/2023,5394,Other Expenses,3111386716,SCP569,565.38,Redacted Personal Data
http://statistics.data.gov.uk/id/local-authority/38,Oxfordshire County Council,NURSERY ED FUND,30/03/2023,5537,Payments to Other Establishments,3111397556,EL0022,565.5,Standlake CE Primary School
http://statistics.data.gov.uk/id/local-authority/38,Oxfordshire County Council,LIBRARY COLLECTIONS,16/03/2023,4539,"Books, DVDs and CDs",3111384871,M37000,565.66,ASKEWS & HOLTS LIBRARY SERVICES LTD
http://statistics.data.gov.uk/id/local-authority/38,Oxfordshire County Council,Support at Home U65 Learning Disability,28/03/2023,5682,,3111392726,SACL20,565.79,The Brandon Trust
http://statistics.data.gov.uk/id/local-authority/38,Oxfordshire County Council,FOSTERING MAIN,28/03/2023,5549,B*Fostering Allowance - Regulation 38,3111393407,SCP501,565.9,Redacted Personal Data
http://statistics.data.gov.uk/id/local-authority/38,Oxfordshire County Council,FAM GRP CONFERENCES,02/03/2023,4940,Other Services,2201086559,SCT211,566.6,Jessica Howards
http://statistics.data.gov.uk/id/local-authority/38,Oxfordshire County Council,Support at Home 65+ Physical Support,28/03/2023,5699,,3111393739,SACP40,567,Abi-Support Ltd
http://statistics.data.gov.uk/id/local-authority/38,Oxfordshire County Council,Support at Home 65+ Physical Support,28/03/2023,5699,,3111393774,SACP40,567,Adult Transition Services Ltd (ATrS
http://statistics.data.gov.uk/id/local-authority/38,Oxfordshire County Council,Support at Home 65+ Memory & Cognition,28/03/2023,5698,,3111394062,SACC40,567,Bridges Home Care Ltd
http://statistics.data.gov.uk/id/local-authority/38,Oxfordshire County Council,Support at Home 65+ Physical Support,28/03/2023,5699,,3111394444,SACP40,567,Mega Resources Ltd
http://statistics.data.gov.uk/id/local-authority/38,Oxfordshire County Council,CHC Fast Track - Sup at Homes - Over 65,01/03/2023,5691,,3111372466,SAHE40,567,Pioneering Care Bicester Limited
http://statistics.data.gov.uk/id/local-authority/38,Oxfordshire County Council,Support at Home 65+ Physical Support,10/03/2023,5686,,3111377485,SACP40,567.14,Orders of St John
http://statistics.data.gov.uk/id/local-authority/38,Oxfordshire County Council,Support at Home 65+ Physical Support,10/03/2023,5686,,3111377574,SACP40,567.14,Orders of St John
http://statistics.data.gov.uk/id/local-authority/38,Oxfordshire County Council,Support at Home 65+ Memory & Cognition,10/03/2023,5686,,3111377729,SACC40,567.14,Orders of St John
http://statistics.data.gov.uk/id/local-authority/38,Oxfordshire County Council,Support at Home 65+ Learning Disability,29/03/2023,5693,,3111396027,SACL40,567.25,Pioneering Care Bicester Limited
http://statistics.data.gov.uk/id/local-authority/38,Oxfordshire County Council,Support at Home U65 Learning Disability,20/03/2023,5227,Other Transport Arrangements,3111386101,SACL20,568,My Cabbie LTD t/a J and A Transport
http://statistics.data.gov.uk/id/local-authority/38,Oxfordshire County Council,Support at Home U65 Learning Disability,06/03/2023,5227,Other Transport Arrangements,3111374497,SACL20,568,Unitaxi Ltd
http://statistics.data.gov.uk/id/local-authority/38,Oxfordshire County Council,Support at Home 65+ Physical Support,28/03/2023,5689,,3111393221,SACP40,568.01,Caremark (West Oxfordshire & Cherwe
http://statistics.data.gov.uk/id/local-authority/38,Oxfordshire County Council,Reactive Maintenance,27/03/2023,3787,Premises Repairs,2201096093,K10200,568.15,BI-FOLD ROLFE LTD
http://statistics.data.gov.uk/id/local-authority/38,Oxfordshire County Council,Support at Home U65 Physical Support,14/03/2023,5899,Social Care - Direct Payments,3111383372,SACP20,568.16,Redacted Personal Data
http://statistics.data.gov.uk/id/local-authority/38,Oxfordshire County Council,Support at Home U65 Learning Disability,14/03/2023,5899,Social Care - Direct Payments,3111383428,SACL20,568.16,Redacted Personal Data
http://statistics.data.gov.uk/id/local-authority/38,Oxfordshire County Council,Support at Home U65 MH OBC Contract,10/03/2023,4111,Security Costs,3111377114,SACH20,568.4,Headington Carriers Limited
http://statistics.data.gov.uk/id/local-authority/38,Oxfordshire County Council,FOSTERING MAIN,21/03/2023,5227,Other Transport Arrangements,3111386847,SCP501,568.53,Redacted Personal Data
http://statistics.data.gov.uk/id/local-authority/38,Oxfordshire County Council,Family Solutions Plus Non-staff - North,13/03/2023,5394,Other Expenses,3111381994,SCT316,568.55,OCC One Time Vendor
http://statistics.data.gov.uk/id/local-authority/38,Oxfordshire County Council,L&D CORE PROGRAMME,28/03/2023,3100,Educational and Vocational Training,2201096235,G21060,569,Premier Partnership
http://statistics.data.gov.uk/id/local-authority/38,Oxfordshire County Council,NURSERY ED FUND,30/03/2023,5537,Payments to Other Establishments,3111397574,EL0022,569.1,Bayards Hill Primary School
http://statistics.data.gov.uk/id/local-authority/38,Oxfordshire County Council,NURSERY ED FUND,30/03/2023,5537,Payments to Other Establishments,3111397680,EL0022,569.1,North Leigh Pre-School CIO
http://statistics.data.gov.uk/id/local-authority/38,Oxfordshire County Council,NURSERY ED FUND,30/03/2023,5537,Payments to Other Establishments,3111397295,EL0022,569.1,Rush Common Pre-School
http://statistics.data.gov.uk/id/local-authority/38,Oxfordshire County Council,Support at Home 65+ Memory & Cognition,10/03/2023,5690,,3111379216,SACC40,569.16,Cholsey Day Centre Trust
http://statistics.data.gov.uk/id/local-authority/38,Oxfordshire County Council,Support at Home U65 Other /Soc Isolation,14/03/2023,5899,Social Care - Direct Payments,3111383162,SACV20,569.6,Redacted Personal Data
http://statistics.data.gov.uk/id/local-authority/38,Oxfordshire County Council,SPECIAL GUARDIANSHIP,21/03/2023,5661,B*Carriageway pre surf. dressing patchin,3111386414,SCP551,569.82,Redacted Personal Data
http://statistics.data.gov.uk/id/local-authority/38,Oxfordshire County Council,Swindon Adoption Support Fund,02/03/2023,4861,Hired and Contracted Services,2201086166,ATV803,570,2PIP Theraputic Services
http://statistics.data.gov.uk/id/local-authority/38,Oxfordshire County Council,Swindon Adoption Support Fund,13/03/2023,4861,Hired and Contracted Services,2201090758,ATV803,570,2PIP Theraputic Services
http://statistics.data.gov.uk/id/local-authority/38,Oxfordshire County Council,Swindon Adoption Support Fund,20/03/2023,4861,Hired and Contracted Services,2201093296,ATV803,570,2PIP Theraputic Services
http://statistics.data.gov.uk/id/local-authority/38,Oxfordshire County Council,Household Support Fund 3,30/03/2023,7690,Additional Grant for Schools,3111396441,A16009,570,Dashwood Banbury Academy
http://statistics.data.gov.uk/id/local-authority/38,Oxfordshire County Council,Active Travel Grant Comm Activatn,22/03/2023,4042,Fixtures and Fittings,2201094381,N10573,570,Oxford Direct Services Trading Ltd
http://statistics.data.gov.uk/id/local-authority/38,Oxfordshire County Council,Household Support Fund 3,30/03/2023,7690,Additional Grant for Schools,3111396584,A16009,570,Rose Hill Primary School
http://statistics.data.gov.uk/id/local-authority/38,Oxfordshire County Council,Household Support Fund 3,23/03/2023,7690,Additional Grant for Schools,3111388382,A16009,570,Standlake Primary School
http://statistics.data.gov.uk/id/local-authority/38,Oxfordshire County Council,SM DISABILITIES,29/03/2023,5554,Childrens' Social Care - Direct Payments,3111396032,SCT102,570.47,Purple Conversation Com In Co (DP)
http://statistics.data.gov.uk/id/local-authority/38,Oxfordshire County Council,Support at Home U65 Physical Support,06/03/2023,5696,,3111374389,SACD20,570.91,Orders of St John Care Trust
http://statistics.data.gov.uk/id/local-authority/38,Oxfordshire County Council,Support at Home 65+ Sensory Support,21/03/2023,5899,Social Care - Direct Payments,3111386193,SACS40,571.29,Purple Conversation Com In Co (DP)
http://statistics.data.gov.uk/id/local-authority/38,Oxfordshire County Council,FAM GRP CONFERENCES,15/03/2023,4940,Other Services,2201091991,SCT211,571.6,Jessica Howards
http://statistics.data.gov.uk/id/local-authority/38,Oxfordshire County Council,Community Support Service Bicester,07/03/2023,4232,Vehicle Fuel,2201087959,SAP203,571.71,Allstar Business Solutions Ltd
http://statistics.data.gov.uk/id/local-authority/38,Oxfordshire County Council,Support at Home U65 Learning Disability,10/03/2023,5688,,3111377440,SACL20,572.08,ADVANCE HOUSING & SUPPORT LTD
http://statistics.data.gov.uk/id/local-authority/38,Oxfordshire County Council,Support at Home U65 Learning Disability,10/03/2023,5688,,3111377442,SACL20,572.08,ADVANCE HOUSING & SUPPORT LTD
http://statistics.data.gov.uk/id/local-authority/38,Oxfordshire County Council,Support at Home U65 Learning Disability,10/03/2023,5688,,3111377444,SACL20,572.08,ADVANCE HOUSING & SUPPORT LTD
http://statistics.data.gov.uk/id/local-authority/38,Oxfordshire County Council,Support at Home U65 Learning Disability,10/03/2023,5688,,3111377446,SACL20,572.08,ADVANCE HOUSING & SUPPORT LTD
http://statistics.data.gov.uk/id/local-authority/38,Oxfordshire County Council,Support at Home U65 HFA,10/03/2023,5688,,3111378497,SACF20,572.84,The Laurels (Witney)
http://statistics.data.gov.uk/id/local-authority/38,Oxfordshire County Council,OPERATIONS,01/03/2023,4495,IT Software,2201085754,F16000,573.38,Bytes Software Services
http://statistics.data.gov.uk/id/local-authority/38,Oxfordshire County Council,Support at Home 65+ Physical Support,29/03/2023,5693,,3111396044,SACP40,573.52,AVR (Oxon) Ltd
http://statistics.data.gov.uk/id/local-authority/38,Oxfordshire County Council,NURSERY ED FUND,30/03/2023,5537,Payments to Other Establishments,3111397626,EL0022,573.8,Little Acorns Pre-school Kingsmere
http://statistics.data.gov.uk/id/local-authority/38,Oxfordshire County Council,HN IN SEC SCHOOLS,20/03/2023,5537,Payments to Other Establishments,3111385902,EP1592,574,FUTURES INSTITUTE BANBURY
http://statistics.data.gov.uk/id/local-authority/38,Oxfordshire County Council,,31/03/2023,1448,Blackfield Inc & Exp A/c,3111397945,,574.17,OCC One Time Vendor
http://statistics.data.gov.uk/id/local-authority/38,Oxfordshire County Council,NURSERY ED FUND,30/03/2023,5537,Payments to Other Establishments,3111397245,EL0022,574.2,Burford Pre-School
http://statistics.data.gov.uk/id/local-authority/38,Oxfordshire County Council,NURSERY ED FUND,30/03/2023,5537,Payments to Other Establishments,3111397201,EL0022,574.2,Long Wittenham Pre-School
http://statistics.data.gov.uk/id/local-authority/38,Oxfordshire County Council,NURSERY ED FUND,30/03/2023,5537,Payments to Other Establishments,3111397208,EL0022,574.2,Long Wittenham Pre-School
http://statistics.data.gov.uk/id/local-authority/38,Oxfordshire County Council,FOSTERING MAIN,08/03/2023,5549,B*Fostering Allowance - Regulation 38,3111375928,SCP501,574.9,Redacted Personal Data
http://statistics.data.gov.uk/id/local-authority/38,Oxfordshire County Council,Support at Home 65+ Physical Support,28/03/2023,5689,,3111394492,SACP40,574.97,Greigcare Home Service
http://statistics.data.gov.uk/id/local-authority/38,Oxfordshire County Council,ICT Operations & Maintenance,27/03/2023,8037,Other In house Fees / Charges,2201095893,R41000,575,Low Voltage UK Ltd
http://statistics.data.gov.uk/id/local-authority/38,Oxfordshire County Council,Support at Home U65 Learning Disability,13/03/2023,5227,Other Transport Arrangements,3111382167,SACL20,575,Oxon Transport Services Ltd
http://statistics.data.gov.uk/id/local-authority/38,Oxfordshire County Council,RIVERSIDE CENTRE,22/03/2023,3103,Other Training Courses and Qualification,2201094278,EL0817,575,Partnership Projects
http://statistics.data.gov.uk/id/local-authority/38,Oxfordshire County Council,TRANSPORT COSTS,20/03/2023,4330,Transport to School Activities,3111385603,SCT190,575,The Oxfordshire Taxi Company Ltd T/
http://statistics.data.gov.uk/id/local-authority/38,Oxfordshire County Council,VACANT PROPERTY,01/03/2023,4000,Council Tax,3500093372,K90100,575,West Oxfordshire District Council
http://statistics.data.gov.uk/id/local-authority/38,Oxfordshire County Council,LIBRARY COLLECTIONS,29/03/2023,4539,"Books, DVDs and CDs",3111396093,M37000,575.48,ASKEWS & HOLTS LIBRARY SERVICES LTD
http://statistics.data.gov.uk/id/local-authority/38,Oxfordshire County Council,Support at Home U65 Learning Disability,14/03/2023,5899,Social Care - Direct Payments,3111383755,SACL20,575.68,Purple Conversation Com In Co (DP)
http://statistics.data.gov.uk/id/local-authority/38,Oxfordshire County Council,Support at Home U65 Learning Disability,14/03/2023,5899,Social Care - Direct Payments,3111384242,SACL20,575.68,Purple Conversation Com In Co (DP)
http://statistics.data.gov.uk/id/local-authority/38,Oxfordshire County Council,FLEET COSTS,01/03/2023,4270,HTM / Other Vehicle - Hire Charges,2201085619,N20420,575.97,Days Rental
http://statistics.data.gov.uk/id/local-authority/38,Oxfordshire County Council,,12/03/2023,1448,Blackfield Inc & Exp A/c,3111381909,,575.98,OCC One Time Vendor
http://statistics.data.gov.uk/id/local-authority/38,Oxfordshire County Council,POST 16 SEN,06/03/2023,4330,Transport to School Activities,3111374481,ER0947,576,007 Taxi Limited
http://statistics.data.gov.uk/id/local-authority/38,Oxfordshire County Council,Support at Home 65+ Memory & Cognition,14/03/2023,5899,Social Care - Direct Payments,3111383345,SACC40,576,Redacted Personal Data
http://statistics.data.gov.uk/id/local-authority/38,Oxfordshire County Council,MAINSTREAM-SECONDARY,20/03/2023,4330,Transport to School Activities,3111385857,ER1251,576,The Oxfordshire Taxi Company Ltd T/
http://statistics.data.gov.uk/id/local-authority/38,Oxfordshire County Council,Support at Home U65 Physical Support,31/03/2023,5227,Other Transport Arrangements,3111398182,SACP20,576,TOOTS TAXIS LTD
http://statistics.data.gov.uk/id/local-authority/38,Oxfordshire County Council,SHORT BREAK ACTIVITIES,07/03/2023,5526,Payments to Private Contractors,2201088186,SCT103,576,Yellow Submarine Holidays
http://statistics.data.gov.uk/id/local-authority/38,Oxfordshire County Council,Thame Emergency & Assessment Home,23/03/2023,5398,Pocket Money (Paid to Children),9300059394,SCP014,576.86,OCC SS Oxford City Div 1 Cash
http://statistics.data.gov.uk/id/local-authority/38,Oxfordshire County Council,AIDS & ADPT TEAM,01/03/2023,4450,Disability Aids and Equipment,2201085409,SPT562,577.5,Oxford University Hospitals NHS Tru
http://statistics.data.gov.uk/id/local-authority/38,Oxfordshire County Council,AIDS & ADPT TEAM,22/03/2023,4450,Disability Aids and Equipment,2201094182,SPT562,577.5,Oxford University Hospitals NHS Tru
http://statistics.data.gov.uk/id/local-authority/38,Oxfordshire County Council,AIDS & ADPT TEAM,31/03/2023,4450,Disability Aids and Equipment,2201098666,SPT562,577.5,Oxford University Hospitals NHS Tru
http://statistics.data.gov.uk/id/local-authority/38,Oxfordshire County Council,Early Years SEN Funding,10/03/2023,5537,Payments to Other Establishments,3111381904,ES1771,577.5,Tiny Acorns Nursery
http://statistics.data.gov.uk/id/local-authority/38,Oxfordshire County Council,Support at Home U65 Learning Disability,28/03/2023,5689,,3111394502,SACL20,578.98,Greigcare Home Service
http://statistics.data.gov.uk/id/local-authority/38,Oxfordshire County Council,FAM GRP CONFERENCES,27/03/2023,4940,Other Services,2201096046,SCT211,579.1,Emma O'Regan
http://statistics.data.gov.uk/id/local-authority/38,Oxfordshire County Council,Support at Home U65 Physical Support,28/03/2023,5699,,3111393810,SACP20,579.6,BBC CARE SERVICE LIMITED
http://statistics.data.gov.uk/id/local-authority/38,Oxfordshire County Council,Support at Home 65+ Physical Support,28/03/2023,5698,,3111394084,SACP40,579.6,Bridges Home Care Ltd
http://statistics.data.gov.uk/id/local-authority/38,Oxfordshire County Council,Support at Home U65 Learning Disability,29/03/2023,5693,,3111395951,SACL20,579.6,Kwikfix Recruitment Services Ltd
http://statistics.data.gov.uk/id/local-authority/38,Oxfordshire County Council,Support at Home 65+ Memory & Cognition,28/03/2023,5699,,3111394685,SACC40,579.6,PLL Care Services
http://statistics.data.gov.uk/id/local-authority/38,Oxfordshire County Council,Support at Home 65+ Physical Support,28/03/2023,5699,,3111394979,SACP40,579.6,YOD Ltd
http://statistics.data.gov.uk/id/local-authority/38,Oxfordshire County Council,Support at Home 65+ Physical Support,06/03/2023,5696,,3111374422,SACP40,579.8,Orders of St John Care Trust
http://statistics.data.gov.uk/id/local-authority/38,Oxfordshire County Council,Support at Home U65 Learning Disability,28/03/2023,5682,,3111392729,SACL20,579.87,The Brandon Trust
http://statistics.data.gov.uk/id/local-authority/38,Oxfordshire County Council,L&D CORE PROGRAMME,31/03/2023,4615,Drugs and Medical Supplies,2201098541,G21060,580,ST JOHN AMBULANCE
http://statistics.data.gov.uk/id/local-authority/38,Oxfordshire County Council,Support at Home 65+ Physical Support,08/03/2023,5693,,3111376215,SACP40,580.13,Care with Care Ltd
http://statistics.data.gov.uk/id/local-authority/38,Oxfordshire County Council,AAC EQUIPMENT,20/03/2023,4494,Purchase of IT Equipment,2201093116,EP1423,582,Oxford University Hospitals NHS Tru
http://statistics.data.gov.uk/id/local-authority/38,Oxfordshire County Council,TRADING STANDARDS,08/03/2023,5668,Technical and Professional Consultant F,2201088787,NT1000,582,PRESTIGE NETWORK
http://statistics.data.gov.uk/id/local-authority/38,Oxfordshire County Council,Support at Home U65 Mental Health,14/03/2023,5899,Social Care - Direct Payments,3111383098,SACM20,582.4,Redacted Personal Data
http://statistics.data.gov.uk/id/local-authority/38,Oxfordshire County Council,RBWM Adoption Support Fund,03/03/2023,4861,Hired and Contracted Services,2201086843,ATV804,582.5,PACT (PARENTS & CHILDREN TOGETHER)
http://statistics.data.gov.uk/id/local-authority/38,Oxfordshire County Council,Continuing Care - Support at Home - U65,21/03/2023,5691,,3111387332,SAHC20,582.64,Paterson Recruitment
http://statistics.data.gov.uk/id/local-authority/38,Oxfordshire County Council,Support at Home U65 MH OBC Contract,03/03/2023,5691,,3111374291,SACH20,583,Care With Dignity Partnerships
http://statistics.data.gov.uk/id/local-authority/38,Oxfordshire County Council,FOSTERING MAIN,14/03/2023,5532,B*Fostering - Loan Equipment,3111382589,SCP501,583,Redacted Personal Data
http://statistics.data.gov.uk/id/local-authority/38,Oxfordshire County Council,Support at Home U65 Learning Disability,14/03/2023,5899,Social Care - Direct Payments,3111384213,SACL20,583.48,Purple Conversation Com In Co (DP)
http://statistics.data.gov.uk/id/local-authority/38,Oxfordshire County Council,Family Solutions Plus Non-staff - Centra,08/03/2023,5365,Non-Staff Subsistence and Expenses,9300059192,SCT311,583.8,OCC SS Oxford City Div 1 Cash
http://statistics.data.gov.uk/id/local-authority/38,Oxfordshire County Council,SEN TRANSPORT,20/03/2023,5227,Other Transport Arrangements,3111385799,ER1860,583.96,The Oxfordshire Taxi Company Ltd T/
http://statistics.data.gov.uk/id/local-authority/38,Oxfordshire County Council,Support at Home U65 Learning Disability,08/03/2023,4330,Transport to School Activities,3111376375,SACL20,584,ACE CARS BANBURY LTD
http://statistics.data.gov.uk/id/local-authority/38,Oxfordshire County Council,Support at Home 65+ Memory & Cognition,28/03/2023,5696,,3111393657,SACC40,584.06,All Care GB Ltd
http://statistics.data.gov.uk/id/local-authority/38,Oxfordshire County Council,Support at Home 65+ Physical Support,28/03/2023,5696,,3111393675,SACP40,584.06,All Care GB Ltd
http://statistics.data.gov.uk/id/local-authority/38,Oxfordshire County Council,Support at Home 65+ Mental Health,14/03/2023,5899,Social Care - Direct Payments,3111383858,SACM40,584.16,Purple Conversation Com In Co (DP)
http://statistics.data.gov.uk/id/local-authority/38,Oxfordshire County Council,Early Years SEN Funding,31/03/2023,5537,Payments to Other Establishments,3111398048,ES1771,584.19,Grow Learn Play Project CIC
http://statistics.data.gov.uk/id/local-authority/38,Oxfordshire County Council,MEADOWBROOK TRANSPT,07/03/2023,4330,Transport to School Activities,3111375409,ER1875,585,Ali's Cabs
http://statistics.data.gov.uk/id/local-authority/38,Oxfordshire County Council,Household Support Fund 3,22/03/2023,5667,Can be reused,3111387023,A16009,585,Fir Tree Junior Schools
http://statistics.data.gov.uk/id/local-authority/38,Oxfordshire County Council,TRANSPORT COSTS,06/03/2023,4330,Transport to School Activities,3111374698,SCT190,585,Go Green Taxis
http://statistics.data.gov.uk/id/local-authority/38,Oxfordshire County Council,Household Support Fund 3,22/03/2023,5667,Can be reused,3111387050,A16009,585,Grove Cof E School
http://statistics.data.gov.uk/id/local-authority/38,Oxfordshire County Council,RESIDENTIAL STRATEGY,21/03/2023,4092,General Refuse Collection and Disposal,2201093511,SCM005,585,Parker Contract Cleaning
http://statistics.data.gov.uk/id/local-authority/38,Oxfordshire County Council,Household Support Fund 3,23/03/2023,7690,Additional Grant for Schools,3111388509,A16009,585,The Cherwell Academy
http://statistics.data.gov.uk/id/local-authority/38,Oxfordshire County Council,Household Support Fund 3,22/03/2023,5667,Can be reused,3111387015,A16009,585,Wolvercote Primary School
http://statistics.data.gov.uk/id/local-authority/38,Oxfordshire County Council,Support at Home 65+ Physical Support,28/03/2023,5689,,3111394504,SACP40,585.08,Greigcare Home Service
http://statistics.data.gov.uk/id/local-authority/38,Oxfordshire County Council,ADOPTION ALLOWANCES,08/03/2023,5664,B*Holiday Allowance,3111375771,SCP030,585.3,Redacted Personal Data
http://statistics.data.gov.uk/id/local-authority/38,Oxfordshire County Council,ADOPTION ALLOWANCES,14/03/2023,5664,B*Holiday Allowance,3111382732,SCP030,585.3,Redacted Personal Data
http://statistics.data.gov.uk/id/local-authority/38,Oxfordshire County Council,ADOPTION ALLOWANCES,21/03/2023,5664,B*Holiday Allowance,3111386542,SCP030,585.3,Redacted Personal Data
http://statistics.data.gov.uk/id/local-authority/38,Oxfordshire County Council,ADOPTION ALLOWANCES,28/03/2023,5664,B*Holiday Allowance,3111393112,SCP030,585.3,Redacted Personal Data
http://statistics.data.gov.uk/id/local-authority/38,Oxfordshire County Council,Councillors Priorities Fund,13/03/2023,4940,Other Services,3111382000,A26015,585.98,Abingdon Explorer Scout Unit
http://statistics.data.gov.uk/id/local-authority/38,Oxfordshire County Council,LIBRARY COLLECTIONS,15/03/2023,4539,"Books, DVDs and CDs",2201091733,M37000,586.4,W F HOWES LTD
http://statistics.data.gov.uk/id/local-authority/38,Oxfordshire County Council,SHARED LIVES,10/03/2023,5555,Payments to Carers,3111377213,SAT151,586.5,Redacted Personal Data
http://statistics.data.gov.uk/id/local-authority/38,Oxfordshire County Council,SHORT BREAK ACTIVITIES,06/03/2023,5161,Adoption Expenses - Fees and Expenses,2201087679,SCT103,586.75,Parasol Projects
http://statistics.data.gov.uk/id/local-authority/38,Oxfordshire County Council,Support at Home 65+ Physical Support,28/03/2023,5689,,3111394106,SACP40,587.07,Oxfordshire Crossroads
http://statistics.data.gov.uk/id/local-authority/38,Oxfordshire County Council,Delegated Health Tasks  - Over 65,13/03/2023,5691,,3111382058,SAHD40,587.25,Bluebird Care
http://statistics.data.gov.uk/id/local-authority/38,Oxfordshire County Council,NURSERY ED FUND,31/03/2023,5537,Payments to Other Establishments,3111397968,EL0022,587.25,Rose Hill Primary School
http://statistics.data.gov.uk/id/local-authority/38,Oxfordshire County Council,NURSERY ED FUND,31/03/2023,5537,Payments to Other Establishments,3111397969,EL0022,587.25,Rose Hill Primary School
http://statistics.data.gov.uk/id/local-authority/38,Oxfordshire County Council,NURSERY ED FUND,31/03/2023,5537,Payments to Other Establishments,3111397971,EL0022,587.25,Rose Hill Primary School
http://statistics.data.gov.uk/id/local-authority/38,Oxfordshire County Council,NURSERY ED FUND,30/03/2023,5537,Payments to Other Establishments,3111397263,EL0022,587.25,Woodcote Pre-School Group
http://statistics.data.gov.uk/id/local-authority/38,Oxfordshire County Council,NURSERY ED FUND,30/03/2023,5537,Payments to Other Establishments,3111397206,EL0022,587.28,Long Wittenham Pre-School
http://statistics.data.gov.uk/id/local-authority/38,Oxfordshire County Council,NURSERY ED FUND,30/03/2023,5537,Payments to Other Establishments,3111397270,EL0022,587.28,Paddocks Pre-School
http://statistics.data.gov.uk/id/local-authority/38,Oxfordshire County Council,Support at Home U65 Physical Support,28/03/2023,5899,Social Care - Direct Payments,3111394289,SACP20,587.43,Purple Conversation Com In Co (DP)
http://statistics.data.gov.uk/id/local-authority/38,Oxfordshire County Council,Children in Care Non-staffing - North,21/03/2023,4407,Equipment,9300059370,SCT203,587.95,OCC SS Banbury Area Off Cash
http://statistics.data.gov.uk/id/local-authority/38,Oxfordshire County Council,SEN TRANSPORT,22/03/2023,5227,Other Transport Arrangements,3111387304,ER1860,588,Banbury Taxis
http://statistics.data.gov.uk/id/local-authority/38,Oxfordshire County Council,AGENCY RESID - DISAB,08/03/2023,5549,B*Fostering Allowance - Regulation 38,3111376176,SCE571,588,Redacted Personal Data
http://statistics.data.gov.uk/id/local-authority/38,Oxfordshire County Council,AGENCY RESID - DISAB,14/03/2023,5549,B*Fostering Allowance - Regulation 38,3111383023,SCE571,588,Redacted Personal Data
http://statistics.data.gov.uk/id/local-authority/38,Oxfordshire County Council,AGENCY RESID - DISAB,21/03/2023,5549,B*Fostering Allowance - Regulation 38,3111386933,SCE571,588,Redacted Personal Data
http://statistics.data.gov.uk/id/local-authority/38,Oxfordshire County Council,AGENCY RESID - DISAB,28/03/2023,5549,B*Fostering Allowance - Regulation 38,3111393623,SCE571,588,Redacted Personal Data
http://statistics.data.gov.uk/id/local-authority/38,Oxfordshire County Council,FAM GRP CONFERENCES,28/03/2023,4940,Other Services,2201096378,SCT211,588,Emma Wood
http://statistics.data.gov.uk/id/local-authority/38,Oxfordshire County Council,AGENCY RESID - DISAB,08/03/2023,5549,B*Fostering Allowance - Regulation 38,3111376033,SCE571,588,Redacted Personal Data
http://statistics.data.gov.uk/id/local-authority/38,Oxfordshire County Council,AGENCY RESID - DISAB,14/03/2023,5549,B*Fostering Allowance - Regulation 38,3111382881,SCE571,588,Redacted Personal Data
http://statistics.data.gov.uk/id/local-authority/38,Oxfordshire County Council,AGENCY RESID - DISAB,21/03/2023,5549,B*Fostering Allowance - Regulation 38,3111386791,SCE571,588,Redacted Personal Data
http://statistics.data.gov.uk/id/local-authority/38,Oxfordshire County Council,AGENCY RESID - DISAB,28/03/2023,5549,B*Fostering Allowance - Regulation 38,3111393475,SCE571,588,Redacted Personal Data
http://statistics.data.gov.uk/id/local-authority/38,Oxfordshire County Council,FOSTERING MAIN,08/03/2023,5541,B*Foster Parents,3111375998,SCP501,588,Redacted Personal Data
http://statistics.data.gov.uk/id/local-authority/38,Oxfordshire County Council,FOSTERING MAIN,14/03/2023,5541,B*Foster Parents,3111382842,SCP501,588,Redacted Personal Data
http://statistics.data.gov.uk/id/local-authority/38,Oxfordshire County Council,FOSTERING MAIN,21/03/2023,5541,B*Foster Parents,3111386756,SCP501,588,Redacted Personal Data
http://statistics.data.gov.uk/id/local-authority/38,Oxfordshire County Council,FOSTERING MAIN,28/03/2023,5541,B*Foster Parents,3111393441,SCP501,588,Redacted Personal Data
http://statistics.data.gov.uk/id/local-authority/38,Oxfordshire County Council,LIBRARY COLLECTIONS,23/03/2023,4539,"Books, DVDs and CDs",3111388172,M37000,588.39,ASKEWS & HOLTS LIBRARY SERVICES LTD
http://statistics.data.gov.uk/id/local-authority/38,Oxfordshire County Council,Support at Home 65+ Physical Support,28/03/2023,5699,,3111393951,SACP40,589.44,Care Outlook Ltd
http://statistics.data.gov.uk/id/local-authority/38,Oxfordshire County Council,Family Solutions Plus Non-staff - North,31/03/2023,5227,Other Transport Arrangements,3111398157,SCT316,590,D�Arrive Ltd
http://statistics.data.gov.uk/id/local-authority/38,Oxfordshire County Council,LEGAL SERVICES,23/03/2023,3103,Other Training Courses and Qualification,2201094607,R21000,590,MBL SEMINARS LTD
http://statistics.data.gov.uk/id/local-authority/38,Oxfordshire County Council,Support at Home U65 Physical Support,03/03/2023,5693,,3111374076,SACP20,590.2,Chamomile Care Ltd
http://statistics.data.gov.uk/id/local-authority/38,Oxfordshire County Council,FOSTERING MAIN,14/03/2023,5227,Other Transport Arrangements,3111383021,SCP501,590.35,Redacted Personal Data
http://statistics.data.gov.uk/id/local-authority/38,Oxfordshire County Council,Support at Home U65 Learning Disability,10/03/2023,5690,,3111379255,SACL20,590.86,Guideposts Trust
http://statistics.data.gov.uk/id/local-authority/38,Oxfordshire County Council,Delegated Health Tasks  - Over 65,14/03/2023,5691,,3111384333,SAHD40,591,Angel Care Group
http://statistics.data.gov.uk/id/local-authority/38,Oxfordshire County Council,Oxfordshire Adoption Support Fund,07/03/2023,4861,Hired and Contracted Services,2201088113,ATV680,591,Heidi Willcox
http://statistics.data.gov.uk/id/local-authority/38,Oxfordshire County Council,Support at Home 65+ Physical Support,01/03/2023,5693,,3111372632,SACP40,591.36,CARE & CARERS LTD
http://statistics.data.gov.uk/id/local-authority/38,Oxfordshire County Council,Support at Home U65 Learning Disability,10/03/2023,5690,,3111378193,SACL20,591.48,The Camden Society
http://statistics.data.gov.uk/id/local-authority/38,Oxfordshire County Council,FLEET MAINTENANCE,22/03/2023,4210,Vehicles and Plant - Repairs and Main,3111387283,F31200,591.67,OCC One Time Vendor
http://statistics.data.gov.uk/id/local-authority/38,Oxfordshire County Council,Support at Home U65 Physical Support,28/03/2023,5689,,3111394142,SACP20,591.78,Oxfordshire Crossroads
http://statistics.data.gov.uk/id/local-authority/38,Oxfordshire County Council,Support at Home U65 Learning Disability,28/03/2023,5682,,3111392719,SACL20,591.99,The Brandon Trust
http://statistics.data.gov.uk/id/local-authority/38,Oxfordshire County Council,SHORT BREAK ACTIVITIES,01/03/2023,4330,Transport to School Activities,3111372835,SCT103,592,D�Arrive Ltd
http://statistics.data.gov.uk/id/local-authority/38,Oxfordshire County Council,Children in Care Non-staffing - Centrl 2,07/03/2023,5227,Other Transport Arrangements,3111374725,SCT206,592,Phoenixx Cars Ltd
http://statistics.data.gov.uk/id/local-authority/38,Oxfordshire County Council,Delegated Health Tasks  - Over 65,06/03/2023,5691,,3111374582,SAHD40,592,SEABROOK SERVICES LTD
http://statistics.data.gov.uk/id/local-authority/38,Oxfordshire County Council,Support at Home U65 Physical Support,28/03/2023,5699,,3111394026,SACP20,592.2,CaringPlus Healthcare Services Ltd
http://statistics.data.gov.uk/id/local-authority/38,Oxfordshire County Council,Support at Home U65 Mental Health,14/03/2023,5899,Social Care - Direct Payments,3111383715,SACM20,592.64,Purple Conversation Com In Co (DP)
http://statistics.data.gov.uk/id/local-authority/38,Oxfordshire County Council,LEAVING CARE NORTH,16/03/2023,5394,Other Expenses,3111385068,SCT192,592.8,Redacted Personal Data
http://statistics.data.gov.uk/id/local-authority/38,Oxfordshire County Council,Children in Care Non-staffing - North,07/03/2023,5365,Non-Staff Subsistence and Expenses,9300059190,SCT203,593.15,OCC SS Banbury Area Off Cash
http://statistics.data.gov.uk/id/local-authority/38,Oxfordshire County Council,SEN Additional Funding,23/03/2023,5537,Payments to Other Establishments,3111389265,ES1779,593.32,Watlington Primary School
http://statistics.data.gov.uk/id/local-authority/38,Oxfordshire County Council,Support at Home 65+ Physical Support,14/03/2023,5899,Social Care - Direct Payments,3111383181,SACP40,593.6,Redacted Personal Data
http://statistics.data.gov.uk/id/local-authority/38,Oxfordshire County Council,Support at Home U65 Learning Disability,22/03/2023,5693,,3111387182,SACL20,594,The Chiltern Centre for Disabled
http://statistics.data.gov.uk/id/local-authority/38,Oxfordshire County Council,LAC PUPIL PREMIUM,20/03/2023,5537,Payments to Other Establishments,3111386055,EP1395,595,Collingtree CE Primary School
http://statistics.data.gov.uk/id/local-authority/38,Oxfordshire County Council,Support at Home 65+ Physical Support,23/03/2023,4070,Cleaning services,2201094560,SACP40,595,D F Williams Cleaning Services Ltd
http://statistics.data.gov.uk/id/local-authority/38,Oxfordshire County Council,MAINSTREAM-SECONDARY,22/03/2023,4330,Transport to School Activities,3111387302,ER1251,595,Excelsior Taxis Ltd
http://statistics.data.gov.uk/id/local-authority/38,Oxfordshire County Council,TRANSPORT COSTS,06/03/2023,5227,Other Transport Arrangements,3111374702,SCT190,595,Go Green Taxis
http://statistics.data.gov.uk/id/local-authority/38,Oxfordshire County Council,STREET SWEEPINGS,15/03/2023,5227,Other Transport Arrangements,2201091844,N50393,595.06,GRUNDON WASTE MANAGEMENT LTD
http://statistics.data.gov.uk/id/local-authority/38,Oxfordshire County Council,Support at Home U65 Physical Support,20/03/2023,5227,Other Transport Arrangements,3111385866,SACP20,595.2,BORJAN LTD
http://statistics.data.gov.uk/id/local-authority/38,Oxfordshire County Council,COMM DRAWDOWN FUNDNG,20/03/2023,8102,Payments to main contractor,2201093020,NQ1006,595.3,VolkerHighways
http://statistics.data.gov.uk/id/local-authority/38,Oxfordshire County Council,COMM DRAWDOWN FUNDNG,20/03/2023,8102,Payments to main contractor,2201093023,NQ1006,595.3,VolkerHighways
http://statistics.data.gov.uk/id/local-authority/38,Oxfordshire County Council,COMM DRAWDOWN FUNDNG,20/03/2023,8102,Payments to main contractor,2201093025,NQ1006,595.3,VolkerHighways
http://statistics.data.gov.uk/id/local-authority/38,Oxfordshire County Council,COMM DRAWDOWN FUNDNG,20/03/2023,8102,Payments to main contractor,2201093032,NQ1006,595.3,VolkerHighways
http://statistics.data.gov.uk/id/local-authority/38,Oxfordshire County Council,COMM DRAWDOWN FUNDNG,20/03/2023,8102,Payments to main contractor,2201093034,NQ1006,595.3,VolkerHighways
http://statistics.data.gov.uk/id/local-authority/38,Oxfordshire County Council,ELEC NPR ST LTG,30/03/2023,5526,Payments to Private Contractors,2201097726,NE2770,595.3,VolkerHighways
http://statistics.data.gov.uk/id/local-authority/38,Oxfordshire County Council,ELEC NPR ST LTG,30/03/2023,5526,Payments to Private Contractors,2201097728,NE2770,595.3,VolkerHighways
http://statistics.data.gov.uk/id/local-authority/38,Oxfordshire County Council,COMM DRAWDOWN FUNDNG,30/03/2023,8102,Payments to main contractor,2201098067,NQ1006,595.3,VolkerHighways
http://statistics.data.gov.uk/id/local-authority/38,Oxfordshire County Council,PROCUREMENT,27/03/2023,4232,Vehicle Fuel,2201095731,F31000,595.9,Certas Energy UK Ltd
http://statistics.data.gov.uk/id/local-authority/38,Oxfordshire County Council,Support at Home U65 Physical Support,14/03/2023,5899,Social Care - Direct Payments,3111383772,SACP20,596,Purple Conversation Com In Co (DP)
http://statistics.data.gov.uk/id/local-authority/38,Oxfordshire County Council,Delegated Health Tasks  - Over 65,13/03/2023,5691,,3111382060,SAHD40,596.18,Bluebird Care
http://statistics.data.gov.uk/id/local-authority/38,Oxfordshire County Council,COMM DRAWDOWN FUNDNG,08/03/2023,8511,Legal Fees & expenses,2201088763,NQ1006,596.74,Aspinall Verdi LTD
http://statistics.data.gov.uk/id/local-authority/38,Oxfordshire County Council,Support at Home U65 Learning Disability,06/03/2023,5227,Other Transport Arrangements,3111374490,SACL20,596.8,Unitaxi Ltd
http://statistics.data.gov.uk/id/local-authority/38,Oxfordshire County Council,UASC 16&17,29/03/2023,5785,Client Lodgings and Accommodation,3111395113,SYT011,596.97,Response Organisation
http://statistics.data.gov.uk/id/local-authority/38,Oxfordshire County Council,UASC 16&17,29/03/2023,5785,Client Lodgings and Accommodation,3111395114,SYT011,596.97,Response Organisation
http://statistics.data.gov.uk/id/local-authority/38,Oxfordshire County Council,UASC 16&17,29/03/2023,5785,Client Lodgings and Accommodation,3111395115,SYT011,596.97,Response Organisation
http://statistics.data.gov.uk/id/local-authority/38,Oxfordshire County Council,PLACEMENTS- RELEVANT,29/03/2023,5785,Client Lodgings and Accommodation,3111395116,SCP802,596.97,Response Organisation
http://statistics.data.gov.uk/id/local-authority/38,Oxfordshire County Council,LEGAL BUDGET,30/03/2023,5251,Legal Costs,2201098108,SCP655,597,DNA WORLDWIDE GROUP
http://statistics.data.gov.uk/id/local-authority/38,Oxfordshire County Council,Support at Home U65 Learning Disability,06/03/2023,5696,,3111374340,SACL20,597.14,Orders of St John Care Trust
http://statistics.data.gov.uk/id/local-authority/38,Oxfordshire County Council,Support at Home 65+ Mental Health,06/03/2023,5696,,3111374362,SACM40,597.14,Orders of St John Care Trust
http://statistics.data.gov.uk/id/local-authority/38,Oxfordshire County Council,Support at Home U65 Learning Disability,14/03/2023,5899,Social Care - Direct Payments,3111383995,SACL20,597.56,Purple Conversation Com In Co (DP)
http://statistics.data.gov.uk/id/local-authority/38,Oxfordshire County Council,LIBRARY COLLECTIONS,23/03/2023,4539,"Books, DVDs and CDs",3111388174,M37000,597.79,ASKEWS & HOLTS LIBRARY SERVICES LTD
http://statistics.data.gov.uk/id/local-authority/38,Oxfordshire County Council,Minor Works,16/03/2023,3787,Premises Repairs,2201092449,K30122,598,SCM Contractors (Southern) Limited
http://statistics.data.gov.uk/id/local-authority/38,Oxfordshire County Council,LIBRARY COLLECTIONS,22/03/2023,4539,"Books, DVDs and CDs",2201094448,M37000,599.25,Bolinda UK Ltd
http://statistics.data.gov.uk/id/local-authority/38,Oxfordshire County Council,Support at Home U65 Learning Disability,06/03/2023,5696,,3111374416,SACL20,599.28,Orders of St John Care Trust
http://statistics.data.gov.uk/id/local-authority/38,Oxfordshire County Council,CHC Fast Track - Sup at Homes - Over 65,08/03/2023,5691,,3111376690,SAHE40,599.79,Joining Hands Healthcare Ltd
http://statistics.data.gov.uk/id/local-authority/38,Oxfordshire County Council,Support at Home U65 Learning Disability,14/03/2023,5899,Social Care - Direct Payments,3111383699,SACL20,599.84,Redacted Personal Data
http://statistics.data.gov.uk/id/local-authority/38,Oxfordshire County Council,Support at Home 65+ Physical Support,14/03/2023,5899,Social Care - Direct Payments,3111383104,SACP40,599.92,Redacted Personal Data
http://statistics.data.gov.uk/id/local-authority/38,Oxfordshire County Council,MAINSTREAM-PRIMARY,17/03/2023,4330,Transport to School Activities,3111388211,ER1250,600,A2B Castle Cars Ltd
http://statistics.data.gov.uk/id/local-authority/38,Oxfordshire County Council,Family Solutions Plus Non-staff - South,24/03/2023,5227,Other Transport Arrangements,3111388182,SCT321,600,Abingdon Taxis FKN Autotaxis
http://statistics.data.gov.uk/id/local-authority/38,Oxfordshire County Council,Support at Home U65 Learning Disability,13/03/2023,5227,Other Transport Arrangements,3111382205,SACL20,600,BC CARS
http://statistics.data.gov.uk/id/local-authority/38,Oxfordshire County Council,Household Support Fund 3,23/03/2023,7690,Additional Grant for Schools,3111388272,A16009,600,Charlbury Primary School
http://statistics.data.gov.uk/id/local-authority/38,Oxfordshire County Council,WASTE REDUCTION GEN,21/03/2023,4861,Hired and Contracted Services,2201093891,N50500,600,Community Action Groups Project
http://statistics.data.gov.uk/id/local-authority/38,Oxfordshire County Council,Oxfordshire Adoption Support Fund,20/03/2023,4861,Hired and Contracted Services,2201093310,ATV680,600,Creative Therapy Options
http://statistics.data.gov.uk/id/local-authority/38,Oxfordshire County Council,Homes for Ukraine - Guests,01/03/2023,5896,Adult Social Care - Other Transfer Pay,3111373455,R11010,600,Redacted Personal Data
http://statistics.data.gov.uk/id/local-authority/38,Oxfordshire County Council,LAC PUPIL PREMIUM,20/03/2023,5537,Payments to Other Establishments,3111385978,EP1395,600,Didcot Academy of Schools
http://statistics.data.gov.uk/id/local-authority/38,Oxfordshire County Council,Homes for Ukraine - Guests,01/03/2023,5896,Adult Social Care - Other Transfer Pay,3111373475,R11010,600,Redacted Personal Data
http://statistics.data.gov.uk/id/local-authority/38,Oxfordshire County Council,MAINSTREAM-PRIMARY,09/03/2023,4330,Transport to School Activities,3111376772,ER1250,600,Go Green Taxis
